Beneficiary,Category/Purpose,Department,     Net value,VAT Value,Gross,Date incurred -Payment Date
11KBW Limited,Legal Fees/Advocacy,Hounslow Inter Authority Agreement,"2,700.00",540,"3,240.00",01/10/2018
11KBW Limited,Legal Fees/Advocacy,Barnet Council Legal Services,"7,380.00","1,476.00","8,856.00",30/10/2018
11KBW Limited,Legal Fees/Advocacy,Bucks County Council Legal Services,420,84,504,07/11/2018
11KBW Limited,Legal Fees/Advocacy,Barnet Council Legal Services,"3,800.00",760,"4,560.00",21/11/2018
3 Fox International,Advertising,Council Regeneration Programme,"-4,950.00",-990,"-5,940.00",12/12/2018
3 Fox International,Advertising,Council Regeneration Programme,"4,950.00",990,"5,940.00",12/12/2018
3 Fox International,Advertising,Council Regeneration Programme,"9,900.00","1,980.00","11,880.00",12/12/2018
313 Healthcare Ltd,Adults & Social - Client Charges,Long Term Care,-611.59,0,-611.59,24/10/2018
313 Healthcare Ltd,Residential Placements,Long Term Care,"2,480.00",0,"2,480.00",24/10/2018
313 Healthcare Ltd,Residential Placements,Long Term Care,"2,400.00",0,"2,400.00",26/11/2018
313 Healthcare Ltd,Adults & Social - Client Charges,Long Term Care,-591.85,0,-591.85,26/11/2018
313 Healthcare Ltd,Residential Placements,Long Term Care,"2,480.00",0,"2,480.00",19/12/2018
313 Healthcare Ltd,Adults & Social - Client Charges,Long Term Care,-611.59,0,-611.59,19/12/2018
31ten Consulting Limited,Consultants Fees,Poets Corner,"5,000.00","1,000.00","6,000.00",27/11/2018
36 Bedford Row,Legal Fees/Advocacy,Barnet Council Legal Services,"4,617.50",923.5,"5,541.00",03/10/2018
36 Bedford Row,Legal Fees/Advocacy,Hounslow Inter Authority Agreement,450,90,540,09/10/2018
36 Bedford Row,Legal Fees/Advocacy,Bucks County Council Legal Services,"4,350.00",870,"5,220.00",09/10/2018
36 Bedford Row,Legal Fees/Advocacy,Hounslow Inter Authority Agreement,525,105,630,15/10/2018
36 Bedford Row,Legal Fees/Advocacy,Barnet Council Legal Services,625,125,750,30/10/2018
36 Bedford Row,Legal Fees/Advocacy,Barnet Council Legal Services,875,175,"1,050.00",06/11/2018
36 Bedford Row,Legal Fees/Advocacy,Barnet Council Legal Services,"2,250.00",450,"2,700.00",06/11/2018
36 Bedford Row,Legal Fees/Advocacy,Barnet Council Legal Services,"1,625.00",325,"1,950.00",07/11/2018
36 Bedford Row,Legal Fees/Advocacy,Barnet Council Legal Services,"3,500.00",700,"4,200.00",07/11/2018
36 Bedford Row,Legal Fees/Advocacy,Barnet Council Legal Services,525,105,630,19/11/2018
36 Bedford Row,Legal Fees/Advocacy,Barnet Council Legal Services,525,105,630,20/11/2018
36 Bedford Row,Legal Fees/Advocacy,Barnet Council Legal Services,"1,080.00",216,"1,296.00",20/11/2018
36 Bedford Row,Legal Fees/Advocacy,Divisional Director Targeted Services,800,160,960,09/10/2018
36 Bedford Row,Legal Fees/Advocacy,Divisional Director Targeted Services,525,105,630,10/10/2018
36 Bedford Row,Legal Fees/Advocacy,Divisional Director Targeted Services,800,160,960,02/11/2018
36 Bedford Row,Legal Fees/Advocacy,Divisional Director Targeted Services,625,125,750,07/11/2018
3A Care (London) Ltd,Adults & Social - Net P.B.'s,Long Term Care,-50.49,0,-50.49,24/10/2018
3A Care (London) Ltd,Respite Costs,Long Term Care,615.41,0,615.41,24/10/2018
3A Care (London) Ltd,Respite Costs,Long Term Care,"2,651.43",0,"2,651.43",24/10/2018
3A Care (London) Ltd,Respite Costs,Long Term Care,"1,554.29",0,"1,554.29",26/11/2018
3A Care (London) Ltd,Respite Costs,Long Term Care,"1,325.71",0,"1,325.71",19/12/2018
4 Street Nursery,Residential Schools,Early Years SEN Provision,"2,996.69",0,"2,996.69",05/10/2018
5 St Andrew's Hill,Legal Fees/Advocacy,Joint Legal Services,"1,200.00",240,"1,440.00",03/10/2018
5 St Andrew's Hill,Legal Fees/Advocacy,Joint Legal Services,"1,200.00",240,"1,440.00",10/10/2018
5 St Andrew's Hill,Legal Fees/Advocacy,Joint Legal Services,"1,200.00",240,"1,440.00",15/10/2018
5 St Andrew's Hill,Legal Fees/Advocacy,Joint Legal Services,"1,200.00",240,"1,440.00",16/10/2018
5 St Andrew's Hill,Legal Fees/Advocacy,Joint Legal Services,"1,000.00",200,"1,200.00",24/10/2018
5 St Andrew's Hill,Legal Fees/Advocacy,Joint Legal Services,"1,200.00",240,"1,440.00",24/10/2018
5 St Andrew's Hill,Legal Fees/Advocacy,Joint Legal Services,"1,200.00",240,"1,440.00",24/10/2018
5 St Andrew's Hill,Legal Fees/Advocacy,Joint Legal Services,"1,400.00",280,"1,680.00",30/10/2018
5 St Andrew's Hill,Legal Fees/Advocacy,Joint Legal Services,"1,200.00",240,"1,440.00",05/11/2018
A T Bone & Sons Ltd,Grounds Maintenance/Landscaping,Section 106,"4,800.00",960,"5,760.00",30/10/2018
A T Bone & Sons Ltd,Grounds Maintenance/Landscaping,Parks/Open Spaces & Playing Fields,"23,500.00","4,700.00","28,200.00",23/11/2018
A&A Motors (London Ltd),Other Agencies/Local Authorities 3rd Party Payment,Motor Insurance,"1,474.32",0,"1,474.32",09/11/2018
A&J GM Consulting Ltd,Adoption Allowances,Adoption,"2,535.00",0,"2,535.00",03/12/2018
A.R.C.S Environmental Ltd,"Private Contractors, Third Party Payments",Aids and Adaptations,600,120,720,25/10/2018
A.R.C.S Environmental Ltd,"Private Contractors, Third Party Payments",Aids and Adaptations,675,135,810,06/11/2018
A2Dominion Group,Consultants Fees,Waxwell Lane,500,0,500,22/10/2018
AA DriveTech,Staff training (General),Public Transport,96.25,0,96.25,12/12/2018
AA DriveTech,Staff training (General),Public Transport,495,99,594,12/12/2018
Abavus Ltd,"Computer Software, Purchase and Maintenance",ABAVUS,"90,813.50","18,162.70","108,976.20",27/11/2018
Abbey Care Centre Ltd T/A Bhakti,Adults & Social - Client Charges,Long Term Care,-560.4,0,-560.4,17/10/2018
Abbey Care Centre Ltd T/A Bhakti,Residential Placements,Long Term Care,"3,214.29",0,"3,214.29",17/10/2018
Abbey Care Centre Ltd T/A Bhakti,Residential Placements,Long Term Care,"3,321.43",0,"3,321.43",19/11/2018
Abbey Care Centre Ltd T/A Bhakti,Adults & Social - Client Charges,Long Term Care,-579.08,0,-579.08,19/11/2018
Abbey Care Centre Ltd T/A Bhakti,Adults & Social - Client Charges,Long Term Care,-743.81,0,-743.81,19/12/2018
Abbey Care Centre Ltd T/A Bhakti,Residential Placements,Long Term Care,"3,214.28",0,"3,214.28",19/12/2018
Abbey Healthcare Ltd,Nursing Care,Long Term Care,"6,200.00",0,"6,200.00",24/10/2018
Abbey Healthcare Ltd,Nursing Care,Long Term Care,"-3,100.00",0,"-3,100.00",24/10/2018
Abbey Healthcare Ltd,Nursing Care,Long Term Care,"6,200.00",0,"6,200.00",24/10/2018
Abbey Law Costs Consultants Ltd,Recoverable Legal Fees,Barnet Council Legal Services,600,120,720,07/11/2018
Abbeyfield (Kenton House),Residential Placements,Long Term Care,"3,764.29",0,"3,764.29",24/10/2018
Abbeyfield (Kenton House),Adults & Social - Client Charges,Long Term Care,-726.66,0,-726.66,24/10/2018
Abbeyfield (Kenton House),Residential Placements,Self funders L.T.- Adult Social Care,"4,347.14",0,"4,347.14",24/10/2018
Abbeyfield (Kenton House),Residential Placements,Long Term Care,"3,642.85",0,"3,642.85",27/11/2018
Abbeyfield (Kenton House),Adults & Social - Client Charges,Long Term Care,-598.45,0,-598.45,27/11/2018
Abbeyfield (Kenton House),Residential Placements,Self funders L.T.- Adult Social Care,"3,835.72",0,"3,835.72",27/11/2018
Abbeyfield (Kenton House),Residential Placements,Long Term Care,"3,764.29",0,"3,764.29",19/12/2018
Abbeyfield (Kenton House),Adults & Social - Client Charges,Long Term Care,-618.41,0,-618.41,19/12/2018
Abbeyfield (Kenton House),Residential Placements,Self funders L.T.- Adult Social Care,"3,963.57",0,"3,963.57",19/12/2018
ABC Housing,Semi Independent,Leaving Care Placements,"1,714.20",0,"1,714.20",08/10/2018
ABC Housing,Semi Independent,Leaving Care Placements,"2,357.10",0,"2,357.10",08/10/2018
ABC Housing,Semi Independent,Leaving Care Placements,"1,771.34",0,"1,771.34",06/11/2018
ABC Housing,Semi Independent,Leaving Care Placements,"2,435.67",0,"2,435.67",06/11/2018
ABC Housing,Semi Independent,Leaving Care Placements,"1,714.20",0,"1,714.20",06/12/2018
ABC Housing,Semi Independent,Leaving Care Placements,"2,357.10",0,"2,357.10",06/12/2018
Abfallbehalter & Container Weber UK,Refuse Collection,Wheeled Bins,"13,969.20","2,793.84","16,763.04",12/12/2018
Abfallbehalter & Container Weber UK,Refuse Collection,Wheeled Bins,"9,844.96","1,968.99","11,813.95",19/12/2018
Abfallbehalter & Container Weber UK,Refuse Collection,Wheeled Bins,"1,130.84",226.17,"1,357.01",20/12/2018
Abiding Limited,Semi Independent,Childrens Placements,"19,542.60",0,"19,542.60",06/11/2018
Abimbola Badejo,Legal Fees/Advocacy,Hounslow Inter Authority Agreement,515,103,618,24/10/2018
Above Beyond Care,Foster Payments,Asylum Client Expenditure,"3,864.02",0,"3,864.02",05/10/2018
Above Beyond Care,Foster Payments,Asylum Client Expenditure,"3,864.02",0,"3,864.02",12/11/2018
Above Beyond Care,Foster Payments,Asylum Client Expenditure,"2,708.57",0,"2,708.57",30/11/2018
Above Beyond Care,Foster Payments,Asylum Client Expenditure,"3,739.37",0,"3,739.37",30/11/2018
Above Beyond Care,Semi Independent,Leaving Care Placements,"3,567.86",0,"3,567.86",08/10/2018
Above Beyond Care,Semi Independent,Childrens Placements,"3,567.99",0,"3,567.99",08/10/2018
Above Beyond Care,Semi Independent,Leaving Care Placements,"3,987.60",0,"3,987.60",08/10/2018
Above Beyond Care,Semi Independent,Childrens Placements,"3,987.60",0,"3,987.60",08/10/2018
Above Beyond Care,Semi Independent,Childrens Placements,"4,023.60",0,"4,023.60",08/10/2018
Above Beyond Care,Semi Independent,Leaving Care Placements,"3,686.92",0,"3,686.92",06/11/2018
Above Beyond Care,Semi Independent,Childrens Placements,"4,120.52",0,"4,120.52",06/11/2018
Above Beyond Care,Semi Independent,Leaving Care Placements,"3,567.99",0,"3,567.99",06/12/2018
Above Beyond Care,Semi Independent,Childrens Placements,"3,987.60",0,"3,987.60",06/12/2018
AC Education,Other Professional Fees,CLA Pupil Premium Grant,"2,000.00",400,"2,400.00",07/11/2018
Academy Consulting,Consultants Fees,Whitchurch School,900,180,"1,080.00",03/10/2018
Academy Consulting,Consultants Fees,Whitchurch,-709.75,-141.95,-851.7,03/10/2018
Academy Consulting,Consultants Fees,Whitchurch,500,100,600,26/10/2018
Academy Consulting,Consultants Fees,Whitchurch,"2,250.00",450,"2,700.00",26/10/2018
Academy Consulting,Consultants Fees,Whitchurch,"2,000.00",400,"2,400.00",28/11/2018
Academy Consulting,Consultants Fees,Whitchurch,"3,000.00",600,"3,600.00",28/11/2018
Academy Consulting,Consultants Fees,Whitchurch,500,100,600,20/12/2018
Academy Consulting,Consultants Fees,Whitchurch,"1,500.00",300,"1,800.00",20/12/2018
Access Independent,Consultants Fees,Freedom Pass & Taxicards,"5,287.50","1,057.50","6,345.00",26/10/2018
Access Independent,Consultants Fees,Freedom Pass & Taxicards,"-5,995.50","-1,199.10","-7,194.60",28/12/2018
Access Independent,Consultants Fees,Freedom Pass & Taxicards,"5,995.50","1,199.10","7,194.60",28/12/2018
Access Sport CIO,Routine Repairs and Maintenance,Harrow Half Marathon,"3,000.00",0,"3,000.00",31/10/2018
Access Systems UK Ltd,Other Professional Fees,Cashiers Services,"9,600.00","1,920.00","11,520.00",25/10/2018
Accomplish Group,Residential Placements,Long Term Care,"6,642.86",0,"6,642.86",24/10/2018
Accomplish Group,Adults & Social - Client Charges,Long Term Care,-611.59,0,-611.59,24/10/2018
Accomplish Group,Residential Placements,Long Term Care,"10,840.66",0,"10,840.66",24/10/2018
Accomplish Group,Residential Placements,Long Term Care,"6,428.57",0,"6,428.57",26/11/2018
Accomplish Group,Adults & Social - Client Charges,Long Term Care,-591.85,0,-591.85,26/11/2018
Accomplish Group,Residential Placements,Long Term Care,"10,490.95",0,"10,490.95",26/11/2018
Accomplish Group,Residential Placements,Long Term Care,"6,642.86",0,"6,642.86",19/12/2018
Accomplish Group,Adults & Social - Client Charges,Long Term Care,-611.59,0,-611.59,19/12/2018
Accomplish Group,Residential Placements,Long Term Care,"10,840.66",0,"10,840.66",19/12/2018
Ace Homecare Services Ltd,Domiciliary Care,Personalisation,517,0,517,11/10/2018
Ace Homecare Services Ltd,Domiciliary Care,Personalisation,526.4,0,526.4,11/10/2018
Ace Homecare Services Ltd,Domiciliary Care,Personalisation,526.4,0,526.4,11/10/2018
Ace Homecare Services Ltd,Domiciliary Care,Personalisation,554.6,0,554.6,11/10/2018
Ace Homecare Services Ltd,Domiciliary Care,Personalisation,554.6,0,554.6,11/10/2018
Ace Homecare Services Ltd,Domiciliary Care,Self funders Personalisation - Adult Soc,592.2,0,592.2,11/10/2018
Ace Homecare Services Ltd,Domiciliary Care,Personalisation,592.2,0,592.2,11/10/2018
Ace Homecare Services Ltd,Domiciliary Care,Personalisation,658,0,658,11/10/2018
Ace Homecare Services Ltd,Domiciliary Care,Self funders Personalisation - Adult Soc,658,0,658,11/10/2018
Ace Homecare Services Ltd,Domiciliary Care,Personalisation,658,0,658,11/10/2018
Ace Homecare Services Ltd,Domiciliary Care,Personalisation,723.8,0,723.8,11/10/2018
Ace Homecare Services Ltd,Domiciliary Care,Personalisation,"1,015.20",0,"1,015.20",11/10/2018
Ace Homecare Services Ltd,Domiciliary Care,Personalisation,"1,036.37",0,"1,036.37",11/10/2018
Ace Homecare Services Ltd,Domiciliary Care,Personalisation,"1,579.20",0,"1,579.20",11/10/2018
Ace Homecare Services Ltd,Domiciliary Care,Personalisation,"1,579.20",0,"1,579.20",11/10/2018
Ace Homecare Services Ltd,Domiciliary Care,Personalisation,"1,588.60",0,"1,588.60",11/10/2018
Ace Homecare Services Ltd,Domiciliary Care,Personalisation,"1,710.80",0,"1,710.80",11/10/2018
Ace Homecare Services Ltd,Domiciliary Care,Personalisation,"4,691.10",0,"4,691.10",11/10/2018
Ace Homecare Services Ltd,Domiciliary Care,Personalisation,507.6,0,507.6,09/11/2018
Ace Homecare Services Ltd,Domiciliary Care,Personalisation,526.4,0,526.4,09/11/2018
Ace Homecare Services Ltd,Domiciliary Care,Personalisation,526.4,0,526.4,09/11/2018
Ace Homecare Services Ltd,Domiciliary Care,Personalisation,533.45,0,533.45,09/11/2018
Ace Homecare Services Ltd,Domiciliary Care,Personalisation,554.6,0,554.6,09/11/2018
Ace Homecare Services Ltd,Domiciliary Care,Personalisation,592.2,0,592.2,09/11/2018
Ace Homecare Services Ltd,Domiciliary Care,Self funders Personalisation - Adult Soc,592.2,0,592.2,09/11/2018
Ace Homecare Services Ltd,Domiciliary Care,Personalisation,592.2,0,592.2,09/11/2018
Ace Homecare Services Ltd,Domiciliary Care,Personalisation,594.55,0,594.55,09/11/2018
Ace Homecare Services Ltd,Domiciliary Care,Personalisation,622.75,0,622.75,09/11/2018
Ace Homecare Services Ltd,Domiciliary Care,Personalisation,658,0,658,09/11/2018
Ace Homecare Services Ltd,Domiciliary Care,Self funders Personalisation - Adult Soc,328.9,0,328.9,09/11/2018
Ace Homecare Services Ltd,Domiciliary Care,Personalisation,329.1,0,329.1,09/11/2018
Ace Homecare Services Ltd,Domiciliary Care,Personalisation,658,0,658,09/11/2018
Ace Homecare Services Ltd,Domiciliary Care,Self funders Personalisation - Adult Soc,658,0,658,09/11/2018
Ace Homecare Services Ltd,Domiciliary Care,Personalisation,723.8,0,723.8,09/11/2018
Ace Homecare Services Ltd,Domiciliary Care,Personalisation,723.8,0,723.8,09/11/2018
Ace Homecare Services Ltd,Domiciliary Care,Self funders Personalisation - Adult Soc,921.2,0,921.2,09/11/2018
Ace Homecare Services Ltd,Domiciliary Care,Personalisation,996.4,0,996.4,09/11/2018
Ace Homecare Services Ltd,Domiciliary Care,Personalisation,"1,015.20",0,"1,015.20",09/11/2018
Ace Homecare Services Ltd,Domiciliary Care,Personalisation,"1,579.20",0,"1,579.20",09/11/2018
Ace Homecare Services Ltd,Domiciliary Care,Personalisation,"1,673.20",0,"1,673.20",09/11/2018
Ace Homecare Services Ltd,Domiciliary Care,Personalisation,"1,710.80",0,"1,710.80",09/11/2018
Ace Homecare Services Ltd,Domiciliary Care,Personalisation,"1,710.80",0,"1,710.80",09/11/2018
Ace Homecare Services Ltd,Domiciliary Care,Personalisation,"6,913.20",0,"6,913.20",09/11/2018
Ace Homecare Services Ltd,Domiciliary Care,Personalisation,526.4,0,526.4,05/12/2018
Ace Homecare Services Ltd,Domiciliary Care,Personalisation,554.6,0,554.6,05/12/2018
Ace Homecare Services Ltd,Domiciliary Care,Personalisation,568.7,0,568.7,05/12/2018
Ace Homecare Services Ltd,Domiciliary Care,Personalisation,592.2,0,592.2,05/12/2018
Ace Homecare Services Ltd,Domiciliary Care,Personalisation,592.2,0,592.2,05/12/2018
Ace Homecare Services Ltd,Domiciliary Care,Personalisation,592.2,0,592.2,05/12/2018
Ace Homecare Services Ltd,Domiciliary Care,Self funders Personalisation - Adult Soc,658,0,658,05/12/2018
Ace Homecare Services Ltd,Domiciliary Care,Personalisation,658,0,658,05/12/2018
Ace Homecare Services Ltd,Domiciliary Care,Personalisation,658,0,658,05/12/2018
Ace Homecare Services Ltd,Domiciliary Care,Personalisation,658,0,658,05/12/2018
Ace Homecare Services Ltd,Domiciliary Care,Personalisation,723.8,0,723.8,05/12/2018
Ace Homecare Services Ltd,Domiciliary Care,Personalisation,723.8,0,723.8,05/12/2018
Ace Homecare Services Ltd,Domiciliary Care,Personalisation,789.6,0,789.6,05/12/2018
Ace Homecare Services Ltd,Domiciliary Care,Personalisation,794.3,0,794.3,05/12/2018
Ace Homecare Services Ltd,Domiciliary Care,Self funders Personalisation - Adult Soc,864.8,0,864.8,05/12/2018
Ace Homecare Services Ltd,Domiciliary Care,Personalisation,"1,015.20",0,"1,015.20",05/12/2018
Ace Homecare Services Ltd,Domiciliary Care,Personalisation,"1,283.10",0,"1,283.10",05/12/2018
Ace Homecare Services Ltd,Domiciliary Care,Personalisation,"1,579.20",0,"1,579.20",05/12/2018
Ace Homecare Services Ltd,Domiciliary Care,Personalisation,"1,673.20",0,"1,673.20",05/12/2018
Ace Homecare Services Ltd,Domiciliary Care,Personalisation,"6,913.20",0,"6,913.20",05/12/2018
Acer Healthcare Operations Limited,Residential Placements,Long Term Care,"2,103.57",0,"2,103.57",24/10/2018
Acer Healthcare Operations Limited,Recovery of Costs (External - Non Vatable),Long Term Care,-700.42,0,-700.42,24/10/2018
Acer Healthcare Operations Limited,Nursing Care,Long Term Care,"3,025.82",0,"3,025.82",24/10/2018
Acer Healthcare Operations Limited,Adults & Social - Client Charges,Long Term Care,"-1,078.84",0,"-1,078.84",24/10/2018
Acer Healthcare Operations Limited,Recovery of Costs (External - Non Vatable),Long Term Care,-700.42,0,-700.42,24/10/2018
Acer Healthcare Operations Limited,Nursing Care,Long Term Care,"3,985.71",0,"3,985.71",24/10/2018
Acer Healthcare Operations Limited,Adults & Social - Client Charges,Long Term Care,345.73,0,345.73,24/10/2018
Acer Healthcare Operations Limited,Residential Placements,Long Term Care,"2,035.72",0,"2,035.72",26/11/2018
Acer Healthcare Operations Limited,Nursing Care,Long Term Care,"2,928.22",0,"2,928.22",26/11/2018
Acer Healthcare Operations Limited,Recovery of Costs (External - Non Vatable),Long Term Care,-677.83,0,-677.83,26/11/2018
Acer Healthcare Operations Limited,Adults & Social - Client Charges,Long Term Care,-660.52,0,-660.52,26/11/2018
Acer Healthcare Operations Limited,Recovery of Costs (External - Non Vatable),Long Term Care,-677.83,0,-677.83,26/11/2018
Acer Healthcare Operations Limited,Nursing Care,Long Term Care,"3,857.15",0,"3,857.15",26/11/2018
Acer Healthcare Operations Limited,Adults & Social - Client Charges,Long Term Care,-595.43,0,-595.43,26/11/2018
Acer Healthcare Operations Limited,Nursing Care,Long Term Care,"3,985.72",0,"3,985.72",26/11/2018
Acer Healthcare Operations Limited,Recovery of Costs (External - Non Vatable),Long Term Care,-700.42,0,-700.42,26/11/2018
Acer Healthcare Operations Limited,Residential Placements,Long Term Care,"2,103.57",0,"2,103.57",19/12/2018
Acer Healthcare Operations Limited,Nursing Care,Long Term Care,"3,025.82",0,"3,025.82",19/12/2018
Acer Healthcare Operations Limited,Recovery of Costs (External - Non Vatable),Long Term Care,-700.42,0,-700.42,19/12/2018
Acer Healthcare Operations Limited,Adults & Social - Client Charges,Long Term Care,-682.53,0,-682.53,19/12/2018
Acer Healthcare Operations Limited,Recovery of Costs (External - Non Vatable),Long Term Care,-700.42,0,-700.42,19/12/2018
Acer Healthcare Operations Limited,Nursing Care,Long Term Care,"3,985.71",0,"3,985.71",19/12/2018
Acer Healthcare Operations Limited,Adults & Social - Client Charges,Long Term Care,-595.42,0,-595.42,19/12/2018
Acer Healthcare Operations Limited,Nursing Care,Long Term Care,"3,985.71",0,"3,985.71",19/12/2018
Acer Healthcare Operations Limited,Recovery of Costs (External - Non Vatable),Long Term Care,-700.42,0,-700.42,19/12/2018
Acer Healthcare Operations Limited,Adults & Social - Client Charges,Long Term Care,-953.17,0,-953.17,19/12/2018
Acer Healthcare Operations Limited,Recovery of Costs (External - Non Vatable),Long Term Care,-813.39,0,-813.39,19/12/2018
Acer Healthcare Operations Limited,Nursing Care,Long Term Care,"4,628.57",0,"4,628.57",19/12/2018
Acer Healthcare Operations Limited,Recovery of Costs (External - Non Vatable),Long Term Care,-881.17,0,-881.17,19/12/2018
Acer Healthcare Operations Limited,Nursing Care,Long Term Care,"5,014.28",0,"5,014.28",19/12/2018
Acer Healthcare Operations Limited,Adults & Social - Client Charges,Long Term Care,-163.46,0,-163.46,19/12/2018
ACH of London LLP,Adults & Social - Client Charges,Long Term Team - LD,-452.82,0,-452.82,24/10/2018
ACH of London LLP,Residential Placements,Long Term Team - LD,"7,085.71",0,"7,085.71",24/10/2018
ACH of London LLP,Residential Placements,Long Term Team - LD,"8,395.89",0,"8,395.89",26/11/2018
ACH of London LLP,Adults & Social - Client Charges,Long Term Team - LD,-438.22,0,-438.22,26/11/2018
ACH of London LLP,Residential Placements,Long Term Team - LD,"7,397.49",0,"7,397.49",19/12/2018
ACH of London LLP,Adults & Social - Client Charges,Long Term Team - LD,-452.82,0,-452.82,19/12/2018
ACORN MONTESSORI SCHOOL,Voluntary Organisations TPP,EY SEN Inclusion Fund,700,0,700,02/11/2018
ACORN MONTESSORI SCHOOL,Voluntary Organisations TPP,EY 3&4 YO Additional 15 Hours,"13,406.40",0,"13,406.40",06/11/2018
ACORN MONTESSORI SCHOOL,Voluntary Organisations TPP,Dsg Nursery Educ Grant 3yrs & 4yrs,"15,204.00",0,"15,204.00",06/11/2018
ACORN MONTESSORI SCHOOL,Voluntary Organisations TPP,Dsg Nursery Educ Grant 3yrs & 4yrs,"41,277.60",0,"41,277.60",06/11/2018
Actavo,Security Costs,Mayoralty,495,99,594,11/12/2018
Actavo,Grounds Maintenance/Landscaping,Harrow Half Marathon,"1,335.00",267,"1,602.00",01/11/2018
Activetime Day Nursery Ltd,Voluntary Organisations TPP,Dsg Nursery Educ Grant 3yrs & 4yrs,"1,587.60",0,"1,587.60",06/11/2018
Activetime Day Nursery Ltd,Voluntary Organisations TPP,Dsg Nursery Educ Grant 3yrs & 4yrs,529.2,0,529.2,19/12/2018
Adjuvo Care & Support Ltd,Supptd Accommodation for Social Care Clients,Long Term Care,"2,208.66",0,"2,208.66",27/11/2018
Adjuvo Care & Support Ltd,Supptd Accommodation for Social Care Clients,Long Term Care,"2,646.77",0,"2,646.77",27/11/2018
Adjuvo Care & Support Ltd,Supptd Accommodation for Social Care Clients,Long Term Care,"2,695.45",0,"2,695.45",27/11/2018
Adjuvo Care & Support Ltd,Adults & Social - Net P.B.'s,Long Term Care,-174.57,0,-174.57,27/11/2018
Adjuvo Care & Support Ltd,Supptd Accommodation for Social Care Clients,Long Term Care,"2,880.43",0,"2,880.43",27/11/2018
Adjuvo Care & Support Ltd,Supptd Accommodation for Social Care Clients,Long Term Care,"2,744.13",0,"2,744.13",27/11/2018
Adjuvo Care & Support Ltd,Supptd Accommodation for Social Care Clients,Long Term Care,"2,880.43",0,"2,880.43",27/11/2018
Adjuvo Care & Support Ltd,Supptd Accommodation for Social Care Clients,Long Term Care,"3,766.38",0,"3,766.38",27/11/2018
Adjuvo Care & Support Ltd,Supptd Accommodation for Social Care Clients,Long Term Care,-612.86,0,-612.86,19/12/2018
Adjuvo Care & Support Ltd,Supptd Accommodation for Social Care Clients,Long Term Care,"1,266.21",0,"1,266.21",19/12/2018
Adjuvo Care & Support Ltd,Supptd Accommodation for Social Care Clients,Long Term Care,"1,456.78",0,"1,456.78",19/12/2018
Adjuvo Care & Support Ltd,Supptd Accommodation for Social Care Clients,Long Term Care,"1,745.74",0,"1,745.74",19/12/2018
Adjuvo Care & Support Ltd,Supptd Accommodation for Social Care Clients,Long Term Care,"1,777.85",0,"1,777.85",19/12/2018
Adjuvo Care & Support Ltd,Supptd Accommodation for Social Care Clients,Long Term Care,"1,809.96",0,"1,809.96",19/12/2018
Adjuvo Care & Support Ltd,Supptd Accommodation for Social Care Clients,Long Term Care,"2,691.07",0,"2,691.07",19/12/2018
Adjuvo Care & Support Ltd,Supptd Accommodation for Social Care Clients,Long Term Care,"4,178.01",0,"4,178.01",19/12/2018
Adjuvo Care & Support Ltd,Adults & Social - Net P.B.'s,Long Term Care,-115.14,0,-115.14,19/12/2018
Adolphus Care,Semi Independent,Leaving Care Placements,"5,132.10",0,"5,132.10",08/10/2018
Adolphus Care,Supptd Accommodation for Social Care Clients,Long Term Team - PD,"2,897.66",0,"2,897.66",26/10/2018
Adolphus Care,Supptd Accommodation for Social Care Clients,Long Term Team - LD,"4,069.86",0,"4,069.86",26/10/2018
Adolphus Care,Supptd Accommodation for Social Care Clients,Long Term Team - LD,"4,717.31",0,"4,717.31",26/10/2018
Adolphus Care,Supptd Accommodation for Social Care Clients,Long Term Team - LD,"5,057.43",0,"5,057.43",26/10/2018
Adolphus Care,Supptd Accommodation for Social Care Clients,Long Term Team - PD,"7,271.71",0,"7,271.71",26/10/2018
Adolphus Care,Supptd Accommodation for Social Care Clients,Long Term Team - LD,"8,564.86",0,"8,564.86",26/10/2018
Adolphus Care,Supptd Accommodation for Social Care Clients,Long Term Care,"8,848.29",0,"8,848.29",26/10/2018
Adolphus Care,Semi Independent,Leaving Care Placements,"5,303.17",0,"5,303.17",06/11/2018
Adolphus Care,Supptd Accommodation for Social Care Clients,Long Term Care,659.44,0,659.44,27/11/2018
Adolphus Care,Supptd Accommodation for Social Care Clients,Long Term Team - PD,"1,121.67",0,"1,121.67",27/11/2018
Adolphus Care,Supptd Accommodation for Social Care Clients,Long Term Team - LD,"3,938.57",0,"3,938.57",27/11/2018
Adolphus Care,Supptd Accommodation for Social Care Clients,Long Term Team - LD,"4,565.15",0,"4,565.15",27/11/2018
Adolphus Care,Supptd Accommodation for Social Care Clients,Long Term Team - LD,"4,894.28",0,"4,894.28",27/11/2018
Adolphus Care,Supptd Accommodation for Social Care Clients,Long Term Team - PD,"7,037.15",0,"7,037.15",27/11/2018
Adolphus Care,Supptd Accommodation for Social Care Clients,Long Term Team - LD,"8,288.57",0,"8,288.57",27/11/2018
Adolphus Care,Adults & Social - Net P.B.'s,Long Term Team - LD,-288.86,0,-288.86,27/11/2018
Adolphus Care,Supptd Accommodation for Social Care Clients,Long Term Care,"8,562.85",0,"8,562.85",27/11/2018
Adolphus Care,Semi Independent,Leaving Care Placements,"5,132.10",0,"5,132.10",06/12/2018
Adolphus Care,Supptd Accommodation for Social Care Clients,Long Term Care,"1,135.71",0,"1,135.71",19/12/2018
Adolphus Care,Supptd Accommodation for Social Care Clients,Long Term Team - LD,"4,069.86",0,"4,069.86",19/12/2018
Adolphus Care,Supptd Accommodation for Social Care Clients,Long Term Team - LD,"4,717.31",0,"4,717.31",19/12/2018
Adolphus Care,Supptd Accommodation for Social Care Clients,Long Term Team - LD,"5,057.43",0,"5,057.43",19/12/2018
Adolphus Care,Supptd Accommodation for Social Care Clients,Long Term Team - PD,"7,271.71",0,"7,271.71",19/12/2018
Adolphus Care,Adults & Social - Net P.B.'s,Long Term Team - LD,-344.41,0,-344.41,19/12/2018
Adolphus Care,Supptd Accommodation for Social Care Clients,Long Term Team - LD,"8,564.86",0,"8,564.86",19/12/2018
Adolphus Care,Supptd Accommodation for Social Care Clients,Long Term Care,"8,848.29",0,"8,848.29",19/12/2018
Advent Advocacy Limited,Consultants Fees,Safeguarding Adults & Quality Assurance,766.04,0,766.04,22/10/2018
Advent Care Solutions,Respite Costs,Long Term Care,"2,306.98",0,"2,306.98",24/10/2018
Advent Care Solutions,Adults & Social - Client Charges,Long Term Care,-492.82,0,-492.82,24/10/2018
Advent Care Solutions,Respite Costs,Long Term Care,"8,426.86",0,"8,426.86",24/10/2018
Advent Care Solutions,Respite Costs,Long Term Care,"6,000.00",0,"6,000.00",14/11/2018
Advent Care Solutions,Adults & Social - Client Charges,Long Term Care,-438.22,0,-438.22,26/11/2018
Advent Care Solutions,Respite Costs,Long Term Care,"2,232.55",0,"2,232.55",26/11/2018
Advent Care Solutions,Respite Costs,Long Term Care,"8,155.03",0,"8,155.03",26/11/2018
Advent Care Solutions,Respite Costs,Long Term Care,"2,306.98",0,"2,306.98",19/12/2018
Advent Care Solutions,Adults & Social - Client Charges,Long Term Care,-452.82,0,-452.82,19/12/2018
Advent Care Solutions,Respite Costs,Long Term Care,"3,402.90",0,"3,402.90",19/12/2018
Advent Care Solutions,Respite Costs,Long Term Care,"8,426.86",0,"8,426.86",19/12/2018
Affinity for Business Ltd,Water Rates/Charges (including sewage),Depot,943.85,0,943.85,23/10/2018
Affinity for Business Ltd,Water Rates/Charges (including sewage),Depot,"1,707.99",0,"1,707.99",20/11/2018
Affinity for Business Ltd,Water Rates/Charges (including sewage),Civic Centre Accommodation,"6,823.31",0,"6,823.31",04/12/2018
Affinity for Business Ltd,Water Rates/Charges (including sewage),Civic Centre Accommodation,"2,005.32",0,"2,005.32",12/12/2018
Affinity for Business Ltd,Water Rates/Charges (including sewage),Parks/Open Spaces & Playing Fields,530.77,0,530.77,18/12/2018
Affinity for Business Ltd,Water Rates/Charges (including sewage),Parks/Open Spaces & Playing Fields,"1,076.15",0,"1,076.15",18/12/2018
Affinity for Business Ltd,Water Rates/Charges (including sewage),Parks/Open Spaces & Playing Fields,"1,748.94",0,"1,748.94",18/12/2018
Affinity for Business Ltd,Water Rates/Charges (including sewage),Allotments,507.03,0,507.03,19/12/2018
Affinity for Business Ltd,Water Rates/Charges (including sewage),Allotments,509.92,0,509.92,19/12/2018
Affinity for Business Ltd,Water Rates/Charges (including sewage),Allotments,846.65,0,846.65,19/12/2018
Affinity for Business Ltd,Water Rates/Charges (including sewage),Depot,858.08,0,858.08,19/12/2018
Affinity for Business Ltd,Water Rates/Charges (including sewage),Wiseworks,774.23,0,774.23,18/12/2018
Affinity Water,Water Rates/Charges (including sewage),Atkins House refurbishment,"1,320.00",0,"1,320.00",05/12/2018
Affinity Water,Water Rates/Charges (including sewage),Atkins House refurbishment,"11,217.00",0,"11,217.00",05/12/2018
Affinity Water,Water Rates/Charges (including sewage),Harrow Arts Centre,798.3,0,798.3,11/10/2018
Affinity Water,Water Rates/Charges (including sewage),Harrow Arts Centre,"3,619.50",0,"3,619.50",11/10/2018
Affinity Water,Water Rates/Charges (including sewage),Harrow Arts Centre,"5,004.18",0,"5,004.18",11/10/2018
Affinity Water,Water Rates/Charges (including sewage),Harrow Arts Centre,"3,648.80",0,"3,648.80",14/11/2018
Affinity Water,Water Rates/Charges (including sewage),Harrow Arts Centre,"4,220.88",0,"4,220.88",13/12/2018
Affinity Water,Water Rates/Charges (including sewage),Milmans Day Centre,839.08,0,839.08,18/12/2018
African Cultural Association,Other Professional Fees,Community Learning Trust,"4,248.00",0,"4,248.00",22/10/2018
African Cultural Association,Other Professional Fees,Community Learning Trust,"6,372.00",0,"6,372.00",05/12/2018
Age UK Harrow,"Counselling, Therapy",Contracts & Voluntary Sector,"7,500.00",0,"7,500.00",05/12/2018
Ageas Insurance Ltd,Other Agencies/Local Authorities 3rd Party Payment,Motor Insurance,"1,028.16",0,"1,028.16",23/10/2018
Aidan J W Vine,Legal Fees/Advocacy,Bucks County Council Legal Services,"1,075.00",215,"1,290.00",30/10/2018
Aidan J W Vine,Legal Fees/Advocacy,Bucks County Council Legal Services,"3,000.00",600,"3,600.00",30/10/2018
Aidan J W Vine,Legal Fees/Advocacy,Bucks County Council Legal Services,"2,500.00",500,"3,000.00",04/12/2018
AKDesign Consultants Limited,Building Maintenance Exit Costs,Housing Repairs,"2,915.00",583,"3,498.00",27/11/2018
Aldwych Leisure Ltd,Accommodation,Housing Needs,"2,500.00",0,"2,500.00",19/12/2018
Aldwych Leisure Ltd,Accommodation,Housing Needs,"2,500.00",0,"2,500.00",21/12/2018
Aldwych Leisure Ltd,Accommodation,Housing Needs,60,0,60,19/12/2018
Aldwych Leisure Ltd,Accommodation,Housing Needs,60,0,60,21/12/2018
Aldwych Leisure Ltd,Accommodation,Housing Needs,"1,630.13",0,"1,630.13",10/12/2018
Aldwych Leisure Ltd,Accommodation,Housing Needs,920.54,0,920.54,21/12/2018
Aldwych Leisure Ltd,Accommodation,Housing Needs,"4,200.00",0,"4,200.00",21/12/2018
Alex Perry,Legal Fees/Advocacy,Bucks County Council Legal Services,550,110,660,28/11/2018
Alexander Greaves,Legal Fees/Advocacy,Bucks County Council Legal Services,"2,287.50",457.5,"2,745.00",02/11/2018
Alicia Collinson,Legal Fees/Advocacy,Bucks County Council Legal Services,675,135,810,20/12/2018
Alicie Enterprises LTD,Residential Placements,Childrens Placements,"4,100.00",0,"4,100.00",18/10/2018
Alicie Enterprises LTD,Residential Placements,Childrens Placements,"11,942.70",0,"11,942.70",18/10/2018
Alicie Enterprises LTD,Residential Placements,Childrens Placements,"2,714.25",0,"2,714.25",06/11/2018
Aligned Assets Limited,"Computer Software, Purchase and Maintenance",WEB Team,850,170,"1,020.00",12/10/2018
Aligned Assets Limited,"Computer Software, Purchase and Maintenance",WEB Team,"13,258.16","2,651.63","15,909.79",20/12/2018
Alison Easton,Legal Fees/Advocacy,Barnet Council Legal Services,500,100,600,13/11/2018
All Saints Preschool,Voluntary Organisations TPP,2 year old offer,"7,370.40",0,"7,370.40",05/11/2018
All Saints Preschool,Voluntary Organisations TPP,Dsg Nursery Educ Grant 3yrs & 4yrs,"6,274.80",0,"6,274.80",06/11/2018
All Saints Preschool,Voluntary Organisations TPP,EY SEN Inclusion Fund,"1,050.00",0,"1,050.00",11/12/2018
All Saints' Trust,Grants and Subscriptions,Harrow Academies Costed Statements,"12,355.45",0,"12,355.45",03/10/2018
All Saints' Trust,Professional Services - Curriculum,Harrow Schools Standards & Effectivenes,"10,000.00",0,"10,000.00",30/10/2018
All Saints' Trust,Professional Services - Curriculum,Harrow Schools Standards & Effectivenes,"13,300.00",0,"13,300.00",06/11/2018
Allen Lane Limited,Consultants Fees,Miscellaneous Expenses,"3,586.00",717.2,"4,303.20",19/12/2018
Allen Lane Limited,Consultants Fees,Miscellaneous Expenses,"5,216.00","1,043.20","6,259.20",19/12/2018
Allen Lane Limited,Consultants Fees,Miscellaneous Expenses,920.95,184.19,"1,105.14",20/12/2018
Allen Lane Limited,Consultants Fees,Miscellaneous Expenses,"2,445.00",489,"2,934.00",20/12/2018
Allfor Care Alpha Care Recruitment,Domiciliary Care,Personalisation,665.2,0,665.2,01/10/2018
Allfor Care Alpha Care Recruitment,Domiciliary Care,Personalisation,"1,072.88",0,"1,072.88",01/10/2018
Allfor Care Alpha Care Recruitment,Domiciliary Care,Self funders Personalisation - Adult Soc,"1,520.20",0,"1,520.20",01/10/2018
Allfor Care Alpha Care Recruitment,Domiciliary Care,Personalisation - PD,"1,544.64",0,"1,544.64",01/10/2018
Allfor Care Alpha Care Recruitment,Domiciliary Care,Personalisation - PD,514.88,0,514.88,08/10/2018
Allfor Care Alpha Care Recruitment,Domiciliary Care,Personalisation,643.6,0,643.6,08/10/2018
Allfor Care Alpha Care Recruitment,Domiciliary Care,Personalisation - PD,"1,072.88",0,"1,072.88",08/10/2018
Allfor Care Alpha Care Recruitment,Domiciliary Care,Personalisation - PD,"1,169.44",0,"1,169.44",08/10/2018
Allfor Care Alpha Care Recruitment,Domiciliary Care,Children With Disabilities Client Costs,"3,554.70",0,"3,554.70",10/10/2018
Allfor Care Alpha Care Recruitment,Domiciliary Care,Children With Disabilities Client Costs,"4,454.66",0,"4,454.66",10/10/2018
Allfor Care Alpha Care Recruitment,Domiciliary Care,Children With Disabilities Client Costs,"5,521.98",0,"5,521.98",10/10/2018
Allfor Care Alpha Care Recruitment,Domiciliary Care,Personalisation,741,0,741,11/10/2018
Allfor Care Alpha Care Recruitment,Domiciliary Care,Personalisation,"2,252.60",0,"2,252.60",11/10/2018
Allfor Care Alpha Care Recruitment,Domiciliary Care,Personalisation,"-1,710.00",0,"-1,710.00",01/11/2018
Allfor Care Alpha Care Recruitment,Domiciliary Care,Personalisation,665.2,0,665.2,01/11/2018
Allfor Care Alpha Care Recruitment,Domiciliary Care,Personalisation,965.4,0,965.4,01/11/2018
Allfor Care Alpha Care Recruitment,Domiciliary Care,Personalisation,965.4,0,965.4,01/11/2018
Allfor Care Alpha Care Recruitment,Domiciliary Care,Personalisation,"1,007.05",0,"1,007.05",01/11/2018
Allfor Care Alpha Care Recruitment,Domiciliary Care,Personalisation - PD,"1,802.08",0,"1,802.08",01/11/2018
Allfor Care Alpha Care Recruitment,Domiciliary Care,Personalisation - PD,"1,802.08",0,"1,802.08",01/11/2018
Allfor Care Alpha Care Recruitment,Domiciliary Care,Personalisation - PD,"3,604.16",0,"3,604.16",01/11/2018
Allfor Care Alpha Care Recruitment,Domiciliary Care,Personalisation - PD,"3,604.16",0,"3,604.16",01/11/2018
Allfor Care Alpha Care Recruitment,Domiciliary Care,Personalisation,"2,252.60",0,"2,252.60",05/11/2018
Allfor Care Alpha Care Recruitment,Domiciliary Care,Personalisation,"2,252.60",0,"2,252.60",05/11/2018
Allfor Care Alpha Care Recruitment,Domiciliary Care,Children With Disabilities Client Costs,555.37,0,555.37,07/11/2018
Allfor Care Alpha Care Recruitment,Domiciliary Care,Children With Disabilities Client Costs,294.86,0,294.86,07/11/2018
Allfor Care Alpha Care Recruitment,Domiciliary Care,Children With Disabilities Client Costs,825.5,0,825.5,07/11/2018
Allfor Care Alpha Care Recruitment,Domiciliary Care,Children With Disabilities Client Costs,"1,164.40",0,"1,164.40",07/11/2018
Allianz Insurance Plc No. 5 Claims,Other Agencies/Local Authorities 3rd Party Payment,Motor Insurance,"1,107.72",0,"1,107.72",21/12/2018
Allpay Limited,Section 17,Children Looked After Team 1,"5,000.00",0,"5,000.00",14/12/2018
Allpay Ltd,Section 17,CIN Team 3,"3,000.00",0,"3,000.00",02/10/2018
Allpay Ltd,Section 17,Children Looked After Team 1,"5,000.00",0,"5,000.00",09/10/2018
Allpay Ltd,Section 17,Children Looked After Team 1,"5,000.00",0,"5,000.00",16/10/2018
Allpay Ltd,Section 17,Children Looked After Team 1,"5,000.00",0,"5,000.00",29/10/2018
Allpay Ltd,Section 17,Children Looked After Team 1,"5,000.00",0,"5,000.00",06/11/2018
Allpay Ltd,Section 17,Section 47 Team,"2,000.00",0,"2,000.00",07/11/2018
Allpay Ltd,Section 17,CIN Team 3,"3,000.00",0,"3,000.00",13/11/2018
Allpay Ltd,Section 17,Children Looked After Team 1,"5,000.00",0,"5,000.00",16/11/2018
Allpay Ltd,Section 17,Children Looked After Team 1,"5,000.00",0,"5,000.00",27/11/2018
Allpay Ltd,Section 17,Children Looked After Team 1,"5,000.00",0,"5,000.00",07/12/2018
Allpay Ltd,Section 17,CIN Team 3,"3,000.00",0,"3,000.00",14/12/2018
Allpay Ltd,Section 17,Children Looked After Team 1,"5,000.00",0,"5,000.00",18/12/2018
Allpay.net,Rents,Tenant Services,995.05,199.01,"1,194.06",26/10/2018
Allpay.net,Rents,Tenant Services,996.93,199.39,"1,196.32",28/11/2018
Allpay.net,Rents,Tenant Services,961.96,192.39,"1,154.35",20/12/2018
Allpay.net,Accommodation,Children Looked After Team 1,476.25,95.25,571.5,07/11/2018
Allpay.net,Accommodation,Children Looked After Team 1,516.65,103.33,619.98,28/11/2018
Allpay.net,Accommodation,Children Looked After Team 1,468.75,93.75,562.5,20/12/2018
ALLSOP LLP,Consultants Fees,Commercial Property Portfolio,450,90,540,09/10/2018
Alpha Laundry Systems,Building Maintenance Exit Costs,Cyclical Maintenance,653.12,130.62,783.74,28/11/2018
Alpha Laundry Systems,Building Maintenance Exit Costs,Cyclical Maintenance,850,170,"1,020.00",20/12/2018
Alpha Plus Group t/a Abingdon House,Residential Schools,Ind Residential Day School Placement,"-10,000.00",0,"-10,000.00",30/10/2018
Alpha Plus Group t/a Abingdon House,Residential Schools,Ind Residential Day School Placement,"10,000.00",0,"10,000.00",30/10/2018
Alpha Plus Group t/a Abingdon House,Residential Schools,Ind Residential Day School Placement,"10,000.00",0,"10,000.00",31/10/2018
Alpha Plus Group t/a Abingdon House,Residential Schools,Ind Residential Day School Placement,"10,000.00",0,"10,000.00",18/12/2018
Alpha Plus Group t/a Abingdon House,Residential Schools,Ind Residential Day School Placement,"10,000.00",0,"10,000.00",18/12/2018
Alpha Plus Group t/a Abingdon House,Residential Schools,Ind Residential Day School Placement,"10,000.00",0,"10,000.00",18/12/2018
Alpha Plus Group t/a Abingdon House,Residential Schools,Ind Residential Day School Placement,"10,000.00",0,"10,000.00",18/12/2018
Alpha Preparatory School,Voluntary Organisations TPP,Dsg Nursery Educ Grant 3yrs & 4yrs,"26,793.00",0,"26,793.00",06/11/2018
Amac Express Services,Secure Placement  for Children,P-DSG Transport Educ - Ops,"16,114.30","3,222.86","19,337.16",10/10/2018
Amac Express Services,Secure Placement  for Children,P-DSG Transport Educ - Ops,"64,457.20",0,"64,457.20",10/10/2018
Amac Express Services,Secure Placement  for Children,Brent SNT Childrens,"28,363.00","5,672.60","34,035.60",10/10/2018
Amac Express Services,Secure Placement  for Children,Brent SNT Childrens,"113,452.00",0,"113,452.00",10/10/2018
Amac Express Services,Secure Placement  for Children,P-DSG Transport Educ - Ops,"16,017.00","3,203.40","19,220.40",12/11/2018
Amac Express Services,Secure Placement  for Children,P-DSG Transport Educ - Ops,"64,068.00",0,"64,068.00",12/11/2018
Amac Express Services,Secure Placement  for Children,Brent SNT Childrens,"30,899.40","6,179.88","37,079.28",12/11/2018
Amac Express Services,Secure Placement  for Children,Brent SNT Childrens,"123,597.60",0,"123,597.60",12/11/2018
Amac Express Services,Secure Placement  for Children,P-DSG Transport Educ - Ops,"19,415.40","3,883.08","23,298.48",12/12/2018
Amac Express Services,Secure Placement  for Children,P-DSG Transport Educ - Ops,"77,661.60",0,"77,661.60",12/12/2018
Amac Express Services,Secure Placement  for Children,Brent SNT Childrens,"34,914.60","6,982.92","41,897.52",12/12/2018
Amac Express Services,Secure Placement  for Children,Brent SNT Childrens,"139,658.40",0,"139,658.40",12/12/2018
Amac Express Services,Secure Placement  for Children,Childrens Placements,313,62.6,375.6,06/11/2018
Amac Express Services,Secure Placement  for Children,Childrens Placements,"1,252.00",0,"1,252.00",06/11/2018
Amac Express Services,Secure Placement  for Children,Childrens Placements,470,94,564,06/11/2018
Amac Express Services,Secure Placement  for Children,Childrens Placements,"1,880.00",0,"1,880.00",06/11/2018
Amac Express Services,Secure Placement  for Children,Childrens Placements,366.6,73.32,439.92,06/12/2018
Amac Express Services,Secure Placement  for Children,Childrens Placements,"1,466.40",0,"1,466.40",06/12/2018
Amac Express Services,Secure Placement  for Children,Childrens Placements,793.8,158.76,952.56,21/12/2018
Amac Express Services,Secure Placement  for Children,Childrens Placements,"3,175.20",0,"3,175.20",21/12/2018
Ambitious about Autism,Section 17,Ind Residential Day School Placement,"-24,589.97",0,"-24,589.97",12/10/2018
Ambitious about Autism,Section 17,Ind Residential Day School Placement,"-24,589.97",0,"-24,589.97",12/10/2018
Ambitious about Autism,Professional Services - Curriculum,Ind Residential Day School Placement,"24,589.97",0,"24,589.97",12/10/2018
Ambitious about Autism,Professional Services - Curriculum,Ind Residential Day School Placement,"24,589.97",0,"24,589.97",12/10/2018
Ambitious about Autism,Section 17,Ind Residential Day School Placement,"24,589.97",0,"24,589.97",15/10/2018
Ambitious about Autism,Section 17,Ind Residential Day School Placement,"24,589.97",0,"24,589.97",15/10/2018
Amelia Evans,Legal Fees/Advocacy,Bucks County Council Legal Services,665,133,798,01/10/2018
Amelia Evans,Legal Fees/Advocacy,Bucks County Council Legal Services,475,95,570,10/10/2018
Amelia Evans,Legal Fees/Advocacy,Bucks County Council Legal Services,808,161.6,969.6,13/11/2018
Amelia Nice,Legal Fees/Advocacy,Divisional Director Targeted Services,"1,600.00",320,"1,920.00",28/11/2018
Amy Slingo,Legal Fees/Advocacy,Hounslow Inter Authority Agreement,550,110,660,02/10/2018
Andrew Duncan,Legal Fees/Advocacy,Bucks County Council Legal Services,650,130,780,07/11/2018
Andrew Leong,Legal Fees/Advocacy,Bucks County Council Legal Services,500,100,600,05/11/2018
Andrew Shaw,Legal Fees/Advocacy,Bucks County Council Legal Services,750,150,900,06/11/2018
Andrew Shaw,Legal Fees/Advocacy,Bucks County Council Legal Services,751,150.2,901.2,18/12/2018
Angelic Healthcare Services LTD,Domiciliary Care,Personalisation,507.6,0,507.6,12/10/2018
Angelic Healthcare Services LTD,Domiciliary Care,Personalisation,517,0,517,12/10/2018
Angelic Healthcare Services LTD,Domiciliary Care,Personalisation,592.2,0,592.2,12/10/2018
Angelic Healthcare Services LTD,Domiciliary Care,Personalisation,507.6,0,507.6,09/11/2018
Angelic Healthcare Services LTD,Domiciliary Care,Personalisation,517,0,517,09/11/2018
Angelic Healthcare Services LTD,Domiciliary Care,Personalisation,592.2,0,592.2,09/11/2018
Angelic Healthcare Services LTD,Domiciliary Care,Personalisation,507.6,0,507.6,05/12/2018
Angelic Healthcare Services LTD,Domiciliary Care,Personalisation,517,0,517,05/12/2018
Anna Walsh,Legal Fees/Advocacy,Barnet Council Legal Services,"1,550.00",310,"1,860.00",19/12/2018
Annabel Graham Paul,Legal Fees/Advocacy,Development Control,"1,400.00",280,"1,680.00",17/12/2018
Anne Devine,Other Professional Fees,Harrow Museum,"1,743.60",0,"1,743.60",27/11/2018
Anne Marie Lucey,Legal Fees/Advocacy,Bucks County Council Legal Services,700,140,840,07/11/2018
Annie Sayers,Legal Fees/Advocacy,Bucks County Council Legal Services,600,120,720,20/11/2018
Annie Sayers,Legal Fees/Advocacy,Bucks County Council Legal Services,450,90,540,27/11/2018
Annie Sayers,Legal Fees/Advocacy,Bucks County Council Legal Services,550,110,660,20/12/2018
Ann-Marie Glover,Legal Fees/Advocacy,Bucks County Council Legal Services,550,110,660,09/10/2018
Anthony Collins Solicitors,Solicitor Fees,Joint Legal Services,"4,640.00",928,"5,568.00",09/10/2018
Anthony Collins Solicitors,Solicitor Fees,Barnet Council Legal Services,756,151.2,907.2,18/10/2018
Anthony Collins Solicitors,Solicitor Fees,Barnet Council Legal Services,"1,661.00",332.2,"1,993.20",18/10/2018
Anthony Collins Solicitors,Solicitor Fees,Barnet Council Legal Services,"3,488.50",697.7,"4,186.20",12/12/2018
Anthony Collins Solicitors,Solicitor Fees,Barnet Council Legal Services,"10,757.50","2,151.50","12,909.00",20/12/2018
Aon UK Limited,Insurance Premiums,Insurance Services,-588.3,0,-588.3,16/10/2018
Aon UK Limited,Insurance Premiums,Insurance Services,-727.28,0,-727.28,31/10/2018
Aon UK Limited,Insurance Premiums,Insurance Services,-735.43,0,-735.43,26/11/2018
Aon UK Limited,Insurance Premiums,Insurance Services,-596.08,0,-596.08,17/12/2018
Aon UK Limited,Insurance Premiums,General Housing Revenue Account (HRA),"4,054.78",0,"4,054.78",16/10/2018
Aon UK Limited,Insurance Premiums,General Housing Revenue Account (HRA),-316.78,0,-316.78,16/10/2018
Aon UK Limited,Insurance Premiums,General Housing Revenue Account (HRA),"5,012.61",0,"5,012.61",31/10/2018
Aon UK Limited,Insurance Premiums,General Housing Revenue Account (HRA),-391.61,0,-391.61,31/10/2018
Aon UK Limited,Insurance Premiums,General Housing Revenue Account (HRA),"5,068.82",0,"5,068.82",26/11/2018
Aon UK Limited,Insurance Premiums,General Housing Revenue Account (HRA),-396,0,-396,26/11/2018
Aon UK Limited,Insurance Premiums,General Housing Revenue Account (HRA),"4,108.39",0,"4,108.39",17/12/2018
Aon UK Limited,Insurance Premiums,General Housing Revenue Account (HRA),-320.97,0,-320.97,17/12/2018
AP Williamson Consultants Ltd,Consultants Fees,Feasibility Studies 15/16,"6,375.00","1,275.00","7,650.00",25/10/2018
AP Williamson Consultants Ltd,Consultants Fees,Feasibility Studies 15/16,"4,050.00",810,"4,860.00",06/11/2018
AP Williamson Consultants Ltd,Consultants Fees,Feasibility Studies 15/16,"1,650.00",330,"1,980.00",03/12/2018
Apetito Ltd,Catering  - Costs and Equipment,Adults Catering,531.56,0,531.56,28/11/2018
Apple Tree Day Nursery,Voluntary Organisations TPP,EY SEN Inclusion Fund,"2,800.00",0,"2,800.00",02/11/2018
Apple Tree Day Nursery,Voluntary Organisations TPP,2 year old offer,621.6,0,621.6,05/11/2018
Apple Tree Day Nursery,Voluntary Organisations TPP,2 year old offer,"13,675.20",0,"13,675.20",05/11/2018
Apple Tree Day Nursery,Voluntary Organisations TPP,EY 3&4 YO Additional 15 Hours,"5,292.00",0,"5,292.00",06/11/2018
Apple Tree Day Nursery,Voluntary Organisations TPP,Dsg Nursery Educ Grant 3yrs & 4yrs,"5,821.20",0,"5,821.20",06/11/2018
Apple Tree Day Nursery,Voluntary Organisations TPP,Dsg Nursery Educ Grant 3yrs & 4yrs,"6,350.40",0,"6,350.40",06/11/2018
Apple Tree Day Nursery,Voluntary Organisations TPP,EY 3&4 YO Additional 15 Hours,"8,467.20",0,"8,467.20",06/11/2018
Apple Tree Day Nursery,Voluntary Organisations TPP,EY 3&4 YO Additional 15 Hours,"12,700.80",0,"12,700.80",06/11/2018
Apple Tree Day Nursery,Voluntary Organisations TPP,Dsg Nursery Educ Grant 3yrs & 4yrs,"15,876.00",0,"15,876.00",06/11/2018
Apple Tree Day Nursery,Voluntary Organisations TPP,2 year old offer,621.6,0,621.6,13/11/2018
Apply4Technology,"Computer Software, Purchase and Maintenance",Business & Commercial Team,"2,105.00",421,"2,526.00",10/10/2018
APT Security Systems Ltd,Building Maintenance Exit Costs,Closed Circuit TV Management,"1,440.35",288.07,"1,728.42",17/10/2018
Arbor Master,Tree Work,Highways Drainage,"1,600.00",320,"1,920.00",04/12/2018
Arbor Master,Tree Work,Highways Drainage,"4,995.00",999,"5,994.00",05/12/2018
Arbor Master,Tree Work,Highways Drainage,"-5,995.00","-1,199.00","-7,194.00",07/12/2018
Arbor Master,Tree Work,Highways Drainage,"5,995.00","1,199.00","7,194.00",07/12/2018
Arbor Master,Grounds Maintenance/Landscaping,Highways Drainage,"4,750.00",950,"5,700.00",14/12/2018
Arbory Residential Home,Residential Placements,Long Term Care,"1,943.57",0,"1,943.57",17/10/2018
Arbory Residential Home,Residential Placements,Long Term Care,"2,008.36",0,"2,008.36",19/11/2018
Arbory Residential Home,Residential Placements,Long Term Care,"1,943.57",0,"1,943.57",19/12/2018
Ardent,Building Maintenance Exit Costs,Banister Sport Centre -  improvements,"1,928.00",385.6,"2,313.60",22/10/2018
Ardent,Building Maintenance Exit Costs,Banister Sport Centre -  improvements,"1,340.00",268,"1,608.00",10/12/2018
Ardent,Landlord Repairs Exit Costs,Depot Development,"13,800.00","2,760.00","16,560.00",19/10/2018
Ardent,Building Maintenance Exit Costs,Depot Development,895,179,"1,074.00",22/10/2018
Ardent,Building Maintenance Exit Costs,Depot Development,"2,815.00",563,"3,378.00",22/10/2018
Ardent,Landlord Repairs Exit Costs,Depot Development,"14,611.30","2,922.26","17,533.56",30/10/2018
Ardent,Landlord Repairs Exit Costs,Depot Development,"68,536.50","13,707.30","82,243.80",17/12/2018
Ardent,Building Maintenance Exit Costs,Facilities Management,"-14,611.30","-2,922.26","-17,533.56",30/10/2018
Ardent,Building Maintenance Exit Costs,Facilities Management,"14,611.30","2,922.26","17,533.56",30/10/2018
Ardent,Building Maintenance Exit Costs,Wiseworks Pavilion,"4,905.47",981.09,"5,886.56",23/10/2018
Ardent,Building Maintenance Exit Costs,Facilities Management,"2,578.00",515.6,"3,093.60",22/10/2018
Ardent,Landlord Repairs Exit Costs,Fire Protection,"14,250.00","2,850.00","17,100.00",13/12/2018
Ardent,Building Maintenance Exit Costs,CCTV Cameras and Equipment at Depot,"1,313.00",262.6,"1,575.60",22/10/2018
Ardent,Building Maintenance Exit Costs,CCTV Cameras and Equipment at Depot,715,143,858,08/11/2018
Ardent,Building Maintenance Exit Costs,Facilities Management,"17,126.94","3,425.39","20,552.33",11/10/2018
Ardent,Building Maintenance Exit Costs,TFM,434.4,86.88,521.28,30/11/2018
Aremco Products,"Equipment Lease, Purchase, Maintenance and Repair",Parks/Open Spaces & Playing Fields,"3,331.00",666.2,"3,997.20",10/10/2018
Ascensio Ltd,Staff training (General),Learning and Development,"1,000.00",200,"1,200.00",31/10/2018
Ascensio Ltd,Staff training (General),Learning and Development,"1,000.00",200,"1,200.00",20/12/2018
ASE Corporate Eyecare Ltd,Miscellaneous Supplies & Services Cost,Health & Safety Services,468,93.6,561.6,20/12/2018
Ashby House,Nursing Care,Long Term Care,"15,714.29",0,"15,714.29",24/10/2018
Ashby House,Recovery of Costs (External - Non Vatable),Long Term Care,"-2,259.43",0,"-2,259.43",24/10/2018
Ashby House,Adults & Social - Client Charges,Long Term Care,"-2,086.29",0,"-2,086.29",24/10/2018
Ashby House,Adults & Social - Client Charges,Long Term Care,-625.88,0,-625.88,26/11/2018
Ashby House,Recovery of Costs (External - Non Vatable),Long Term Care,-677.83,0,-677.83,26/11/2018
Ashby House,Nursing Care,Long Term Care,"4,714.28",0,"4,714.28",26/11/2018
Ashby House,Nursing Care,Long Term Care,"4,871.43",0,"4,871.43",19/12/2018
Ashby House,Recovery of Costs (External - Non Vatable),Long Term Care,-700.42,0,-700.42,19/12/2018
Ashby House,Adults & Social - Client Charges,Long Term Care,-646.75,0,-646.75,19/12/2018
Ashgale House (Allied Care),Residential Placements,Long Term Team - PD,"3,877.70",0,"3,877.70",24/10/2018
Ashgale House (Allied Care),Adults & Social - Client Charges,Long Term Team - PD,-452.82,0,-452.82,24/10/2018
Ashgale House (Allied Care),Residential Placements,Long Term Team - PD,"3,752.62",0,"3,752.62",26/11/2018
Ashgale House (Allied Care),Adults & Social - Client Charges,Long Term Team - PD,-438.22,0,-438.22,26/11/2018
Ashgale House (Allied Care),Adults & Social - Client Charges,Long Term Team - PD,-452.82,0,-452.82,19/12/2018
Ashgale House (Allied Care),Residential Placements,Long Term Team - PD,"3,877.70",0,"3,877.70",19/12/2018
Asian People's Disability Alliance,Day Care Payments,Personalisation - LD,"1,134.72",0,"1,134.72",03/10/2018
Asian People's Disability Alliance,Day Care Payments,Personalisation - LD,"1,134.90",0,"1,134.90",03/10/2018
Asian People's Disability Alliance,Day Care Payments,Personalisation - LD,"1,008.64",0,"1,008.64",29/10/2018
Asian People's Disability Alliance,Day Care Payments,Personalisation - LD,"1,008.80",0,"1,008.80",29/10/2018
Asian People's Disability Alliance,Day Care Payments,Personalisation - LD,"1,197.76",0,"1,197.76",28/11/2018
Asian People's Disability Alliance,Day Care Payments,Personalisation - LD,"1,197.95",0,"1,197.95",28/11/2018
Askews Library Services Ltd,Books & Publications,Bibliography,558.07,0,558.07,24/10/2018
Askews Library Services Ltd,Books & Publications,Bibliography,634.02,0,634.02,20/12/2018
Aspen Village Ltd,Adults & Social - Client Charges,Long Term Care,-509.93,0,-509.93,24/10/2018
Aspen Village Ltd,Recovery of Costs (External - Non Vatable),Long Term Team - PD,-700.42,0,-700.42,24/10/2018
Aspen Village Ltd,Nursing Care,Long Term Team - PD,"2,953.72",0,"2,953.72",24/10/2018
Aspen Village Ltd,Nursing Care,Long Term Care,"2,267.65",0,"2,267.65",24/10/2018
Aspen Village Ltd,Residential Placements,Long Term Team - PD,"3,381.21",0,"3,381.21",24/10/2018
Aspen Village Ltd,Residential Placements,Long Term Team - PD,"1,344.07",0,"1,344.07",24/10/2018
Aspen Village Ltd,Recovery of Costs (External - Non Vatable),Long Term Team - PD,-677.83,0,-677.83,26/11/2018
Aspen Village Ltd,Nursing Care,Long Term Team - PD,"2,858.45",0,"2,858.45",26/11/2018
Aspen Village Ltd,Nursing Care,Long Term Care,"2,194.50",0,"2,194.50",26/11/2018
Aspen Village Ltd,Residential Placements,Long Term Team - PD,"3,272.15",0,"3,272.15",26/11/2018
Aspen Village Ltd,Residential Placements,Long Term Team - PD,"1,300.72",0,"1,300.72",26/11/2018
Aspen Village Ltd,Recovery of Costs (External - Non Vatable),Long Term Team - PD,-700.42,0,-700.42,19/12/2018
Aspen Village Ltd,Nursing Care,Long Term Team - PD,"2,953.72",0,"2,953.72",19/12/2018
Aspen Village Ltd,Nursing Care,Long Term Care,"2,267.65",0,"2,267.65",19/12/2018
Aspen Village Ltd,Residential Placements,Long Term Team - PD,"3,381.21",0,"3,381.21",19/12/2018
Aspen Village Ltd,Residential Placements,Long Term Team - PD,"1,344.07",0,"1,344.07",19/12/2018
Assa Abloy Entrance Systems Ltd,Security Costs,TFM,"1,695.00",339,"2,034.00",22/11/2018
Assa Abloy Entrance Systems Ltd,Landlord Repairs Exit Costs,Facilities Management,"8,570.00","1,714.00","10,284.00",10/10/2018
ASW Ecology,Other Professional Fees,Byron Quarter,"1,299.00",259.8,"1,558.80",22/10/2018
Athene Education Ltd,Residential Schools,Sen Assessment,"3,000.00",600,"3,600.00",05/11/2018
Athene Education Ltd,Residential Schools,School Strategy & QA,"3,000.00",600,"3,600.00",05/11/2018
Atkins Limited,Consultants Fees,Congestion relief schemes,"-1,412.43",-282.49,"-1,694.92",28/11/2018
Atkins Limited,Consultants Fees,Congestion relief schemes,"1,412.43",282.49,"1,694.92",28/11/2018
Atkins Limited,Consultants Fees,Parking management schemes,"6,760.00","1,352.00","8,112.00",17/10/2018
Atkins Limited,Consultants Fees,Parking management schemes,"6,760.00","1,352.00","8,112.00",13/11/2018
Atkins Limited,Consultants Fees,Parking management schemes,"6,760.00","1,352.00","8,112.00",17/12/2018
Atkins Limited,Consultants Fees,Freight management schemes,"5,000.00","1,000.00","6,000.00",17/10/2018
Atkins Limited,Consultants Fees,Freight management schemes,"5,000.00","1,000.00","6,000.00",13/11/2018
Atkins Limited,Consultants Fees,Freight management schemes,"2,400.00",480,"2,880.00",17/12/2018
Atkins Limited,Consultants Fees,Legible London signing,"4,000.00",800,"4,800.00",17/10/2018
Atkins Limited,Consultants Fees,Legible London signing,"3,400.00",680,"4,080.00",13/11/2018
Atkins Limited,Consultants Fees,Legible London signing,"1,350.00",270,"1,620.00",17/12/2018
Atkins Limited,Consultants Fees,Congestion relief schemes,"1,775.00",355,"2,130.00",17/10/2018
Atkins Limited,Consultants Fees,Congestion relief schemes,"3,900.00",780,"4,680.00",13/11/2018
Atkins Limited,Consultants Fees,Congestion relief schemes,"2,000.00",400,"2,400.00",17/12/2018
Atkins Limited,Consultants Fees,Congestion relief schemes,"1,412.43",282.49,"1,694.92",20/12/2018
Atkins Limited,Consultants Fees,TFL funded revenue schemes,"11,121.00","2,224.20","13,345.20",03/10/2018
Atkins Limited,Consultants Fees,"Traffic, Highway & Asset Management","4,150.00",830,"4,980.00",17/10/2018
Atkins Limited,Consultants Fees,"Traffic, Highway & Asset Management","4,150.00",830,"4,980.00",13/11/2018
Atkins Limited,Consultants Fees,"Traffic, Highway & Asset Management","4,150.00",830,"4,980.00",17/12/2018
Atomwide LTD,"Computer Software, Purchase and Maintenance",Schools Finance Team Trading A/C,"2,459.80",491.96,"2,951.76",07/12/2018
Audiolink Ltd,Security Costs,Security & Out of Hours,"2,711.00",542.2,"3,253.20",17/10/2018
Audiolink Ltd,"Equipment Lease, Purchase, Maintenance and Repair",Car Parking,"1,645.00",329,"1,974.00",12/12/2018
Autism Consultants Ltd,Day Care Payments,Personalisation - LD,"4,002.00",0,"4,002.00",03/10/2018
Autism Consultants Ltd,Day Care Payments,Personalisation - LD,"3,480.00",0,"3,480.00",29/10/2018
Autism Consultants Ltd,Day Care Payments,Personalisation - LD,"3,480.00",0,"3,480.00",20/12/2018
Autism Wessex,Residential Placements,Long Term Team - LD,"2,037.14",0,"2,037.14",24/10/2018
Autism Wessex,Adults & Social - Client Charges,Long Term Team - LD,-445.74,0,-445.74,24/10/2018
Autism Wessex,Residential Placements,Long Term Team - LD,"4,242.79",0,"4,242.79",24/10/2018
Autism Wessex,Residential Placements,Long Term Team - LD,"1,971.43",0,"1,971.43",26/11/2018
Autism Wessex,Adults & Social - Client Charges,Long Term Team - LD,-485.3,0,-485.3,26/11/2018
Autism Wessex,Residential Placements,Long Term Team - LD,"4,105.93",0,"4,105.93",26/11/2018
Autism Wessex,Residential Placements,Long Term Team - LD,"2,037.14",0,"2,037.14",19/12/2018
Autism Wessex,Adults & Social - Client Charges,Long Term Team - LD,-452.82,0,-452.82,19/12/2018
Autism Wessex,Residential Placements,Long Term Team - LD,"4,242.79",0,"4,242.79",19/12/2018
Auto Assist Claims Ltd,Other Agencies/Local Authorities 3rd Party Payment,Motor Insurance,"4,497.60",0,"4,497.60",12/10/2018
Auxillis Services Limited,Other Agencies/Local Authorities 3rd Party Payment,Motor Insurance,"1,449.00",0,"1,449.00",08/11/2018
Avanti House School,Grants and Subscriptions,Harrow Academies Costed Statements,"6,770.08",0,"6,770.08",03/10/2018
Avanti House School,Grants and Subscriptions,Harrow Academies Costed Statements,"18,127.18",0,"18,127.18",03/10/2018
Avari Events,Event Suppliers,Communication-LAMCO,"2,050.00",410,"2,460.00",07/11/2018
AVCO Systems Ltd,"Computer Software, Purchase and Maintenance",Other Strategic School Support,"3,250.00",650,"3,900.00",05/12/2018
Avery Healthcare,Nursing Care,Long Term Care,"-26,863.61",0,"-26,863.61",25/10/2018
Avery Healthcare,Adults & Social - Client Charges,Long Term Care,"6,739.44",0,"6,739.44",25/10/2018
Avery Healthcare,Recovery of Costs (External - Non Vatable),Long Term Care,"6,349.75",0,"6,349.75",25/10/2018
Avery Healthcare,Adults & Social - Client Charges,Long Term Care,130.06,0,130.06,25/10/2018
Avery Healthcare,Residential Placements,Long Term Care,-925.71,0,-925.71,25/10/2018
Avery Healthcare,Adults & Social - Client Charges,Long Term Care,-959.76,0,-959.76,25/10/2018
Avery Healthcare,Recovery of Costs (External - Non Vatable),Long Term Care,-700.42,0,-700.42,25/10/2018
Avery Healthcare,Nursing Care,Long Term Care,"2,947.52",0,"2,947.52",25/10/2018
Avery Healthcare,Residential Placements,Long Term Care,"1,996.40",0,"1,996.40",25/10/2018
Avery Healthcare,Adults & Social - Client Charges,Long Term Care,-702.84,0,-702.84,25/10/2018
Avery Healthcare,Adults & Social - Client Charges,Long Term Care,-907.97,0,-907.97,25/10/2018
Avery Healthcare,Recovery of Costs (External - Non Vatable),Long Term Care,-700.42,0,-700.42,25/10/2018
Avery Healthcare,Nursing Care,Long Term Care,"2,920.95",0,"2,920.95",25/10/2018
Avery Healthcare,Adults & Social - Client Charges,Long Term Care,-437.64,0,-437.64,25/10/2018
Avery Healthcare,Recovery of Costs (External - Non Vatable),Long Term Care,-474.48,0,-474.48,25/10/2018
Avery Healthcare,Nursing Care,Long Term Care,"2,250.00",0,"2,250.00",25/10/2018
Avery Healthcare,Adults & Social - Client Charges,Long Term Care,-702.84,0,-702.84,25/10/2018
Avery Healthcare,Residential Placements,Long Term Care,"2,063.71",0,"2,063.71",25/10/2018
Avery Healthcare,Residential Placements,Long Term Care,"2,063.71",0,"2,063.71",25/10/2018
Avery Healthcare,Adults & Social - Client Charges,Long Term Care,-702.84,0,-702.84,25/10/2018
Avery Healthcare,Nursing Care,Long Term Care,"1,364.00",0,"1,364.00",25/10/2018
Avery Healthcare,Adults & Social - Client Charges,Long Term Care,-697.46,0,-697.46,25/10/2018
Avery Healthcare,Recovery of Costs (External - Non Vatable),Long Term Care,-700.42,0,-700.42,25/10/2018
Avery Healthcare,Nursing Care,Long Term Care,"2,947.52",0,"2,947.52",25/10/2018
Avery Healthcare,Adults & Social - Client Charges,Long Term Care,-611.59,0,-611.59,25/10/2018
Avery Healthcare,Recovery of Costs (External - Non Vatable),Long Term Care,-700.42,0,-700.42,25/10/2018
Avery Healthcare,Nursing Care,Long Term Care,"2,947.52",0,"2,947.52",25/10/2018
Avery Healthcare,Adults & Social - Client Charges,Long Term Care,-702.84,0,-702.84,25/10/2018
Avery Healthcare,Recovery of Costs (External - Non Vatable),Long Term Care,-700.42,0,-700.42,25/10/2018
Avery Healthcare,Nursing Care,Long Term Care,-144.55,0,-144.55,25/10/2018
Avery Healthcare,Nursing Care,Long Term Care,"3,202.34",0,"3,202.34",25/10/2018
Avery Healthcare,Residential Placements,Long Term Team - PD,"1,660.71",0,"1,660.71",25/10/2018
Avery Healthcare,Adults & Social - Client Charges,Long Term Care,-579.26,0,-579.26,25/10/2018
Avery Healthcare,Recovery of Costs (External - Non Vatable),Long Term Care,-700.42,0,-700.42,25/10/2018
Avery Healthcare,Nursing Care,Long Term Care,"2,947.52",0,"2,947.52",25/10/2018
Avery Healthcare,Nursing Care,Long Term Care,"2,996.24",0,"2,996.24",25/10/2018
Avery Healthcare,Recovery of Costs (External - Non Vatable),Long Term Care,-700.42,0,-700.42,25/10/2018
Avery Healthcare,Adults & Social - Client Charges,Long Term Care,-611.59,0,-611.59,25/10/2018
Avery Healthcare,Adults & Social - Client Charges,Long Term Care,-702.84,0,-702.84,25/10/2018
Avery Healthcare,Residential Placements,Long Term Care,"2,391.43",0,"2,391.43",25/10/2018
Avery Healthcare,Adults & Social - Client Charges,Long Term Care,-663.53,0,-663.53,25/10/2018
Avery Healthcare,Residential Placements,Long Term Care,"2,391.43",0,"2,391.43",25/10/2018
Avery Healthcare,Residential Placements,Long Term Care,"2,391.43",0,"2,391.43",25/10/2018
Avery Healthcare,Adults & Social - Client Charges,Long Term Care,-611.59,0,-611.59,25/10/2018
Avery Healthcare,Adults & Social - Client Charges,Long Term Care,-611.59,0,-611.59,25/10/2018
Avery Healthcare,Recovery of Costs (External - Non Vatable),Long Term Care,-700.42,0,-700.42,25/10/2018
Avery Healthcare,Nursing Care,Long Term Care,"3,113.77",0,"3,113.77",25/10/2018
Avery Healthcare,Adults & Social - Client Charges,Long Term Care,-500.74,0,-500.74,25/10/2018
Avery Healthcare,Recovery of Costs (External - Non Vatable),Long Term Care,-700.42,0,-700.42,25/10/2018
Avery Healthcare,Nursing Care,Long Term Care,-326.12,0,-326.12,25/10/2018
Avery Healthcare,Nursing Care,Long Term Care,"3,383.92",0,"3,383.92",25/10/2018
Avery Healthcare,Nursing Care,Long Term Care,"-1,882.14",0,"-1,882.14",25/10/2018
Avery Healthcare,Nursing Care,Long Term Care,"3,764.29",0,"3,764.29",25/10/2018
Avery Healthcare,Adults & Social - Client Charges,Long Term Care,-611.59,0,-611.59,25/10/2018
Avery Healthcare,Recovery of Costs (External - Non Vatable),Long Term Care,-700.42,0,-700.42,25/10/2018
Avery Healthcare,Nursing Care,Long Term Care,"3,224.71",0,"3,224.71",25/10/2018
Avery Healthcare,Nursing Care,Long Term Care,"3,309.74",0,"3,309.74",25/10/2018
Avery Healthcare,Recovery of Costs (External - Non Vatable),Long Term Care,-700.42,0,-700.42,25/10/2018
Avery Healthcare,Adults & Social - Client Charges,Long Term Care,-611.59,0,-611.59,25/10/2018
Avery Healthcare,Adults & Social - Client Charges,Long Term Care,-136.31,0,-136.31,25/10/2018
Avery Healthcare,Recovery of Costs (External - Non Vatable),Long Term Care,-700.42,0,-700.42,25/10/2018
Avery Healthcare,Nursing Care,Long Term Care,"3,057.80",0,"3,057.80",25/10/2018
Avery Healthcare,Residential Placements,Long Term Care,"3,100.00",0,"3,100.00",25/10/2018
Avery Healthcare,Adults & Social - Client Charges,Long Term Care,-826.06,0,-826.06,25/10/2018
Avery Healthcare,Residential Placements,Long Term Care,"2,391.43",0,"2,391.43",25/10/2018
Avery Healthcare,Residential Placements,Long Term Care,"3,100.00",0,"3,100.00",25/10/2018
Avery Healthcare,Adults & Social - Client Charges,Long Term Care,-624.87,0,-624.87,25/10/2018
Avery Healthcare,Nursing Care,Long Term Care,"3,335.20",0,"3,335.20",25/10/2018
Avery Healthcare,Recovery of Costs (External - Non Vatable),Long Term Care,-700.42,0,-700.42,25/10/2018
Avery Healthcare,Nursing Care,Long Term Care,"3,996.17",0,"3,996.17",25/10/2018
Avery Healthcare,Recovery of Costs (External - Non Vatable),Long Term Care,-700.42,0,-700.42,25/10/2018
Avery Healthcare,Adults & Social - Client Charges,Long Term Care,-650.25,0,-650.25,25/10/2018
Avery Healthcare,Adults & Social - Client Charges,Long Term Care,-611.59,0,-611.59,25/10/2018
Avery Healthcare,Residential Placements,Long Term Care,"3,321.43",0,"3,321.43",25/10/2018
Avery Healthcare,Nursing Care,Long Term Care,"4,871.43",0,"4,871.43",25/10/2018
Avery Healthcare,Nursing Care,Long Term Care,"-1,948.57",0,"-1,948.57",25/10/2018
Avery Healthcare,Adults & Social - Client Charges,Long Term Care,-131.75,0,-131.75,25/10/2018
Avery Healthcare,Respite Costs,Long Term Care,"2,800.00",0,"2,800.00",25/10/2018
Avery Healthcare,Residential Placements,Long Term Care,"2,878.57",0,"2,878.57",25/10/2018
Avery Healthcare,Recovery of Costs (External - Non Vatable),Long Term Care,-813.39,0,-813.39,25/10/2018
Avery Healthcare,Nursing Care,Long Term Care,"3,857.14",0,"3,857.14",25/10/2018
Avery Healthcare,Nursing Care,Long Term Care,"14,215.71",0,"14,215.71",25/10/2018
Avery Healthcare,Nursing Care,Long Term Care,"7,528.57",0,"7,528.57",28/11/2018
Avery Healthcare,Nursing Care,Long Term Care,"-15,057.15",0,"-15,057.15",28/11/2018
Avery Healthcare,Residential Placements,Long Term Care,"-1,992.85",0,"-1,992.85",28/11/2018
Avery Healthcare,Adults & Social - Client Charges,Long Term Care,453.76,0,453.76,28/11/2018
Avery Healthcare,Nursing Care,Long Term Care,"-1,467.43",0,"-1,467.43",28/11/2018
Avery Healthcare,Nursing Care,Long Term Care,"3,492.65",0,"3,492.65",28/11/2018
Avery Healthcare,Recovery of Costs (External - Non Vatable),Long Term Care,-677.83,0,-677.83,28/11/2018
Avery Healthcare,Adults & Social - Client Charges,Long Term Care,"-1,220.77",0,"-1,220.77",28/11/2018
Avery Healthcare,Nursing Care,Long Term Care,"1,616.17",0,"1,616.17",28/11/2018
Avery Healthcare,Residential Placements,Long Term Care,"2,365.64",0,"2,365.64",28/11/2018
Avery Healthcare,Adults & Social - Client Charges,Long Term Care,-591.85,0,-591.85,28/11/2018
Avery Healthcare,Adults & Social - Client Charges,Long Term Care,-591.85,0,-591.85,28/11/2018
Avery Healthcare,Residential Placements,Long Term Care,"2,445.22",0,"2,445.22",28/11/2018
Avery Healthcare,Recovery of Costs (External - Non Vatable),Long Term Care,-677.83,0,-677.83,28/11/2018
Avery Healthcare,Nursing Care,Long Term Care,"3,214.28",0,"3,214.28",28/11/2018
Avery Healthcare,Adults & Social - Client Charges,Long Term Care,-625.2,0,-625.2,28/11/2018
Avery Healthcare,Residential Placements,Long Term Team - PD,"1,967.79",0,"1,967.79",28/11/2018
Avery Healthcare,Nursing Care,Long Term Care,"3,461.03",0,"3,461.03",28/11/2018
Avery Healthcare,Recovery of Costs (External - Non Vatable),Long Term Care,-677.83,0,-677.83,28/11/2018
Avery Healthcare,Adults & Social - Client Charges,Long Term Care,-701.83,0,-701.83,28/11/2018
Avery Healthcare,Nursing Care,Long Term Care,"3,492.65",0,"3,492.65",28/11/2018
Avery Healthcare,Recovery of Costs (External - Non Vatable),Long Term Care,-677.83,0,-677.83,28/11/2018
Avery Healthcare,Adults & Social - Client Charges,Long Term Care,-677.31,0,-677.31,28/11/2018
Avery Healthcare,Nursing Care,Long Term Care,"3,492.65",0,"3,492.65",28/11/2018
Avery Healthcare,Recovery of Costs (External - Non Vatable),Long Term Care,-677.83,0,-677.83,28/11/2018
Avery Healthcare,Adults & Social - Client Charges,Long Term Care,-674.95,0,-674.95,28/11/2018
Avery Healthcare,Adults & Social - Client Charges,Long Term Care,-642.13,0,-642.13,28/11/2018
Avery Healthcare,Residential Placements,Long Term Care,"2,833.62",0,"2,833.62",28/11/2018
Avery Healthcare,Nursing Care,Long Term Care,"3,492.65",0,"3,492.65",28/11/2018
Avery Healthcare,Recovery of Costs (External - Non Vatable),Long Term Care,-677.83,0,-677.83,28/11/2018
Avery Healthcare,Adults & Social - Client Charges,Long Term Care,-591.85,0,-591.85,28/11/2018
Avery Healthcare,Adults & Social - Client Charges,Long Term Care,-591.85,0,-591.85,28/11/2018
Avery Healthcare,Residential Placements,Long Term Care,"2,833.62",0,"2,833.62",28/11/2018
Avery Healthcare,Adults & Social - Client Charges,Long Term Care,-591.85,0,-591.85,28/11/2018
Avery Healthcare,Residential Placements,Long Term Care,"2,833.62",0,"2,833.62",28/11/2018
Avery Healthcare,Nursing Care,Long Term Care,"3,550.28",0,"3,550.28",28/11/2018
Avery Healthcare,Recovery of Costs (External - Non Vatable),Long Term Care,-677.83,0,-677.83,28/11/2018
Avery Healthcare,Adults & Social - Client Charges,Long Term Care,-591.85,0,-591.85,28/11/2018
Avery Healthcare,Nursing Care,Long Term Care,-171.36,0,-171.36,28/11/2018
Avery Healthcare,Nursing Care,Long Term Care,"3,794.55",0,"3,794.55",28/11/2018
Avery Healthcare,Recovery of Costs (External - Non Vatable),Long Term Care,-677.83,0,-677.83,28/11/2018
Avery Healthcare,Adults & Social - Client Charges,Long Term Care,-591.85,0,-591.85,28/11/2018
Avery Healthcare,Nursing Care,Long Term Care,"3,689.59",0,"3,689.59",28/11/2018
Avery Healthcare,Recovery of Costs (External - Non Vatable),Long Term Care,-677.83,0,-677.83,28/11/2018
Avery Healthcare,Adults & Social - Client Charges,Long Term Care,-591.85,0,-591.85,28/11/2018
Avery Healthcare,Adults & Social - Client Charges,Long Term Care,-484.58,0,-484.58,28/11/2018
Avery Healthcare,Recovery of Costs (External - Non Vatable),Long Term Care,-677.83,0,-677.83,28/11/2018
Avery Healthcare,Nursing Care,Long Term Care,-386.41,0,-386.41,28/11/2018
Avery Healthcare,Nursing Care,Long Term Care,"4,009.59",0,"4,009.59",28/11/2018
Avery Healthcare,Recovery of Costs (External - Non Vatable),Long Term Care,-677.83,0,-677.83,28/11/2018
Avery Healthcare,Nursing Care,Long Term Care,"7,071.42",0,"7,071.42",28/11/2018
Avery Healthcare,Nursing Care,Long Term Care,"-3,857.14",0,"-3,857.14",28/11/2018
Avery Healthcare,Adults & Social - Client Charges,Long Term Care,-591.85,0,-591.85,28/11/2018
Avery Healthcare,Recovery of Costs (External - Non Vatable),Long Term Care,-677.83,0,-677.83,28/11/2018
Avery Healthcare,Nursing Care,Long Term Care,"3,820.99",0,"3,820.99",28/11/2018
Avery Healthcare,Nursing Care,Long Term Care,"3,921.62",0,"3,921.62",28/11/2018
Avery Healthcare,Recovery of Costs (External - Non Vatable),Long Term Care,-677.83,0,-677.83,28/11/2018
Avery Healthcare,Adults & Social - Client Charges,Long Term Care,-591.85,0,-591.85,28/11/2018
Avery Healthcare,Respite Costs,Long Term Care,"2,800.00",0,"2,800.00",28/11/2018
Avery Healthcare,Nursing Care,Long Term Care,"3,623.17",0,"3,623.17",28/11/2018
Avery Healthcare,Recovery of Costs (External - Non Vatable),Long Term Care,-677.83,0,-677.83,28/11/2018
Avery Healthcare,Adults & Social - Client Charges,Long Term Care,-124.42,0,-124.42,28/11/2018
Avery Healthcare,Residential Placements,Long Term Care,"3,620.40",0,"3,620.40",28/11/2018
Avery Healthcare,Adults & Social - Client Charges,Long Term Care,-799.42,0,-799.42,28/11/2018
Avery Healthcare,Residential Placements,Long Term Care,"2,833.62",0,"2,833.62",28/11/2018
Avery Healthcare,Adults & Social - Client Charges,Long Term Care,-604.72,0,-604.72,28/11/2018
Avery Healthcare,Residential Placements,Long Term Care,"3,673.20",0,"3,673.20",28/11/2018
Avery Healthcare,Nursing Care,Long Term Care,"6,535.71",0,"6,535.71",28/11/2018
Avery Healthcare,Nursing Care,Long Term Care,"-3,267.86",0,"-3,267.86",28/11/2018
Avery Healthcare,Nursing Care,Long Term Care,"3,951.96",0,"3,951.96",28/11/2018
Avery Healthcare,Recovery of Costs (External - Non Vatable),Long Term Care,-677.83,0,-677.83,28/11/2018
Avery Healthcare,Nursing Care,Long Term Care,"5,772.18",0,"5,772.18",28/11/2018
Avery Healthcare,Nursing Care,Long Term Care,"-2,308.86",0,"-2,308.86",28/11/2018
Avery Healthcare,Adults & Social - Client Charges,Long Term Care,-127.5,0,-127.5,28/11/2018
Avery Healthcare,Residential Placements,Long Term Care,"3,410.82",0,"3,410.82",28/11/2018
Avery Healthcare,Nursing Care,Long Term Care,"4,734.98",0,"4,734.98",28/11/2018
Avery Healthcare,Recovery of Costs (External - Non Vatable),Long Term Care,-677.83,0,-677.83,28/11/2018
Avery Healthcare,Adults & Social - Client Charges,Long Term Care,-550.15,0,-550.15,28/11/2018
Avery Healthcare,Nursing Care,Long Term Care,"13,757.15",0,"13,757.15",28/11/2018
Avery Healthcare,Respite Costs,Long Term Care,"-2,800.00",0,"-2,800.00",20/12/2018
Avery Healthcare,Adults & Social - Client Charges,Long Term Care,"-1,455.46",0,"-1,455.46",20/12/2018
Avery Healthcare,Recovery of Costs (External - Non Vatable),Long Term Care,-700.42,0,-700.42,20/12/2018
Avery Healthcare,Nursing Care,Long Term Care,-340.47,0,-340.47,20/12/2018
Avery Healthcare,Nursing Care,Long Term Care,"3,532.80",0,"3,532.80",20/12/2018
Avery Healthcare,Adults & Social - Client Charges,Long Term Care,-998.11,0,-998.11,20/12/2018
Avery Healthcare,Recovery of Costs (External - Non Vatable),Long Term Care,-700.42,0,-700.42,20/12/2018
Avery Healthcare,Nursing Care,Long Term Care,"3,077.24",0,"3,077.24",20/12/2018
Avery Healthcare,Nursing Care,Long Term Care,"1,424.01",0,"1,424.01",20/12/2018
Avery Healthcare,Adults & Social - Client Charges,Long Term Care,-611.59,0,-611.59,20/12/2018
Avery Healthcare,Residential Placements,Long Term Care,"2,084.26",0,"2,084.26",20/12/2018
Avery Healthcare,Nursing Care,Long Term Care,"1,928.58",0,"1,928.58",20/12/2018
Avery Healthcare,Recovery of Costs (External - Non Vatable),Long Term Care,-406.7,0,-406.7,20/12/2018
Avery Healthcare,Adults & Social - Client Charges,Long Term Care,-611.59,0,-611.59,20/12/2018
Avery Healthcare,Residential Placements,Long Term Care,"2,154.50",0,"2,154.50",20/12/2018
Avery Healthcare,Adults & Social - Client Charges,Long Term Care,-725.22,0,-725.22,20/12/2018
Avery Healthcare,Recovery of Costs (External - Non Vatable),Long Term Care,-700.42,0,-700.42,20/12/2018
Avery Healthcare,Nursing Care,Long Term Care,"3,049.47",0,"3,049.47",20/12/2018
Avery Healthcare,Nursing Care,Long Term Care,"-1,660.71",0,"-1,660.71",20/12/2018
Avery Healthcare,Nursing Care,Long Term Care,"3,321.43",0,"3,321.43",20/12/2018
Avery Healthcare,Nursing Care,Long Term Care,"3,077.24",0,"3,077.24",20/12/2018
Avery Healthcare,Recovery of Costs (External - Non Vatable),Long Term Care,-700.42,0,-700.42,20/12/2018
Avery Healthcare,Adults & Social - Client Charges,Long Term Care,-697.46,0,-697.46,20/12/2018
Avery Healthcare,Residential Placements,Long Term Team - PD,"1,733.79",0,"1,733.79",20/12/2018
Avery Healthcare,Nursing Care,Long Term Care,"3,077.24",0,"3,077.24",20/12/2018
Avery Healthcare,Adults & Social - Client Charges,Long Term Care,-611.59,0,-611.59,20/12/2018
Avery Healthcare,Recovery of Costs (External - Non Vatable),Long Term Care,-700.42,0,-700.42,20/12/2018
Avery Healthcare,Adults & Social - Client Charges,Long Term Care,-595.2,0,-595.2,20/12/2018
Avery Healthcare,Recovery of Costs (External - Non Vatable),Long Term Care,-700.42,0,-700.42,20/12/2018
Avery Healthcare,Nursing Care,Long Term Care,"3,077.24",0,"3,077.24",20/12/2018
Avery Healthcare,Nursing Care,Long Term Care,"3,128.08",0,"3,128.08",20/12/2018
Avery Healthcare,Recovery of Costs (External - Non Vatable),Long Term Care,-700.42,0,-700.42,20/12/2018
Avery Healthcare,Adults & Social - Client Charges,Long Term Care,-611.59,0,-611.59,20/12/2018
Avery Healthcare,Residential Placements,Long Term Care,"2,496.65",0,"2,496.65",20/12/2018
Avery Healthcare,Adults & Social - Client Charges,Long Term Care,-663.53,0,-663.53,20/12/2018
Avery Healthcare,Nursing Care,Long Term Care,"3,343.26",0,"3,343.26",20/12/2018
Avery Healthcare,Nursing Care,Long Term Care,-150.93,0,-150.93,20/12/2018
Avery Healthcare,Recovery of Costs (External - Non Vatable),Long Term Care,-700.42,0,-700.42,20/12/2018
Avery Healthcare,Adults & Social - Client Charges,Long Term Care,-611.59,0,-611.59,20/12/2018
Avery Healthcare,Residential Placements,Long Term Care,"2,496.65",0,"2,496.65",20/12/2018
Avery Healthcare,Adults & Social - Client Charges,Long Term Care,-611.59,0,-611.59,20/12/2018
Avery Healthcare,Residential Placements,Long Term Care,"2,496.65",0,"2,496.65",20/12/2018
Avery Healthcare,Adults & Social - Client Charges,Long Term Care,-611.59,0,-611.59,20/12/2018
Avery Healthcare,Adults & Social - Client Charges,Long Term Care,-611.59,0,-611.59,20/12/2018
Avery Healthcare,Recovery of Costs (External - Non Vatable),Long Term Care,-700.42,0,-700.42,20/12/2018
Avery Healthcare,Nursing Care,Long Term Care,"3,250.79",0,"3,250.79",20/12/2018
Avery Healthcare,Adults & Social - Client Charges,Long Term Care,-646.04,0,-646.04,20/12/2018
Avery Healthcare,Recovery of Costs (External - Non Vatable),Long Term Care,-700.42,0,-700.42,20/12/2018
Avery Healthcare,Nursing Care,Long Term Care,"3,321.43",0,"3,321.43",20/12/2018
Avery Healthcare,Nursing Care,Long Term Care,"3,366.60",0,"3,366.60",20/12/2018
Avery Healthcare,Recovery of Costs (External - Non Vatable),Long Term Care,-700.42,0,-700.42,20/12/2018
Avery Healthcare,Adults & Social - Client Charges,Long Term Care,-611.59,0,-611.59,20/12/2018
Avery Healthcare,Nursing Care,Long Term Care,"3,455.35",0,"3,455.35",20/12/2018
Avery Healthcare,Recovery of Costs (External - Non Vatable),Long Term Care,-700.42,0,-700.42,20/12/2018
Avery Healthcare,Adults & Social - Client Charges,Long Term Care,-611.59,0,-611.59,20/12/2018
Avery Healthcare,Nursing Care,Long Term Care,"3,192.34",0,"3,192.34",20/12/2018
Avery Healthcare,Recovery of Costs (External - Non Vatable),Long Term Care,-700.42,0,-700.42,20/12/2018
Avery Healthcare,Adults & Social - Client Charges,Long Term Care,-128.56,0,-128.56,20/12/2018
Avery Healthcare,Adults & Social - Client Charges,Long Term Care,-826.06,0,-826.06,20/12/2018
Avery Healthcare,Residential Placements,Long Term Care,"3,236.40",0,"3,236.40",20/12/2018
Avery Healthcare,Residential Placements,Long Term Care,"2,496.65",0,"2,496.65",20/12/2018
Avery Healthcare,Residential Placements,Long Term Care,"3,236.40",0,"3,236.40",20/12/2018
Avery Healthcare,Adults & Social - Client Charges,Long Term Care,-624.87,0,-624.87,20/12/2018
Avery Healthcare,Nursing Care,Long Term Care,"3,481.96",0,"3,481.96",20/12/2018
Avery Healthcare,Recovery of Costs (External - Non Vatable),Long Term Care,-700.42,0,-700.42,20/12/2018
Avery Healthcare,Adults & Social - Client Charges,Long Term Care,-568.5,0,-568.5,20/12/2018
Avery Healthcare,Recovery of Costs (External - Non Vatable),Long Term Care,-700.42,0,-700.42,20/12/2018
Avery Healthcare,Nursing Care,Long Term Care,"4,171.98",0,"4,171.98",20/12/2018
Avery Healthcare,Adults & Social - Client Charges,Long Term Care,-131.75,0,-131.75,20/12/2018
Avery Healthcare,Nursing Care,Long Term Care,"-2,034.31",0,"-2,034.31",20/12/2018
Avery Healthcare,Nursing Care,Long Term Care,"5,085.77",0,"5,085.77",20/12/2018
Avery Healthcare,Residential Placements,Long Term Care,"3,005.23",0,"3,005.23",20/12/2018
Avery Healthcare,Respite Costs,Long Term Care,"7,000.00",0,"7,000.00",20/12/2018
Avery Healthcare,Nursing Care,Long Term Care,"14,215.71",0,"14,215.71",20/12/2018
Avery Homes Weybridge Ltd,Nursing Care,Long Term Care,"4,317.86",0,"4,317.86",24/10/2018
Avery Homes Weybridge Ltd,Adults & Social - Client Charges,Long Term Care,-668.18,0,-668.18,24/10/2018
Avery Homes Weybridge Ltd,Nursing Care,Long Term Care,"5,116.23",0,"5,116.23",26/11/2018
Avery Homes Weybridge Ltd,Adults & Social - Client Charges,Long Term Care,-646.63,0,-646.63,26/11/2018
Avery Homes Weybridge Ltd,Nursing Care,Long Term Care,"4,507.84",0,"4,507.84",19/12/2018
Avery Homes Weybridge Ltd,Adults & Social - Client Charges,Long Term Care,-668.18,0,-668.18,19/12/2018
AVI Contracts Ltd,Building Maintenance Exit Costs,Depot Development,"5,050.70","1,010.14","6,060.84",11/12/2018
AVI Contracts Ltd,Landlord Repairs Exit Costs,CCTV Cameras and Equipment at Depot,"5,993.03","1,198.61","7,191.64",11/12/2018
Ayer Associates Limited,Landlord Repairs Exit Costs,Drains,"2,403.99",480.8,"2,884.79",05/10/2018
Ayer Associates Limited,Landlord Repairs Exit Costs,Drains,"3,903.99",780.8,"4,684.79",05/10/2018
Ayer Associates Limited,Grounds Maintenance/Landscaping,Trinity Square,500,100,600,13/12/2018
Ayer Associates Limited,Landlord Repairs Exit Costs,Banister Sport Centre -  improvements,875,175,"1,050.00",20/12/2018
Ayer Associates Limited,Consultants Fees,Vernon Lodge,"7,320.00","1,464.00","8,784.00",10/10/2018
Ayer Associates Limited,Landlord Repairs Exit Costs,Vernon Lodge,"7,304.52","1,460.90","8,765.42",12/10/2018
Ayer Associates Limited,Consultants Fees,Vernon Lodge,"14,287.13","2,857.43","17,144.56",05/11/2018
Ayer Associates Limited,Consultants Fees,Vernon Lodge,"82,742.50","16,548.50","99,291.00",26/11/2018
Ayer Associates Limited,Landlord Repairs Exit Costs,Vernon Lodge,"3,139.48",627.9,"3,767.38",14/12/2018
Ayer Associates Limited,Landlord Repairs Exit Costs,Vernon Lodge,"6,732.83","1,346.57","8,079.40",14/12/2018
Ayer Associates Limited,Consultants Fees,Vernon Lodge,"7,915.26","1,583.05","9,498.31",17/12/2018
Ayer Associates Limited,Consultants Fees,Depot Development,"5,468.75","1,093.75","6,562.50",11/10/2018
Ayer Associates Limited,Consultants Fees,Depot Development,"5,840.63","1,168.13","7,008.76",04/12/2018
Ayer Associates Limited,Consultants Fees,Depot Development,"2,887.50",577.5,"3,465.00",13/12/2018
Ayer Associates Limited,Consultants Fees,Caretakers Houses,"1,558.20",311.64,"1,869.84",11/10/2018
Ayer Associates Limited,Landlord Repairs Exit Costs,Fit Out of Town Centre Library,"1,821.25",364.25,"2,185.50",19/10/2018
Ayer Associates Limited,Landlord Repairs Exit Costs,Fit Out of Town Centre Library,"25,674.75","5,134.95","30,809.70",17/12/2018
Ayer Associates Limited,Landlord Repairs Exit Costs,Pinner Memorial Park,-875,-175,"-1,050.00",19/12/2018
Ayer Associates Limited,Landlord Repairs Exit Costs,Pinner Memorial Park,875,175,"1,050.00",19/12/2018
Ayer Associates Limited,Landlord Repairs Exit Costs,Stanmore Recreation Ground,"-3,380.20",-676.04,"-4,056.24",14/12/2018
Ayer Associates Limited,Landlord Repairs Exit Costs,Stanmore Recreation Ground,"3,380.20",676.04,"4,056.24",14/12/2018
Ayer Associates Limited,Consultants Fees,Cedars Open Space,"3,380.20",676.04,"4,056.24",14/12/2018
Ayer Associates Limited,Landlord Repairs Exit Costs,Rayners Lane Toilet Block,"9,042.70","1,808.54","10,851.24",17/12/2018
Ayer Associates Limited,Landlord Repairs Exit Costs,Pinner wood External Works,918,183.6,"1,101.60",05/10/2018
Ayer Associates Limited,Landlord Repairs Exit Costs,Pinner wood External Works,"10,350.64","2,070.13","12,420.77",26/11/2018
Ayer Associates Limited,Landlord Repairs Exit Costs,Pinner wood External Works,"-11,390.63","-2,278.13","-13,668.76",14/12/2018
Ayer Associates Limited,Landlord Repairs Exit Costs,Pinner wood External Works,"7,846.88","1,569.38","9,416.26",14/12/2018
Ayer Associates Limited,Landlord Repairs Exit Costs,Pinner wood External Works,"11,390.63","2,278.13","13,668.76",14/12/2018
Ayer Associates Limited,Landlord Repairs Exit Costs,Newton Farm Roof,"1,676.70",335.34,"2,012.04",26/11/2018
Ayer Associates Limited,Landlord Repairs Exit Costs,Schools Condition works,"6,707.81","1,341.56","8,049.37",13/12/2018
Ayer Associates Limited,Landlord Repairs Exit Costs,Facilities Management,900,180,"1,080.00",05/10/2018
Ayer Associates Limited,Consultants Fees,Sancroft Implementation,"5,534.47","1,106.89","6,641.36",05/10/2018
Ayer Associates Limited,Landlord Repairs Exit Costs,Facilities Management,"9,450.00","1,890.00","11,340.00",11/10/2018
Ayer Associates Limited,Consultants Fees,Sancroft Implementation,"1,869.00",373.8,"2,242.80",17/10/2018
Ayer Associates Limited,Landlord Repairs Exit Costs,Facilities Management,"2,925.00",585,"3,510.00",29/11/2018
Ayerst Environmental Ltd,Other Professional Fees,17/18 K&B Programme West Lot 3 West,495,99,594,20/12/2018
Ayerst Environmental Ltd,Other Professional Fees,Plumbing Infrastructure works,487.5,97.5,585,14/11/2018
Ayerst Environmental Ltd,Other Professional Fees,Plumbing Infrastructure works,487.5,97.5,585,14/11/2018
Ayerst Environmental Ltd,Other Professional Fees,Plumbing Infrastructure works,487.5,97.5,585,26/11/2018
Ayerst Environmental Ltd,Landlord Repairs Exit Costs,Water Hygiene Phase 2,975,195,"1,170.00",10/12/2018
Ayerst Environmental Ltd,Other Professional Fees,Water Hygiene Phase 2,708.32,141.66,849.98,19/12/2018
Ayerst Environmental Ltd,Building Maintenance Exit Costs,Housing Repairs,"1,065.00",213,"1,278.00",17/12/2018
Ayesha Bell-Paris,Legal Fees/Advocacy,Bucks County Council Legal Services,550,110,660,11/12/2018
Aylesbury Vale District Council,Consultants Fees,Voluntary Org Grants,"3,500.00",700,"4,200.00",12/12/2018
Aylward Primary School,Grants and Subscriptions,Harrow Academies Costed Statements,"25,743.80",0,"25,743.80",03/10/2018
Aylward Primary School,Voluntary Organisations TPP,EY 3&4 YO Additional 15 Hours,"2,116.80",0,"2,116.80",06/11/2018
Aylward Primary School,Voluntary Organisations TPP,Dsg Nursery Educ Grant 3yrs & 4yrs,"32,810.40",0,"32,810.40",06/11/2018
Aylward Primary School,Grants and Subscriptions,Harrow Academies ARMS,"29,496.00",0,"29,496.00",14/11/2018
Aylward Primary School,Grants and Subscriptions,Harrow Academies ARMS,"13,333.00",0,"13,333.00",19/12/2018
B & M Investments Ltd t/a B& M Care,Residential Placements,Long Term Care,-442.86,0,-442.86,24/10/2018
B & M Investments Ltd t/a B& M Care,Adults & Social - Client Charges,Long Term Care,-599.85,0,-599.85,24/10/2018
B & M Investments Ltd t/a B& M Care,Residential Placements,Long Term Care,"2,657.14",0,"2,657.14",24/10/2018
B & M Investments Ltd t/a B& M Care,Residential Placements,Long Term Care,-428.57,0,-428.57,27/11/2018
B & M Investments Ltd t/a B& M Care,Residential Placements,Long Term Care,"2,571.43",0,"2,571.43",27/11/2018
B & M Investments Ltd t/a B& M Care,Adults & Social - Client Charges,Long Term Care,-580.5,0,-580.5,27/11/2018
B & M Investments Ltd t/a B& M Care,Residential Placements,Long Term Care,-442.86,0,-442.86,19/12/2018
B & M Investments Ltd t/a B& M Care,Residential Placements,Long Term Care,"2,657.14",0,"2,657.14",19/12/2018
B & M Investments Ltd t/a B& M Care,Adults & Social - Client Charges,Long Term Care,-599.85,0,-599.85,19/12/2018
Back Care Solutions Ltd,Materials/Consumables/Disposables,Personalisation 3 Care Management,-495.75,-99.15,-594.9,19/12/2018
Back Care Solutions Ltd,Materials/Consumables/Disposables,Personalisation 3 Care Management,"1,470.79",294.16,"1,764.95",19/12/2018
Baltimore Consulting Group,Consultants Fees,Mental Health - Non Pooled/ DoLS,"1,600.00",320,"1,920.00",01/10/2018
Baltimore Consulting Group,Consultants Fees,Mental Health - Non Pooled/ DoLS,"1,600.00",320,"1,920.00",09/10/2018
Baltimore Consulting Group,Consultants Fees,Mental Health - Non Pooled/ DoLS,"1,600.00",320,"1,920.00",15/10/2018
Baltimore Consulting Group,Consultants Fees,Mental Health - Non Pooled/ DoLS,"1,600.00",320,"1,920.00",17/10/2018
Baltimore Consulting Group,Consultants Fees,Mental Health - Non Pooled/ DoLS,"1,600.00",320,"1,920.00",22/10/2018
Baltimore Consulting Group,Consultants Fees,Mental Health - Non Pooled/ DoLS,"1,600.00",320,"1,920.00",30/10/2018
Baltimore Consulting Group,Consultants Fees,Mental Health - Non Pooled/ DoLS,"1,200.00",240,"1,440.00",05/11/2018
Baltimore Consulting Group,Consultants Fees,Mental Health - Non Pooled/ DoLS,"1,600.00",320,"1,920.00",13/11/2018
Baltimore Consulting Group,Consultants Fees,Mental Health - Non Pooled/ DoLS,"1,600.00",320,"1,920.00",16/11/2018
Baltimore Consulting Group,Consultants Fees,Mental Health - Non Pooled/ DoLS,"1,600.00",320,"1,920.00",16/11/2018
Baltimore Consulting Group,Consultants Fees,Mental Health - Non Pooled/ DoLS,"1,600.00",320,"1,920.00",19/11/2018
Baltimore Consulting Group,Consultants Fees,Mental Health - Non Pooled/ DoLS,"1,600.00",320,"1,920.00",28/11/2018
Baltimore Consulting Group,Consultants Fees,Mental Health - Non Pooled/ DoLS,"2,000.00",400,"2,400.00",03/12/2018
Baltimore Consulting Group,Consultants Fees,Mental Health - Non Pooled/ DoLS,"1,600.00",320,"1,920.00",11/12/2018
Baltimore Consulting Group,Consultants Fees,Mental Health - Non Pooled/ DoLS,"1,600.00",320,"1,920.00",19/12/2018
Baltimore Consulting Group,Consultants Fees,Mental Health - Non Pooled/ DoLS,"1,600.00",320,"1,920.00",20/12/2018
Baltimore Consulting Group,Consultants Fees,Mental Health - Non Pooled/ DoLS,"1,600.00",320,"1,920.00",20/12/2018
Banham Group,Security Costs,Facilities Management,567.53,113.51,681.04,22/11/2018
Banham Group,Security Costs,Elmgrove Children's Centre,666,133.2,799.2,06/12/2018
Banya Family Placement,Foster Payments,Leaving Care Placements,"2,211.03",0,"2,211.03",06/12/2018
Banya Family Placement,Foster Payments,Fostering,"4,422.06",0,"4,422.06",06/12/2018
Barcham Trees Plc,Tree Work,Arboriculture,"3,636.00",727.2,"4,363.20",19/12/2018
Barcham Trees Plc,Tree Work,Arboriculture,"3,739.50",747.9,"4,487.40",20/12/2018
Barchester Healthcare,Residential Placements,Adults Pocket Money,"3,032.04",0,"3,032.04",01/10/2018
Barchester Healthcare Homes Ltd,Nursing Care,Long Term Care,"6,864.29",0,"6,864.29",24/10/2018
Barchester Healthcare Homes Ltd,Nursing Care,Long Term Care,"-3,432.14",0,"-3,432.14",24/10/2018
Barchester Healthcare Homes Ltd,Nursing Care,Long Term Care,"6,642.85",0,"6,642.85",26/11/2018
Barchester Healthcare Homes Ltd,Nursing Care,Long Term Care,"-3,321.43",0,"-3,321.43",26/11/2018
Barchester Healthcare Homes Ltd,Nursing Care,Long Term Care,"6,864.29",0,"6,864.29",19/12/2018
Barchester Healthcare Homes Ltd,Nursing Care,Long Term Care,"-3,432.14",0,"-3,432.14",19/12/2018
Barnardos,Foster Payments,Childrens Placements,597,0,597,08/10/2018
Barnardos,Foster Payments,Childrens Placements,590,0,590,24/10/2018
Bartec Auto ID Ltd,Computer Purchases,Domestic Waste,679.2,135.84,815.04,24/10/2018
Bartec Auto ID Ltd,Computer Purchases,Domestic Waste,"1,061.60",212.32,"1,273.92",24/10/2018
Bartec Auto ID Ltd,Private Contractors for Back Office Services,Garden Waste,950,190,"1,140.00",27/11/2018
Bartek Zaniewski,Consultants Fees,Mental Health - Non Pooled/ DoLS,"1,132.67",226.53,"1,359.20",09/11/2018
Barts Health NHS Trust,Miscellaneous Supplies & Services Cost,Harrow: Sexual Health Services,"1,049.37",0,"1,049.37",04/10/2018
Barts Health NHS Trust,Miscellaneous Supplies & Services Cost,Harrow: Sexual Health Services,536.2,0,536.2,24/10/2018
Barts Health NHS Trust,Miscellaneous Supplies & Services Cost,Harrow: Sexual Health Services,849.16,0,849.16,14/11/2018
Barts Health NHS Trust,Miscellaneous Supplies & Services Cost,Harrow: Sexual Health Services,"1,428.51",0,"1,428.51",20/12/2018
BAYERISCHE LANDESBANK,Interest Payments,Interest Payable (borrowing),"337,561.64",0,"337,561.64",18/10/2018
Beam Inc LTD,Semi Independent,Childrens Placements,"3,077.40",0,"3,077.40",06/11/2018
Beam Inc LTD,Semi Independent,Leaving Care Placements,"3,077.62",0,"3,077.62",06/11/2018
Beam Inc LTD,Semi Independent,Childrens Placements,"1,439.90",0,"1,439.90",06/12/2018
Beam Inc LTD,Semi Independent,Childrens Placements,"2,667.08",0,"2,667.08",06/12/2018
Beam Inc LTD,Semi Independent,Leaving Care Placements,"2,667.08",0,"2,667.08",06/12/2018
Beech Tree House,Residential Placements,Long Term Team - LD,"6,299.20",0,"6,299.20",24/10/2018
Beech Tree House,Residential Placements,Long Term Team - LD,"6,096.00",0,"6,096.00",26/11/2018
Beech Tree House,Residential Placements,Long Term Team - LD,"6,299.20",0,"6,299.20",19/12/2018
Bell Brush Company,Cleaning and Domestic Materials,Street Cleansing,"1,432.98",286.6,"1,719.58",23/11/2018
Belmont Montessori Nursery ( Butter,Voluntary Organisations TPP,2 year old offer,"5,949.60",0,"5,949.60",05/11/2018
Belmont Montessori Nursery ( Butter,Voluntary Organisations TPP,EY 3&4 YO Additional 15 Hours,"7,408.80",0,"7,408.80",06/11/2018
Belmont Montessori Nursery ( Butter,Voluntary Organisations TPP,Dsg Nursery Educ Grant 3yrs & 4yrs,"20,109.60",0,"20,109.60",06/11/2018
Belmont Montessori Nursery ( Butter,Voluntary Organisations TPP,2 year old offer,710.4,0,710.4,20/11/2018
Bemrose Booth Ltd,"Equipment Lease, Purchase, Maintenance and Repair",Car Parking,"1,250.10",250.02,"1,500.12",08/10/2018
Bemrose Booth Ltd,"Equipment Lease, Purchase, Maintenance and Repair",Car Parking,"1,250.10",250.02,"1,500.12",14/11/2018
Ben Maltz,Legal Fees/Advocacy,Barnet Council Legal Services,650,130,780,15/11/2018
Bentley Priory Battle of Britain Tr,Meeting/conference room hire,Childrens Strategic Management,458.34,91.67,550.01,01/11/2018
Bentley Wood High School,Grants and Subscriptions,Harrow Academies ARMS,"21,969.46",0,"21,969.46",14/11/2018
Bentley Wood High School,Grants and Subscriptions,Harrow Academies ARMS,"14,667.00",0,"14,667.00",19/12/2018
Berry Lodge Surveyors,Recoverable Legal Fees,Hounslow Inter Authority Agreement,"1,050.00",210,"1,260.00",09/10/2018
Berrymans Lace Mawer,Legal Fees/Advocacy,Liability Insurance,"-8,053.79","-1,610.76","-9,664.55",12/10/2018
Berrymans Lace Mawer,Legal Fees/Advocacy,Liability Insurance,"-2,794.50",-558.9,"-3,353.40",12/10/2018
Berrymans Lace Mawer,Legal Fees/Advocacy,Liability Insurance,"2,794.50",558.9,"3,353.40",12/10/2018
Berrymans Lace Mawer,Legal Fees/Advocacy,Liability Insurance,"8,053.79","1,610.76","9,664.55",12/10/2018
Berrymans Lace Mawer,Legal Fees/Advocacy,Liability Insurance,"2,794.50",558.9,"3,353.40",22/10/2018
Berrymans Lace Mawer,Legal Fees/Advocacy,Liability Insurance,"8,053.79","1,610.76","9,664.55",22/10/2018
Berrymans Lace Mawer,Legal Fees/Advocacy,Liability Insurance,"1,020.00",204,"1,224.00",23/10/2018
Berrymans Lace Mawer,Legal Fees/Advocacy,Liability Insurance,927,185.4,"1,112.40",31/10/2018
Berrymans Lace Mawer,Legal Fees/Advocacy,Liability Insurance,961,192.2,"1,153.20",31/10/2018
Berrymans Lace Mawer,Legal Fees/Advocacy,Liability Insurance,927,185.4,"1,112.40",28/11/2018
Berrymans Lace Mawer,Legal Fees/Advocacy,Liability Insurance,961,192.2,"1,153.20",28/11/2018
Berrymans Lace Mawer,Legal Fees/Advocacy,Liability Insurance,618,123.6,741.6,30/11/2018
Best London Removals Ltd,Storage and Archiving,Tenant Services,465.5,93.1,558.6,21/11/2018
Bettercare Keys Ltd,Residential Placements,Children With Disabilities Client Costs,"11,514.33",0,"11,514.33",06/11/2018
Bettercare Keys Ltd,Residential Placements,Long Term Care,"17,828.57",0,"17,828.57",19/12/2018
BHH LIFT Accomodation Services,Rents,Vaughan NRC,"-29,846.79","-5,969.36","-35,816.15",12/10/2018
BHH LIFT Accomodation Services,Rents,Vaughan NRC,"29,846.79","5,969.36","35,816.15",12/10/2018
BHH LIFT Accomodation Services,Rents,PFI - Neighbourhood Resource Centres,"29,846.79","5,969.36","35,816.15",12/10/2018
BHH LIFT Accomodation Services,Rents,PFI - Neighbourhood Resource Centres,"29,846.79","5,969.36","35,816.15",13/11/2018
BHH LIFT Accomodation Services,Rents,PFI - Neighbourhood Resource Centres,"29,846.79","5,969.36","35,816.15",13/12/2018
BHH LIFT Accomodation Services.,Rents,PFI - Neighbourhood Resource Centres,"30,515.08","6,103.02","36,618.10",11/10/2018
BHH LIFT Accomodation Services.,Other Professional Fees,The New Bentley (Byron) NRC,"1,118.63",0,"1,118.63",06/11/2018
BHH LIFT Accomodation Services.,Rents,PFI - Neighbourhood Resource Centres,"30,515.08","6,103.02","36,618.10",13/11/2018
BHH LIFT Accomodation Services.,Rents,PFI - Neighbourhood Resource Centres,"30,515.08","6,103.02","36,618.10",13/12/2018
BHH LIFT Accomodation Services..,Rents,PFI - Neighbourhood Resource Centres,"28,547.47","5,709.49","34,256.96",11/10/2018
BHH LIFT Accomodation Services..,Rents,PFI - Neighbourhood Resource Centres,"28,547.47","5,709.49","34,256.96",13/11/2018
BHH LIFT Accomodation Services..,Rents,PFI - Neighbourhood Resource Centres,"28,547.47","5,709.49","34,256.96",13/12/2018
Bianca Jackson,Legal Fees/Advocacy,Barnet Council Legal Services,570,114,684,19/12/2018
Bibi Badejo,Legal Fees/Advocacy,Divisional Director Targeted Services,750,150,900,07/11/2018
Birch Tree House,Semi Independent,Leaving Care Placements,"3,462.30",0,"3,462.30",08/10/2018
Birch Tree House,Semi Independent,Childrens Placements,"3,985.24",0,"3,985.24",08/10/2018
Birch Tree House,Semi Independent,Childrens Placements,"3,991.00",0,"3,991.00",08/10/2018
Birch Tree House,Semi Independent,Leaving Care Placements,"3,321.34",0,"3,321.34",06/11/2018
Birch Tree House,Semi Independent,Childrens Placements,"3,764.33",0,"3,764.33",06/11/2018
Birch Tree House,Semi Independent,Childrens Placements,"3,764.33",0,"3,764.33",06/11/2018
Birch Tree House,Semi Independent,Leaving Care Placements,"3,214.20",0,"3,214.20",06/12/2018
Birch Tree House,Semi Independent,Childrens Placements,"3,642.90",0,"3,642.90",06/12/2018
Birch Tree House,Semi Independent,Childrens Placements,"3,642.90",0,"3,642.90",06/12/2018
BKSB Ltd,Other Professional Fees,Community Learning Trust,"2,311.00",462.2,"2,773.20",27/11/2018
Black & White Fire Safety Ltd,Landlord Repairs Exit Costs,Sheltered Emergency Lighting and Doors,"1,980.00",396,"2,376.00",17/10/2018
Black & White Fire Safety Ltd,Landlord Repairs Exit Costs,Sheltered Emergency Lighting and Doors,"2,640.00",528,"3,168.00",17/10/2018
Black & White Fire Safety Ltd,Landlord Repairs Exit Costs,Sheltered Emergency Lighting and Doors,"3,300.00",660,"3,960.00",17/10/2018
Black & White Fire Safety Ltd,Landlord Repairs Exit Costs,Sheltered Emergency Lighting and Doors,"1,980.00",396,"2,376.00",24/10/2018
Black & White Fire Safety Ltd,Landlord Repairs Exit Costs,Sheltered Emergency Lighting and Doors,"4,620.00",924,"5,544.00",24/10/2018
Black & White Fire Safety Ltd,Building Maintenance Exit Costs,Cyclical Maintenance,711.9,142.38,854.28,07/11/2018
Black & White Fire Safety Ltd,Building Maintenance Exit Costs,Cyclical Maintenance,"1,670.55",334.11,"2,004.66",13/11/2018
Black & White Fire Safety Ltd,Building Maintenance Exit Costs,Cyclical Maintenance,554.4,110.88,665.28,14/11/2018
Black & White Fire Safety Ltd,Building Maintenance Exit Costs,Cyclical Maintenance,554.4,110.88,665.28,14/11/2018
Black & White Fire Safety Ltd,Building Maintenance Exit Costs,Cyclical Maintenance,480,96,576,20/11/2018
Black & White Fire Safety Ltd,Building Maintenance Exit Costs,Cyclical Maintenance,920.1,184.02,"1,104.12",20/11/2018
Black & White Fire Safety Ltd,Building Maintenance Exit Costs,Cyclical Maintenance,420,84,504,22/11/2018
Black & White Fire Safety Ltd,Building Maintenance Exit Costs,Cyclical Maintenance,554.4,110.88,665.28,22/11/2018
Black & White Fire Safety Ltd,Building Maintenance Exit Costs,Cyclical Maintenance,554.4,110.88,665.28,22/11/2018
Black & White Fire Safety Ltd,Building Maintenance Exit Costs,Cyclical Maintenance,581.7,116.34,698.04,22/11/2018
Black & White Fire Safety Ltd,Building Maintenance Exit Costs,Cyclical Maintenance,684.6,136.92,821.52,22/11/2018
Black & White Fire Safety Ltd,Building Maintenance Exit Costs,Cyclical Maintenance,"1,305.15",261.03,"1,566.18",22/11/2018
Black & White Fire Safety Ltd,Building Maintenance Exit Costs,Cyclical Maintenance,"2,282.70",456.54,"2,739.24",22/11/2018
Black & White Fire Safety Ltd,Building Maintenance Exit Costs,Cyclical Maintenance,"3,642.75",728.55,"4,371.30",28/11/2018
Black & White Fire Safety Ltd,Building Maintenance Exit Costs,Cyclical Maintenance,520.8,104.16,624.96,20/12/2018
Black & White Fire Safety Ltd,Building Maintenance Exit Costs,Cyclical Maintenance,"1,024.20",204.84,"1,229.04",20/12/2018
Black & White Fire Safety Ltd,Building Maintenance Exit Costs,Cyclical Maintenance,"2,677.50",535.5,"3,213.00",20/12/2018
Black & White Fire Safety Ltd,Building Maintenance Exit Costs,Cyclical Maintenance,680,136,816,21/12/2018
Black & White Fire Safety Ltd,Building Maintenance Exit Costs,Cyclical Maintenance,708.75,141.75,850.5,21/12/2018
Black & White Fire Safety Ltd,Building Maintenance Exit Costs,Cyclical Maintenance,920.85,184.17,"1,105.02",21/12/2018
Black & White Fire Safety Ltd,Building Maintenance Exit Costs,Cyclical Maintenance,"1,105.00",221,"1,326.00",21/12/2018
Black & White Fire Safety Ltd,Building Maintenance Exit Costs,Cyclical Maintenance,"2,877.50",575.5,"3,453.00",21/12/2018
Blanche Nevile School,Other Professional Fees,Other LA Special Schools,"19,208.82",0,"19,208.82",15/10/2018
Blands E&M Ltd,Building Maintenance Exit Costs,Capitalisation responsive repairs,"3,313.00",662.6,"3,975.60",25/10/2018
Blossom House School Ltd,Residential Schools,Ind Residential Day School Placement,"12,350.00",0,"12,350.00",20/12/2018
Blossom Park Healthcare Ltd,Residential Placements,Long Term Team - LD,"6,576.43",0,"6,576.43",24/10/2018
Blossom Park Healthcare Ltd,Adults & Social - Client Charges,Long Term Team - LD,-375.32,0,-375.32,24/10/2018
Blossom Park Healthcare Ltd,Residential Placements,Long Term Team - LD,"6,364.28",0,"6,364.28",26/11/2018
Blossom Park Healthcare Ltd,Adults & Social - Client Charges,Long Term Team - LD,-363.22,0,-363.22,26/11/2018
Blossom Park Healthcare Ltd,Adults & Social - Client Charges,Long Term Team - LD,-375.32,0,-375.32,19/12/2018
Blossom Park Healthcare Ltd,Residential Placements,Long Term Team - LD,"6,576.43",0,"6,576.43",19/12/2018
Blue Butterfly Montessori,Voluntary Organisations TPP,EY 3&4 YO Additional 15 Hours,"3,175.20",0,"3,175.20",06/11/2018
Blue Butterfly Montessori,Voluntary Organisations TPP,Dsg Nursery Educ Grant 3yrs & 4yrs,"9,374.40",0,"9,374.40",06/11/2018
BMR Construction Ltd,Building Maintenance Exit Costs,Depot Development,"3,285.55",657.11,"3,942.66",19/12/2018
BMR Construction Ltd,Building Maintenance Exit Costs,Harrow Arts Centre - roof repairs,"9,012.57","1,802.51","10,815.08",18/12/2018
BMR Construction Ltd,Building Maintenance Exit Costs,Harrow Arts Centre - roof repairs,"15,736.56","3,147.31","18,883.87",19/12/2018
BMR Construction Ltd,Decoration Programme,Chandos Recreation Ground,"18,737.67","3,747.53","22,485.20",25/10/2018
BMR Construction Ltd,Landlord Repairs Exit Costs,Fire Protection,"18,737.68","3,747.54","22,485.22",04/12/2018
BMR Construction Ltd,Landlord Repairs Exit Costs,Asbestos Management,"3,930.00",786,"4,716.00",17/12/2018
BMR Construction Ltd,Landlord Repairs Exit Costs,Asbestos Management,"9,332.00","1,866.40","11,198.40",17/12/2018
BMR Construction Ltd,Landlord Repairs Exit Costs,Schools Asbestos works,"5,813.50","1,162.70","6,976.20",17/12/2018
BMR Construction Ltd,Landlord Repairs Exit Costs,Milmans Day Centre,"6,436.93","1,287.39","7,724.32",06/11/2018
Boosters Limited,Foster Payments,Fostering,196.69,39.34,236.03,23/11/2018
Boosters Limited,Foster Payments,Fostering,416,83.2,499.2,23/11/2018
Bottomline Technologies Ltd,"Computer Software, Purchase and Maintenance",Cashiers Services,"1,189.51",237.9,"1,427.41",26/10/2018
Bottomline Technologies Ltd,"Computer Software, Purchase and Maintenance",ERP Team,"1,189.51",237.9,"1,427.41",26/10/2018
Boys & Girls Nursery,Voluntary Organisations TPP,2 year old offer,"1,077.44",0,"1,077.44",05/11/2018
Boys & Girls Nursery,Voluntary Organisations TPP,Dsg Nursery Educ Grant 3yrs & 4yrs,"17,393.04",0,"17,393.04",06/11/2018
Boys & Girls Nursery,Voluntary Organisations TPP,EY 3&4 YO Additional 15 Hours,"19,545.12",0,"19,545.12",06/11/2018
Bradbury Group Ltd,Building Maintenance Exit Costs,Capitalisation Responsive Repairs,"2,801.00",560.2,"3,361.20",08/10/2018
Brambles,Adults & Social - Client Charges,Long Term Team - LD,-492.82,0,-492.82,24/10/2018
Brambles,Residential Placements,Long Term Team - LD,"3,782.53",0,"3,782.53",24/10/2018
Brambles,Residential Placements,Long Term Team - LD,"4,481.91",0,"4,481.91",26/11/2018
Brambles,Adults & Social - Client Charges,Long Term Team - LD,-438.22,0,-438.22,26/11/2018
Brambles,Residential Placements,Long Term Team - LD,"3,948.96",0,"3,948.96",19/12/2018
Brambles,Adults & Social - Client Charges,Long Term Team - LD,-452.82,0,-452.82,19/12/2018
Brent Council,Burials/Cremations,New Public Mortuary,"97,700.00","19,540.00","117,240.00",08/10/2018
Brent Council,Other Agencies/Local Authorities 3rd Party Payment,Trading Standards,"125,000.00",0,"125,000.00",08/10/2018
Brent Council,Other Agencies/Local Authorities 3rd Party Payment,Trading Standards,"125,000.00",0,"125,000.00",08/10/2018
Brent Council,Burials/Cremations,New Public Mortuary,"-97,700.00",0,"-97,700.00",19/10/2018
Brent Council,Burials/Cremations,New Public Mortuary,"97,700.00",0,"97,700.00",19/10/2018
Brent Council,Other Agencies/Local Authorities 3rd Party Payment,Trading Standards,"125,000.00",0,"125,000.00",18/12/2018
Bretherton Law LTD,Recoverable Legal Fees,Divisional Director Targeted Services,500,100,600,07/11/2018
Bridge Networks Ltd,Internet and Cable TV,Depot Development,"2,710.00",542,"3,252.00",15/11/2018
Bridgeall Libraries Limited,Other Professional Fees,Library Projects,"4,094.00",818.8,"4,912.80",15/10/2018
Bright Kidz Pre-School Ltd,Voluntary Organisations TPP,EY 3&4 YO Additional 15 Hours,"13,759.20",0,"13,759.20",06/11/2018
Bright Kidz Pre-School Ltd,Voluntary Organisations TPP,Dsg Nursery Educ Grant 3yrs & 4yrs,"17,992.80",0,"17,992.80",06/11/2018
Bright Little Stars Harrow Limited,Voluntary Organisations TPP,EY SEN Inclusion Fund,"1,750.00",0,"1,750.00",02/11/2018
Bright Little Stars Harrow Limited,Voluntary Organisations TPP,Dsg Nursery Educ Grant 3yrs & 4yrs,"5,098.60",0,"5,098.60",06/11/2018
Bright Little Stars Harrow Limited,Voluntary Organisations TPP,EY 3&4 YO Additional 15 Hours,"6,734.00",0,"6,734.00",06/11/2018
Bright Little Stars Harrow Limited,Voluntary Organisations TPP,EY 3&4 YO Additional 15 Hours,"7,503.60",0,"7,503.60",13/11/2018
Bright Little Stars Harrow Limited,Voluntary Organisations TPP,Dsg Nursery Educ Grant 3yrs & 4yrs,"7,984.60",0,"7,984.60",13/11/2018
Bright Spark Montessori,Voluntary Organisations TPP,2 year old offer,"4,706.40",0,"4,706.40",05/11/2018
Bright Spark Montessori,Voluntary Organisations TPP,Dsg Nursery Educ Grant 3yrs & 4yrs,577.2,0,577.2,06/11/2018
Bright Start Day Care,Voluntary Organisations TPP,2 year old offer,"5,594.40",0,"5,594.40",05/11/2018
Bright Start Day Care,Voluntary Organisations TPP,Dsg Nursery Educ Grant 3yrs & 4yrs,"5,216.40",0,"5,216.40",06/11/2018
Bright Start Day Care,Voluntary Organisations TPP,EY 3&4 YO Additional 15 Hours,"8,064.00",0,"8,064.00",06/11/2018
Bright Start Daycare Stanmore,Voluntary Organisations TPP,2 year old offer,"4,972.80",0,"4,972.80",05/11/2018
Bright Start Daycare Stanmore,Voluntary Organisations TPP,Dsg Nursery Educ Grant 3yrs & 4yrs,"8,585.85",0,"8,585.85",06/11/2018
Bright Start Daycare Stanmore,Voluntary Organisations TPP,EY 3&4 YO Additional 15 Hours,"11,111.10",0,"11,111.10",06/11/2018
Bright Start Daycare Stanmore,Voluntary Organisations TPP,Dsg Nursery Educ Grant 3yrs & 4yrs,700.35,0,700.35,20/11/2018
Bright Start Daycare Stanmore,Voluntary Organisations TPP,EY 3&4 YO Additional 15 Hours,700.35,0,700.35,20/11/2018
Bristol City Council,Respite Costs,Long Term Care,"-3,626.64",0,"-3,626.64",06/11/2018
Bristol City Council,Respite Costs,Long Term Care,"3,626.64",0,"3,626.64",06/11/2018
Bristow &Sutor Clients Account No.3,Signers/Interpreters Fees,Long Term Care Management,"3,626.64",0,"3,626.64",08/11/2018
British Safety Council,Staff training (General),Early Support Centre - Wealdstone Centre,"1,392.65",278.53,"1,671.18",10/10/2018
British Trust Conservation Voluntee,Other Agencies/Local Authorities 3rd Party Payment,Section 106,"-1,050.00",-210,"-1,260.00",22/11/2018
British Trust Conservation Voluntee,Other Agencies/Local Authorities 3rd Party Payment,Section 106,"1,050.00",210,"1,260.00",22/11/2018
British Trust Conservation Voluntee,Other Agencies/Local Authorities 3rd Party Payment,Section 106,700,140,840,28/11/2018
Brook House (Barchester Healthcare),Adults & Social - Client Charges,Long Term Care,-611.59,0,-611.59,24/10/2018
Brook House (Barchester Healthcare),Recovery of Costs (External - Non Vatable),Long Term Care,-700.42,0,-700.42,24/10/2018
Brook House (Barchester Healthcare),Nursing Care,Long Term Care,"3,936.16",0,"3,936.16",24/10/2018
Brook House (Barchester Healthcare),Residential Placements,Long Term Care,"4,383.84",0,"4,383.84",24/10/2018
Brook House (Barchester Healthcare),Adults & Social - Client Charges,Long Term Care,-611.59,0,-611.59,24/10/2018
Brook House (Barchester Healthcare),Nursing Care,Long Term Care,"3,809.18",0,"3,809.18",26/11/2018
Brook House (Barchester Healthcare),Recovery of Costs (External - Non Vatable),Long Term Care,-677.83,0,-677.83,26/11/2018
Brook House (Barchester Healthcare),Adults & Social - Client Charges,Long Term Care,-591.85,0,-591.85,26/11/2018
Brook House (Barchester Healthcare),Residential Placements,Long Term Care,"4,242.43",0,"4,242.43",26/11/2018
Brook House (Barchester Healthcare),Adults & Social - Client Charges,Long Term Care,-591.85,0,-591.85,26/11/2018
Brook House (Barchester Healthcare),Adults & Social - Client Charges,Long Term Care,-611.59,0,-611.59,19/12/2018
Brook House (Barchester Healthcare),Recovery of Costs (External - Non Vatable),Long Term Care,-700.42,0,-700.42,19/12/2018
Brook House (Barchester Healthcare),Nursing Care,Long Term Care,"3,936.16",0,"3,936.16",19/12/2018
Brook House (Barchester Healthcare),Residential Placements,Long Term Care,"4,383.84",0,"4,383.84",19/12/2018
Brook House (Barchester Healthcare),Adults & Social - Client Charges,Long Term Care,-611.59,0,-611.59,19/12/2018
Brookson 5664P Ltd,Consultants Fees,Adult Transformation Programme,"21,700.00","4,340.00","26,040.00",23/11/2018
Brooksway Ltd,Accommodation,Housing Needs,"1,000.00",0,"1,000.00",07/11/2018
Brooksway Ltd,Accommodation,Housing Needs,110.52,0,110.52,07/11/2018
Browne Jacobson LLP,Legal Fees/Advocacy,Liability Insurance,810,162,972,24/10/2018
Browne Jacobson LLP,Legal Fees/Advocacy,Liability Insurance,950,190,"1,140.00",24/10/2018
Browne Jacobson LLP,Legal Fees/Advocacy,Liability Insurance,"1,025.00",205,"1,230.00",24/10/2018
Browne Jacobson LLP,Legal Fees/Advocacy,Liability Insurance,"1,965.25",393.05,"2,358.30",24/10/2018
Browne Jacobson LLP,Legal Fees/Advocacy,Liability Insurance,"2,046.00",409.2,"2,455.20",13/11/2018
BT,"Equipment Lease, Purchase, Maintenance and Repair",Procurement Bt,"33,194.78","6,638.96","39,833.74",08/10/2018
BT,"Equipment Lease, Purchase, Maintenance and Repair",Procurement Bt,"4,424.36",884.87,"5,309.23",05/11/2018
BT,"Equipment Lease, Purchase, Maintenance and Repair",Procurement Bt,"-8,726.51","-1,745.30","-10,471.81",22/11/2018
BT,"Equipment Lease, Purchase, Maintenance and Repair",Procurement Bt,"8,726.51","1,745.30","10,471.81",22/11/2018
BT,"Equipment Lease, Purchase, Maintenance and Repair",Procurement Bt,"22,224.35","4,444.87","26,669.22",07/12/2018
BT OpenReach,"Equipment Lease, Purchase, Maintenance and Repair",Depot Development,"12,415.10","2,483.02","14,898.12",03/10/2018
BT OpenReach,"Equipment Lease, Purchase, Maintenance and Repair",Bus Priority Schemes,"69,178.45","13,835.69","83,014.14",02/11/2018
BT OpenReach,Other Professional Fees,High Rd Harrow Weald,"3,520.80",704.16,"4,224.96",11/10/2018
BT OpenReach,"Equipment Lease, Purchase, Maintenance and Repair",High Rd Harrow Weald,"54,806.67","10,961.33","65,768.00",30/10/2018
Bubar Montessori Nursery,Voluntary Organisations TPP,Dsg Nursery Educ Grant 3yrs & 4yrs,"8,467.20",0,"8,467.20",06/11/2018
Bubsy Pre-School,Voluntary Organisations TPP,EY 3&4 YO Additional 15 Hours,"2,116.60",0,"2,116.60",13/11/2018
Bubsy Pre-School,Voluntary Organisations TPP,Dsg Nursery Educ Grant 3yrs & 4yrs,"2,863.35",0,"2,863.35",13/11/2018
Bubsy Pre-School,Voluntary Organisations TPP,2 year old offer,"3,729.60",0,"3,729.60",13/11/2018
Buckingham First Nursery,Voluntary Organisations TPP,EY SEN Inclusion Fund,700,0,700,02/11/2018
Buckingham First Nursery,Voluntary Organisations TPP,2 year old offer,"2,486.40",0,"2,486.40",05/11/2018
Buckingham First Nursery,Voluntary Organisations TPP,Dsg Nursery Educ Grant 3yrs & 4yrs,"2,343.60",0,"2,343.60",06/11/2018
Buckingham First Nursery,Voluntary Organisations TPP,EY 3&4 YO Additional 15 Hours,"8,164.80",0,"8,164.80",06/11/2018
Buckingham Montessori School,Voluntary Organisations TPP,2 year old offer,"13,231.20",0,"13,231.20",05/11/2018
Buckingham Montessori School,Voluntary Organisations TPP,EY 3&4 YO Additional 15 Hours,"21,168.00",0,"21,168.00",06/11/2018
Buckingham Montessori School,Voluntary Organisations TPP,Dsg Nursery Educ Grant 3yrs & 4yrs,"33,642.00",0,"33,642.00",06/11/2018
Buckinghamshire County Council,Stationery & In House Printing,Barnet Council Legal Services,99.77,19.95,119.72,03/10/2018
Buckinghamshire County Council,Stationery & In House Printing,Bucks County Council Legal Services,"1,447.31",289.46,"1,736.77",03/10/2018
Buckinghamshire County Council,Stationery & In House Printing,Joint Legal Services,95,19,114,03/10/2018
Buckinghamshire County Council,Other Professional Fees,Personnel Management,"303,000.00","60,600.00","363,600.00",17/10/2018
Buckinghamshire County Council,Stationery & In House Printing,Bucks County Council Legal Services,"1,850.79",370.16,"2,220.95",29/10/2018
Buckinghamshire County Council,Stationery & In House Printing,Joint Legal Services,95,19,114,29/10/2018
Buckinghamshire County Council,Stationery & In House Printing,Joint Legal Services,895.45,0,895.45,31/10/2018
Buckinghamshire County Council,Stationery & In House Printing,Hounslow Inter Authority Agreement,3.5,0.7,4.2,05/12/2018
Buckinghamshire County Council,Stationery & In House Printing,Bucks County Council Legal Services,"1,429.84",285.97,"1,715.81",05/12/2018
Buckinghamshire County Council,Other Professional Fees,Personnel Management,"5,472.04","1,094.41","6,566.45",18/12/2018
Buckinghamshire County Council,Stationery & In House Printing,Barnet Council Legal Services,8.34,1.67,10.01,20/12/2018
Buckinghamshire County Council,Stationery & In House Printing,Bucks County Council Legal Services,"1,414.93",282.99,"1,697.92",20/12/2018
Buckinghamshire County Council,Stationery & In House Printing,Joint Legal Services,95,19,114,20/12/2018
Buckinghamshire County Council,Stationery & In House Printing,Divisional Director Targeted Services,9.77,1.95,11.72,03/10/2018
Buckinghamshire County Council,Other Professional Fees,Childrens Strategic Management,880,176,"1,056.00",19/11/2018
Bud Rescue & Recovery Ltd,Vehicle Hire Costs,Highway Programme -Renew & replace roads,-617.5,-123.5,-741,12/10/2018
Bud Rescue & Recovery Ltd,Vehicle Hire Costs,Highway Programme -Renew & replace roads,617.5,123.5,741,12/10/2018
Buildtrust Ltd,Decoration Programme,Facilities Management,"1,161.37",232.27,"1,393.64",31/10/2018
Buildtrust Ltd,Landlord Repairs Exit Costs,Newton Farm Roof,"75,619.99","15,124.00","90,743.99",11/12/2018
Buildtrust Ltd,Landlord Repairs Exit Costs,Welldon Boiler,"5,754.27","1,150.85","6,905.12",05/12/2018
Buildtrust Ltd,Landlord Repairs Exit Costs,Library - Priority Health & Safety Works,"11,074.82","2,214.96","13,289.78",12/12/2018
Buildtrust Ltd,Landlord Repairs Exit Costs,TFM,"3,930.04",786.01,"4,716.05",17/10/2018
Buildtrust Ltd,Landlord Repairs Exit Costs,TFM,"4,535.09",907.02,"5,442.11",13/12/2018
Buildtrust Ltd,Landlord Repairs Exit Costs,TFM,"1,554.85",310.97,"1,865.82",09/10/2018
Buildtrust Ltd,Landlord Repairs Exit Costs,TFM,"4,523.44",904.69,"5,428.13",09/10/2018
Buildtrust Ltd,Landlord Repairs Exit Costs,TFM,"9,875.66","1,975.13","11,850.79",04/12/2018
Buildtrust Ltd,Landlord Repairs Exit Costs,TFM,855.49,171.1,"1,026.59",10/12/2018
Buildtrust Ltd,Landlord Repairs Exit Costs,TFM,"1,815.46",363.09,"2,178.55",12/12/2018
Buildtrust Ltd,Landlord Repairs Exit Costs,TFM,"2,694.56",538.91,"3,233.47",12/12/2018
Bumble Bees Childcare Limited,Voluntary Organisations TPP,2 year old offer,621.6,0,621.6,05/11/2018
Bumble Bees Childcare Limited,Voluntary Organisations TPP,Dsg Nursery Educ Grant 3yrs & 4yrs,505.05,0,505.05,06/11/2018
Bumble Bees Childcare Limited,Voluntary Organisations TPP,EY 3&4 YO Additional 15 Hours,"1,010.10",0,"1,010.10",06/11/2018
Bumble Bees Childcare Limited,Voluntary Organisations TPP,EY 3&4 YO Additional 15 Hours,"7,408.80",0,"7,408.80",06/11/2018
Bumble Bees Childcare Limited,Voluntary Organisations TPP,Dsg Nursery Educ Grant 3yrs & 4yrs,"7,938.00",0,"7,938.00",06/11/2018
Bunzl Cleaning & Hygiene Supplies,Cleaning and Domestic Materials,Bedford House,430.31,86.06,516.37,29/10/2018
Bunzl Cleaning & Hygiene Supplies,Cleaning and Domestic Materials,Bedford House,430.31,86.06,516.37,03/12/2018
Bupa Care Homes,Nursing Care,Long Term Care,"-2,521.29",0,"-2,521.29",24/10/2018
Bupa Care Homes,Recovery of Costs (External - Non Vatable),Long Term Care,564.86,0,564.86,24/10/2018
Bupa Care Homes,Nursing Care,Long Term Care,148.18,0,148.18,24/10/2018
Bupa Care Homes,Adults & Social - Client Charges,Long Term Care,504.18,0,504.18,24/10/2018
Bupa Care Homes,Nursing Care,Long Term Care,"3,126.39",0,"3,126.39",24/10/2018
Bupa Care Homes,Recovery of Costs (External - Non Vatable),Long Term Care,-700.42,0,-700.42,24/10/2018
Bupa Care Homes,Adults & Social - Client Charges,Long Term Care,-607.16,0,-607.16,24/10/2018
Bupa Care Homes,Nursing Care,Long Term Care,"3,183.88",0,"3,183.88",24/10/2018
Bupa Care Homes,Recovery of Costs (External - Non Vatable),Long Term Care,-700.42,0,-700.42,24/10/2018
Bupa Care Homes,Adults & Social - Client Charges,Long Term Care,-512.7,0,-512.7,24/10/2018
Bupa Care Homes,Adults & Social - Client Charges,Long Term Care,-787.49,0,-787.49,24/10/2018
Bupa Care Homes,Nursing Care,Long Term Care,"4,210.94",0,"4,210.94",24/10/2018
Bupa Care Homes,Recovery of Costs (External - Non Vatable),Long Term Care,-926.36,0,-926.36,24/10/2018
Bupa Care Homes,Nursing Care,Long Term Care,"3,025.55",0,"3,025.55",26/11/2018
Bupa Care Homes,Recovery of Costs (External - Non Vatable),Long Term Care,-677.83,0,-677.83,26/11/2018
Bupa Care Homes,Adults & Social - Client Charges,Long Term Care,-587.57,0,-587.57,26/11/2018
Bupa Care Homes,Adults & Social - Client Charges,Long Term Care,-576.22,0,-576.22,26/11/2018
Bupa Care Homes,Nursing Care,Long Term Care,"3,081.17",0,"3,081.17",26/11/2018
Bupa Care Homes,Recovery of Costs (External - Non Vatable),Long Term Care,-677.83,0,-677.83,26/11/2018
Bupa Care Homes,Nursing Care,Long Term Care,"3,081.17",0,"3,081.17",26/11/2018
Bupa Care Homes,Recovery of Costs (External - Non Vatable),Long Term Care,-677.83,0,-677.83,26/11/2018
Bupa Care Homes,Adults & Social - Client Charges,Long Term Care,-496.15,0,-496.15,26/11/2018
Bupa Care Homes,Adults & Social - Client Charges,Long Term Care,"1,363.71",0,"1,363.71",19/12/2018
Bupa Care Homes,Nursing Care,Long Term Care,"3,183.88",0,"3,183.88",19/12/2018
Bupa Care Homes,Recovery of Costs (External - Non Vatable),Long Term Care,-700.42,0,-700.42,19/12/2018
Bupa Care Homes,Adults & Social - Client Charges,Long Term Care,"-2,639.03",0,"-2,639.03",19/12/2018
Bupa Care Homes,Nursing Care,Long Term Care,"3,183.88",0,"3,183.88",19/12/2018
Bupa Care Homes,Recovery of Costs (External - Non Vatable),Long Term Care,-700.42,0,-700.42,19/12/2018
Bupa Care Homes,Adults & Social - Client Charges,Long Term Care,-512.7,0,-512.7,19/12/2018
Bupa Care Homes,Nursing Care,Long Term Care,"3,887.11",0,"3,887.11",19/12/2018
Bupa Care Homes,Recovery of Costs (External - Non Vatable),Long Term Care,-700.42,0,-700.42,19/12/2018
Bupa Care Homes,Adults & Social - Client Charges,Long Term Care,-607.16,0,-607.16,19/12/2018
Bupa Care Homes,Recovery of Costs (External - Non Vatable),Long Term Care,"-1,897.92",0,"-1,897.92",24/10/2018
Bupa Care Homes,Adults & Social - Client Charges,Long Term Care,"-3,182.68",0,"-3,182.68",24/10/2018
Bupa Care Homes,Nursing Care,Long Term Care,"14,400.00",0,"14,400.00",24/10/2018
Bupa Care Homes,Nursing Care,Long Term Care,"-5,400.00",0,"-5,400.00",24/10/2018
BUPA Tenterden House,Nursing Care,Long Term Care,"1,882.14",0,"1,882.14",24/10/2018
BUPA Tenterden House,Nursing Care,Long Term Care,"2,202.18",0,"2,202.18",27/11/2018
BUPA Tenterden House,Nursing Care,Long Term Care,"1,959.29",0,"1,959.29",19/12/2018
Bushey House Beaumont,Residential Placements,Long Term Care,"2,063.71",0,"2,063.71",24/10/2018
Bushey House Beaumont,Adults & Social - Client Charges,Long Term Care,-702.84,0,-702.84,24/10/2018
Bushey Meads School,Residential Schools,Dsg Outborough Placement-Fees,"1,876.00",0,"1,876.00",12/12/2018
Bushey Meads School,Residential Schools,Dsg Outborough Placement-Fees,"1,876.00",0,"1,876.00",19/12/2018
Bushey Meads School,Residential Schools,Dsg Outborough Placement-Fees,"1,876.00",0,"1,876.00",19/12/2018
Bushey Meads School,Residential Schools,Dsg Outborough Placement-Fees,"1,876.00",0,"1,876.00",19/12/2018
Bushey Meads School,Residential Schools,Dsg Outborough Placement-Fees,"1,876.00",0,"1,876.00",19/12/2018
Busy Bees Pre-School,Voluntary Organisations TPP,EY SEN Inclusion Fund,"1,400.00",0,"1,400.00",02/11/2018
Busy Bees Pre-School,Voluntary Organisations TPP,2 year old offer,"8,702.40",0,"8,702.40",05/11/2018
Busy Bees Pre-School,Voluntary Organisations TPP,EY 3&4 YO Additional 15 Hours,"3,175.20",0,"3,175.20",06/11/2018
Busy Bees Pre-School,Voluntary Organisations TPP,Dsg Nursery Educ Grant 3yrs & 4yrs,"4,233.60",0,"4,233.60",06/11/2018
Buzy Bees Montessori School,Voluntary Organisations TPP,2 year old offer,"8,495.20",0,"8,495.20",05/11/2018
Buzy Bees Montessori School,Voluntary Organisations TPP,EY 3&4 YO Additional 15 Hours,"7,408.80",0,"7,408.80",06/11/2018
Buzy Bees Montessori School,Voluntary Organisations TPP,Dsg Nursery Educ Grant 3yrs & 4yrs,"18,980.64",0,"18,980.64",06/11/2018
Byjama Ltd,Private Contractors for Back Office Services,Street Cleansing,"1,500.00",300,"1,800.00",29/10/2018
C & K Healthcare Ltd,Residential Placements,Long Term Care,"-5,830.00",0,"-5,830.00",24/10/2018
C & K Healthcare Ltd,Adults & Social - Client Charges,Long Term Care,"1,432.37",0,"1,432.37",24/10/2018
C & K Healthcare Ltd,Residential Placements,Long Term Care,"2,332.00",0,"2,332.00",24/10/2018
C & K Healthcare Ltd,Adults & Social - Client Charges,Interim Funding,"-1,247.35",0,"-1,247.35",24/10/2018
C & K Healthcare Ltd,Residential Placements,Interim Funding,"2,391.43",0,"2,391.43",24/10/2018
C & K Healthcare Ltd,Residential Placements,Long Term Care,"3,197.43",0,"3,197.43",24/10/2018
C & K Healthcare Ltd,Adults & Social - Client Charges,Long Term Care,-356.28,0,-356.28,24/10/2018
C & K Healthcare Ltd,Adults & Social - Client Charges,Interim Funding,"-1,207.12",0,"-1,207.12",26/11/2018
C & K Healthcare Ltd,Residential Placements,Interim Funding,"2,314.28",0,"2,314.28",26/11/2018
C & K Healthcare Ltd,Residential Placements,Long Term Care,"3,094.28",0,"3,094.28",26/11/2018
C & K Healthcare Ltd,Adults & Social - Client Charges,Long Term Care,-344.78,0,-344.78,26/11/2018
C & K Healthcare Ltd,Adults & Social - Client Charges,Interim Funding,"-1,247.35",0,"-1,247.35",19/12/2018
C & K Healthcare Ltd,Residential Placements,Interim Funding,"2,391.43",0,"2,391.43",19/12/2018
C & K Healthcare Ltd,Residential Placements,Long Term Care,"3,197.43",0,"3,197.43",19/12/2018
C & K Healthcare Ltd,Adults & Social - Client Charges,Long Term Care,-356.28,0,-356.28,19/12/2018
C E Flynn Builders & Decorators,Building Maintenance Exit Costs,Aids and Adaptations,"11,385.00","2,277.00","13,662.00",23/11/2018
C E Flynn Builders & Decorators,Landlord Repairs Exit Costs,Aids and Adaptations,"7,605.00","1,521.00","9,126.00",04/12/2018
C.H.O.I.C.E,Residential Placements,Long Term Team - LD,"8,635.71",0,"8,635.71",24/10/2018
C.H.O.I.C.E,Adults & Social - Client Charges,Long Term Team - LD,-452.82,0,-452.82,24/10/2018
C.H.O.I.C.E,Residential Placements,Long Term Team - LD,"8,357.15",0,"8,357.15",26/11/2018
C.H.O.I.C.E,Adults & Social - Client Charges,Long Term Team - LD,-438.22,0,-438.22,26/11/2018
C.H.O.I.C.E,Residential Placements,Long Term Team - LD,"8,635.71",0,"8,635.71",19/12/2018
C.H.O.I.C.E,Adults & Social - Client Charges,Long Term Team - LD,-452.82,0,-452.82,19/12/2018
Cadent Gas Ltd,Gas,Byron Quarter,907,181.4,"1,088.40",17/10/2018
Cadent Gas Ltd,Gas,Vernon Lodge,797,159.4,956.4,07/12/2018
Caitlin Ferris,Legal Fees/Advocacy,Bucks County Council Legal Services,825,165,990,09/10/2018
Caitlin Ferris,Legal Fees/Advocacy,Hounslow Inter Authority Agreement,"2,650.00",530,"3,180.00",07/11/2018
Caitlin Ferris,Legal Fees/Advocacy,Barnet Council Legal Services,683,136.6,819.6,08/11/2018
Caitlin Ferris,Legal Fees/Advocacy,Barnet Council Legal Services,550,110,660,21/11/2018
Callcredit Limited,"Computer Software, Purchase and Maintenance",Hsg & Com Chg Ben Adm,"5,000.75","1,000.15","6,000.90",11/10/2018
Callcredit Limited,"Computer Software, Purchase and Maintenance",Corporate Anti Fraud Team,"4,500.00",900,"5,400.00",20/12/2018
CALM Training Services,Consultants Fees,In House Provided Services Management,"1,870.00",374,"2,244.00",11/12/2018
Cambian Group,Residential Placements,Long Term Team - LD,"2,037.14",0,"2,037.14",24/10/2018
Cambian Group,Adults & Social - Client Charges,Long Term Team - LD,-492.82,0,-492.82,24/10/2018
Cambian Group,Residential Placements,Long Term Team - LD,"3,372.80",0,"3,372.80",24/10/2018
Cambian Group,Residential Placements,Long Term Team - LD,"3,264.00",0,"3,264.00",26/11/2018
Cambian Group,Adults & Social - Client Charges,Long Term Team - LD,-438.22,0,-438.22,26/11/2018
Cambian Group,Residential Placements,Long Term Team - LD,"1,971.43",0,"1,971.43",26/11/2018
Cambian Group,Residential Placements,Long Term Team - LD,"2,037.14",0,"2,037.14",19/12/2018
Cambian Group,Adults & Social - Client Charges,Long Term Team - LD,-452.82,0,-452.82,19/12/2018
Cambian Group,Residential Placements,Long Term Team - LD,"3,372.80",0,"3,372.80",19/12/2018
Cameron Makenzie Bathrooms by Desig,Landlord Repairs Exit Costs,Better Care Fund- DFG,"8,800.00",0,"8,800.00",10/10/2018
Cameron Makenzie Bathrooms by Desig,Landlord Repairs Exit Costs,Better Care Fund- DFG,"6,100.00",0,"6,100.00",14/11/2018
Cameron Makenzie Bathrooms by Desig,Landlord Repairs Exit Costs,Better Care Fund- DFG,"1,600.00",0,"1,600.00",07/12/2018
Cameron Makenzie Bathrooms by Desig,Landlord Repairs Exit Costs,Better Care Fund- DFG,"1,030.00",206,"1,236.00",19/12/2018
Cameron Makenzie Bathrooms by Desig,Landlord Repairs Exit Costs,Aids and Adaptations,"5,800.00","1,160.00","6,960.00",05/11/2018
Cameron Makenzie Bathrooms by Desig,Landlord Repairs Exit Costs,Aids and Adaptations,"6,100.00","1,220.00","7,320.00",21/12/2018
Camphill Devon Community Ltd,Residential Placements,Long Term Team - LD,"2,110.04",0,"2,110.04",24/10/2018
Camphill Devon Community Ltd,Adults & Social - Client Charges,Long Term Team - LD,-380.19,0,-380.19,24/10/2018
Camphill Devon Community Ltd,Residential Placements,Long Term Team - LD,"2,041.97",0,"2,041.97",26/11/2018
Camphill Devon Community Ltd,Adults & Social - Client Charges,Long Term Team - LD,-367.93,0,-367.93,26/11/2018
Camphill Devon Community Ltd,Residential Placements,Long Term Team - LD,"2,110.04",0,"2,110.04",19/12/2018
Camphill Devon Community Ltd,Adults & Social - Client Charges,Long Term Team - LD,-380.19,0,-380.19,19/12/2018
Camphill Village Trust,Supptd Accommodation for Social Care Clients,Long Term Care,"4,455.00",0,"4,455.00",17/10/2018
Camphill Village Trust,Adults & Social - Net P.B.'s,Long Term Care,-202.14,0,-202.14,17/10/2018
Camphill Village Trust,Adults & Social - Net P.B.'s,Long Term Care,-149.2,0,-149.2,26/10/2018
Camphill Village Trust,Supptd Accommodation for Social Care Clients,Long Term Care,"3,288.21",0,"3,288.21",26/10/2018
Camphill Village Trust,Adults & Social - Net P.B.'s,Long Term Care,-144.38,0,-144.38,27/11/2018
Camphill Village Trust,Supptd Accommodation for Social Care Clients,Long Term Care,"3,182.15",0,"3,182.15",27/11/2018
Camphill Village Trust,Adults & Social - Net P.B.'s,Long Term Care,-149.2,0,-149.2,19/12/2018
Camphill Village Trust,Supptd Accommodation for Social Care Clients,Long Term Care,"3,288.21",0,"3,288.21",19/12/2018
Camplin Bianco Comemrcial Property,Consultants Fees,Investment Properties Project,"28,000.00","5,600.00","33,600.00",22/11/2018
Cannon Barn Montessori School,Voluntary Organisations TPP,Dsg Nursery Educ Grant 3yrs & 4yrs,"41,277.60",0,"41,277.60",13/11/2018
Cannon Lane Pre-School,Voluntary Organisations TPP,EY SEN Inclusion Fund,"1,009.39",0,"1,009.39",31/10/2018
Cannon Lane Pre-School,Voluntary Organisations TPP,2 year old offer,621.6,0,621.6,05/11/2018
Cannon Lane Pre-School,Voluntary Organisations TPP,Dsg Nursery Educ Grant 3yrs & 4yrs,"19,973.52",0,"19,973.52",06/11/2018
Canons Day Nursery,Voluntary Organisations TPP,2 year old offer,"11,632.80",0,"11,632.80",05/11/2018
Canons Day Nursery,Voluntary Organisations TPP,EY 3&4 YO Additional 15 Hours,"5,292.00",0,"5,292.00",06/11/2018
Canons Day Nursery,Voluntary Organisations TPP,Dsg Nursery Educ Grant 3yrs & 4yrs,"6,879.60",0,"6,879.60",06/11/2018
Canons Day Nursery,Voluntary Organisations TPP,EY SEN Inclusion Fund,"1,400.00",0,"1,400.00",14/11/2018
Canons High School,Grants and Subscriptions,Harrow Academies Costed Statements,"32,995.10",0,"32,995.10",03/10/2018
Capita Business Services Ltd,Consultants Fees,Revenues - Dso,"70,000.00","14,000.00","84,000.00",24/10/2018
Capita Business Services Ltd,Consultants Fees,Hsg & Com Chg Ben Adm,"80,000.00","16,000.00","96,000.00",24/10/2018
Capita Business Services Ltd,"Computer Software, Purchase and Maintenance",Performance,450,90,540,26/10/2018
Capita Business Services Ltd,"Computer Software, Purchase and Maintenance",CS Licences,"19,850.00","3,970.00","23,820.00",29/11/2018
Capita Business Travel Ltd,Travel Expenses (Staff),Council Business Travel,"3,716.72",0,"3,716.72",08/10/2018
Capita Business Travel Ltd,Travel Expenses (Staff),Council Business Travel,7.5,1.5,9,02/11/2018
Capita Business Travel Ltd,Travel Expenses (Staff),Council Business Travel,"6,045.41",0,"6,045.41",02/11/2018
Capita Business Travel Ltd,Travel Expenses (Staff),Council Business Travel,7.5,1.5,9,03/12/2018
Capita Business Travel Ltd,Travel Expenses (Staff),Council Business Travel,"4,059.76",0,"4,059.76",03/12/2018
Capita Business Travel-Hotels,Travel Expenses (Staff),Council Business Travel,485.19,97.04,582.23,21/11/2018
Capita Resourcing Ltd,Agency Staff,CRB,"1,849.00",369.8,"2,218.80",09/10/2018
Capita Resourcing Ltd,Agency Staff,CRB,"10,428.00",0,"10,428.00",09/10/2018
Capita Resourcing Ltd,Agency Staff,CRB,"2,086.00",417.2,"2,503.20",15/11/2018
Capita Resourcing Ltd,Agency Staff,CRB,"9,924.00",0,"9,924.00",15/11/2018
Capita Resourcing Ltd,Agency Staff,CRB,"1,669.00",333.8,"2,002.80",11/12/2018
Capita Resourcing Ltd,Agency Staff,CRB,"7,934.00",0,"7,934.00",11/12/2018
Capital Count,"Private Contractors, Third Party Payments",Public Transport,"4,500.00",900,"5,400.00",22/10/2018
Capital Count,"Private Contractors, Third Party Payments",Public Transport,"4,800.00",960,"5,760.00",19/12/2018
Capital Home Care,Domiciliary Care,Personalisation,512.25,0,512.25,19/10/2018
Capital Home Care,Domiciliary Care,Personalisation,517.05,0,517.05,19/10/2018
Capital Home Care,Domiciliary Care,Personalisation,526.35,0,526.35,19/10/2018
Capital Home Care,Domiciliary Care,Personalisation,526.35,0,526.35,19/10/2018
Capital Home Care,Domiciliary Care,Personalisation,526.35,0,526.35,19/10/2018
Capital Home Care,Domiciliary Care,Personalisation,526.35,0,526.35,19/10/2018
Capital Home Care,Domiciliary Care,Personalisation,526.35,0,526.35,19/10/2018
Capital Home Care,Domiciliary Care,Self funders Personalisation - Adult Soc,531.15,0,531.15,19/10/2018
Capital Home Care,Domiciliary Care,Personalisation - PD,545.25,0,545.25,19/10/2018
Capital Home Care,Domiciliary Care,Personalisation,564,0,564,19/10/2018
Capital Home Care,Domiciliary Care,Self funders Personalisation - Adult Soc,592.2,0,592.2,19/10/2018
Capital Home Care,Domiciliary Care,Personalisation,592.2,0,592.2,19/10/2018
Capital Home Care,Domiciliary Care,Personalisation,610.95,0,610.95,19/10/2018
Capital Home Care,Domiciliary Care,Personalisation,639.15,0,639.15,19/10/2018
Capital Home Care,Domiciliary Care,Personalisation,653.25,0,653.25,19/10/2018
Capital Home Care,Domiciliary Care,Personalisation,658.05,0,658.05,19/10/2018
Capital Home Care,Domiciliary Care,Personalisation,658.05,0,658.05,19/10/2018
Capital Home Care,Domiciliary Care,Personalisation,658.05,0,658.05,19/10/2018
Capital Home Care,Domiciliary Care,Personalisation,658.05,0,658.05,19/10/2018
Capital Home Care,Domiciliary Care,Personalisation,662.7,0,662.7,19/10/2018
Capital Home Care,Domiciliary Care,Personalisation,676.8,0,676.8,19/10/2018
Capital Home Care,Domiciliary Care,Personalisation,705,0,705,19/10/2018
Capital Home Care,Domiciliary Care,Personalisation,705,0,705,19/10/2018
Capital Home Care,Domiciliary Care,Personalisation,714.45,0,714.45,19/10/2018
Capital Home Care,Domiciliary Care,Self funders Personalisation - Adult Soc,780.15,0,780.15,19/10/2018
Capital Home Care,Domiciliary Care,Personalisation,789.6,0,789.6,19/10/2018
Capital Home Care,Domiciliary Care,Personalisation,789.6,0,789.6,19/10/2018
Capital Home Care,Domiciliary Care,Personalisation,817.8,0,817.8,19/10/2018
Capital Home Care,Domiciliary Care,Personalisation,846,0,846,19/10/2018
Capital Home Care,Domiciliary Care,Personalisation,855.45,0,855.45,19/10/2018
Capital Home Care,Domiciliary Care,Personalisation,855.45,0,855.45,19/10/2018
Capital Home Care,Domiciliary Care,Personalisation,921.15,0,921.15,19/10/2018
Capital Home Care,Domiciliary Care,Personalisation - PD,987,0,987,19/10/2018
Capital Home Care,Domiciliary Care,Personalisation,"1,015.20",0,"1,015.20",19/10/2018
Capital Home Care,Domiciliary Care,Personalisation,"1,052.85",0,"1,052.85",19/10/2018
Capital Home Care,Domiciliary Care,Personalisation,"1,099.90",0,"1,099.90",19/10/2018
Capital Home Care,Domiciliary Care,Personalisation,"1,142.10",0,"1,142.10",19/10/2018
Capital Home Care,Domiciliary Care,Personalisation,"1,184.40",0,"1,184.40",19/10/2018
Capital Home Care,Domiciliary Care,Personalisation,"1,240.80",0,"1,240.80",19/10/2018
Capital Home Care,Domiciliary Care,Personalisation,"1,297.20",0,"1,297.20",19/10/2018
Capital Home Care,Domiciliary Care,Personalisation,"1,419.45",0,"1,419.45",19/10/2018
Capital Home Care,Domiciliary Care,Personalisation,"1,566.09",0,"1,566.09",19/10/2018
Capital Home Care,Domiciliary Care,Personalisation,"1,579.20",0,"1,579.20",19/10/2018
Capital Home Care,Domiciliary Care,Personalisation,"1,710.75",0,"1,710.75",19/10/2018
Capital Home Care,Domiciliary Care,Personalisation,"1,710.75",0,"1,710.75",19/10/2018
Capital Home Care,Domiciliary Care,Personalisation,"1,776.60",0,"1,776.60",19/10/2018
Capital Home Care,Domiciliary Care,Personalisation - PD,"1,842.45",0,"1,842.45",19/10/2018
Capital Home Care,Domiciliary Care,Personalisation,"1,974.00",0,"1,974.00",19/10/2018
Capital Home Care,Domiciliary Care,Personalisation,"1,974.00",0,"1,974.00",19/10/2018
Capital Home Care,Domiciliary Care,Personalisation,"1,974.00",0,"1,974.00",19/10/2018
Capital Home Care,Domiciliary Care,Personalisation,"2,086.80",0,"2,086.80",19/10/2018
Capital Home Care,Domiciliary Care,Personalisation,"2,105.55",0,"2,105.55",19/10/2018
Capital Home Care,Domiciliary Care,Personalisation,"3,045.04",0,"3,045.04",19/10/2018
Capital Home Care,Domiciliary Care,Personalisation,549.5,0,549.5,12/11/2018
Capital Home Care,Domiciliary Care,Personalisation,549.5,0,549.5,12/11/2018
Capital Home Care,Domiciliary Care,Personalisation,549.5,0,549.5,12/11/2018
Capital Home Care,Domiciliary Care,Personalisation,549.5,0,549.5,12/11/2018
Capital Home Care,Domiciliary Care,Personalisation,566.72,0,566.72,12/11/2018
Capital Home Care,Domiciliary Care,Personalisation - PD,569.22,0,569.22,12/11/2018
Capital Home Care,Domiciliary Care,Personalisation,583.94,0,583.94,12/11/2018
Capital Home Care,Domiciliary Care,Personalisation,588.8,0,588.8,12/11/2018
Capital Home Care,Domiciliary Care,Self funders Personalisation - Adult Soc,618.24,0,618.24,12/11/2018
Capital Home Care,Domiciliary Care,Personalisation,618.24,0,618.24,12/11/2018
Capital Home Care,Domiciliary Care,Personalisation,628.1,0,628.1,12/11/2018
Capital Home Care,Domiciliary Care,Personalisation,630.46,0,630.46,12/11/2018
Capital Home Care,Domiciliary Care,Personalisation,662.4,0,662.4,12/11/2018
Capital Home Care,Domiciliary Care,Personalisation,667.26,0,667.26,12/11/2018
Capital Home Care,Domiciliary Care,Self funders Personalisation - Adult Soc,681.98,0,681.98,12/11/2018
Capital Home Care,Domiciliary Care,Personalisation,686.98,0,686.98,12/11/2018
Capital Home Care,Domiciliary Care,Personalisation,686.98,0,686.98,12/11/2018
Capital Home Care,Domiciliary Care,Self funders Personalisation - Adult Soc,706.56,0,706.56,12/11/2018
Capital Home Care,Domiciliary Care,Personalisation,736,0,736,12/11/2018
Capital Home Care,Domiciliary Care,Personalisation,736,0,736,12/11/2018
Capital Home Care,Domiciliary Care,Personalisation,745.86,0,745.86,12/11/2018
Capital Home Care,Domiciliary Care,Personalisation,755.58,0,755.58,12/11/2018
Capital Home Care,Domiciliary Care,Personalisation,765.44,0,765.44,12/11/2018
Capital Home Care,Domiciliary Care,Personalisation,794.88,0,794.88,12/11/2018
Capital Home Care,Domiciliary Care,Self funders Personalisation - Adult Soc,814.46,0,814.46,12/11/2018
Capital Home Care,Domiciliary Care,Personalisation,820.2,0,820.2,12/11/2018
Capital Home Care,Domiciliary Care,Personalisation,824.32,0,824.32,12/11/2018
Capital Home Care,Domiciliary Care,Personalisation,824.32,0,824.32,12/11/2018
Capital Home Care,Domiciliary Care,Personalisation,853.76,0,853.76,12/11/2018
Capital Home Care,Domiciliary Care,Personalisation,883.2,0,883.2,12/11/2018
Capital Home Care,Domiciliary Care,Personalisation,893.06,0,893.06,12/11/2018
Capital Home Care,Domiciliary Care,Personalisation,893.06,0,893.06,12/11/2018
Capital Home Care,Domiciliary Care,Personalisation,951.94,0,951.94,12/11/2018
Capital Home Care,Domiciliary Care,Personalisation,961.66,0,961.66,12/11/2018
Capital Home Care,Domiciliary Care,Personalisation - PD,"1,030.40",0,"1,030.40",12/11/2018
Capital Home Care,Domiciliary Care,Personalisation,"1,059.84",0,"1,059.84",12/11/2018
Capital Home Care,Domiciliary Care,Personalisation,"1,099.14",0,"1,099.14",12/11/2018
Capital Home Care,Domiciliary Care,Personalisation,"1,167.74",0,"1,167.74",12/11/2018
Capital Home Care,Domiciliary Care,Personalisation,"1,236.48",0,"1,236.48",12/11/2018
Capital Home Care,Domiciliary Care,Personalisation,"1,295.36",0,"1,295.36",12/11/2018
Capital Home Care,Domiciliary Care,Personalisation,"1,354.24",0,"1,354.24",12/11/2018
Capital Home Care,Domiciliary Care,Personalisation,"1,373.82",0,"1,373.82",12/11/2018
Capital Home Care,Domiciliary Care,Personalisation,"1,447.65",0,"1,447.65",12/11/2018
Capital Home Care,Domiciliary Care,Personalisation,"1,511.30",0,"1,511.30",12/11/2018
Capital Home Care,Domiciliary Care,Personalisation,"1,634.95",0,"1,634.95",12/11/2018
Capital Home Care,Domiciliary Care,Personalisation,"1,648.64",0,"1,648.64",12/11/2018
Capital Home Care,Domiciliary Care,Personalisation,"1,785.98",0,"1,785.98",12/11/2018
Capital Home Care,Domiciliary Care,Personalisation,"1,785.98",0,"1,785.98",12/11/2018
Capital Home Care,Domiciliary Care,Personalisation - PD,"1,923.46",0,"1,923.46",12/11/2018
Capital Home Care,Domiciliary Care,Personalisation,"1,923.46",0,"1,923.46",12/11/2018
Capital Home Care,Domiciliary Care,Personalisation,"2,060.80",0,"2,060.80",12/11/2018
Capital Home Care,Domiciliary Care,Personalisation,"2,060.80",0,"2,060.80",12/11/2018
Capital Home Care,Domiciliary Care,Personalisation,"2,178.56",0,"2,178.56",12/11/2018
Capital Home Care,Domiciliary Care,Personalisation,"2,198.14",0,"2,198.14",12/11/2018
Capital Home Care,Domiciliary Care,Personalisation,"2,198.14",0,"2,198.14",12/11/2018
Capital Home Care,Domiciliary Care,Personalisation,"3,178.93",0,"3,178.93",12/11/2018
Capital Home Care,Domiciliary Care,Personalisation,"4,342.80",0,"4,342.80",12/11/2018
Capital Home Care,Domiciliary Care,Personalisation,"4,533.76",0,"4,533.76",12/11/2018
Capital Home Care,Domiciliary Care,Children With Disabilities Client Costs,161.7,0,161.7,12/12/2018
Capital Home Care,Domiciliary Care,Children With Disabilities Client Costs,342.3,0,342.3,12/12/2018
Capital Home Care,Domiciliary Care,Children With Disabilities Client Costs,684,0,684,12/12/2018
Capital Home Care,Domiciliary Care,Children With Disabilities Client Costs,720,0,720,12/12/2018
Capital Home Care,Domiciliary Care,Children With Disabilities Client Costs,720,0,720,12/12/2018
Capital Home Care,Domiciliary Care,Children With Disabilities Client Costs,720,0,720,12/12/2018
Capital Home Care,Domiciliary Care,Children With Disabilities Client Costs,720,0,720,12/12/2018
Capital Home Care,Domiciliary Care,Children With Disabilities Client Costs,720,0,720,12/12/2018
Capital Home Care,Domiciliary Care,Children With Disabilities Client Costs,720,0,720,12/12/2018
Capital Home Care,Domiciliary Care,Children With Disabilities Client Costs,720,0,720,12/12/2018
Capital Home Care,Domiciliary Care,Children With Disabilities Client Costs,720,0,720,12/12/2018
Capital Home Care,Domiciliary Care,Children With Disabilities Client Costs,720,0,720,12/12/2018
Capital Home Care,Domiciliary Care,Children With Disabilities Client Costs,756,0,756,12/12/2018
Capital Home Care,Domiciliary Care,Children With Disabilities Client Costs,819,0,819,12/12/2018
Capital Home Care,Domiciliary Care,Children With Disabilities Client Costs,923.76,0,923.76,12/12/2018
Capital Home Care,Domiciliary Care,Children With Disabilities Client Costs,923.76,0,923.76,12/12/2018
Capital Home Care,Domiciliary Care,Children With Disabilities Client Costs,923.76,0,923.76,12/12/2018
Capital Home Care,Domiciliary Care,Children With Disabilities Client Costs,923.76,0,923.76,12/12/2018
Capital Home Care,Domiciliary Care,Children With Disabilities Client Costs,923.76,0,923.76,12/12/2018
Capital Home Care,Domiciliary Care,Children With Disabilities Client Costs,923.76,0,923.76,12/12/2018
Capital Home Care,Domiciliary Care,Children With Disabilities Client Costs,923.76,0,923.76,12/12/2018
Capital Home Care,Domiciliary Care,Children With Disabilities Client Costs,923.76,0,923.76,12/12/2018
Capital Home Care,Domiciliary Care,Children With Disabilities Client Costs,923.76,0,923.76,12/12/2018
Capital Home Care,Domiciliary Care,Children With Disabilities Client Costs,923.76,0,923.76,12/12/2018
Capital Home Care,Domiciliary Care,Children With Disabilities Client Costs,923.76,0,923.76,12/12/2018
Capital Home Care,Domiciliary Care,Children With Disabilities Client Costs,"1,008.00",0,"1,008.00",12/12/2018
Capital Home Care,Domiciliary Care,Children With Disabilities Client Costs,"1,008.00",0,"1,008.00",12/12/2018
Capital Home Care,Domiciliary Care,Children With Disabilities Client Costs,"1,008.00",0,"1,008.00",12/12/2018
Capital Home Care,Domiciliary Care,Children With Disabilities Client Costs,"1,008.00",0,"1,008.00",12/12/2018
Capital Home Care,Domiciliary Care,Children With Disabilities Client Costs,"1,008.00",0,"1,008.00",12/12/2018
Capital Home Care,Domiciliary Care,Children With Disabilities Client Costs,"1,008.00",0,"1,008.00",12/12/2018
Capital Home Care,Domiciliary Care,Children With Disabilities Client Costs,"1,008.00",0,"1,008.00",12/12/2018
Capital Home Care,Domiciliary Care,Children With Disabilities Client Costs,"1,008.00",0,"1,008.00",12/12/2018
Capital Home Care,Domiciliary Care,Children With Disabilities Client Costs,"1,008.00",0,"1,008.00",12/12/2018
Capital Home Care,Domiciliary Care,Children With Disabilities Client Costs,"1,008.00",0,"1,008.00",12/12/2018
Capital Home Care,Domiciliary Care,Children With Disabilities Client Costs,"1,008.00",0,"1,008.00",12/12/2018
Capital Home Care,Domiciliary Care,Children With Disabilities Client Costs,"1,008.00",0,"1,008.00",12/12/2018
Capital Home Care,Domiciliary Care,Children With Disabilities Client Costs,"1,008.00",0,"1,008.00",12/12/2018
Capital Home Care,Domiciliary Care,Children With Disabilities Client Costs,953.55,0,953.55,12/12/2018
Capital Home Care,Domiciliary Care,Children With Disabilities Client Costs,450.45,0,450.45,12/12/2018
Capital Home Care,Domiciliary Care,Children With Disabilities Client Costs,462,0,462,12/12/2018
Capital Home Care,Domiciliary Care,Children With Disabilities Client Costs,978,0,978,12/12/2018
Capital Home Care,Domiciliary Care,Children With Disabilities Client Costs,462,0,462,12/12/2018
Capital Home Care,Domiciliary Care,Children With Disabilities Client Costs,978,0,978,12/12/2018
Capital Home Care,Domiciliary Care,Children With Disabilities Client Costs,978,0,978,12/12/2018
Capital Home Care,Domiciliary Care,Children With Disabilities Client Costs,462,0,462,12/12/2018
Capital Home Care,Domiciliary Care,Children With Disabilities Client Costs,978,0,978,12/12/2018
Capital Home Care,Domiciliary Care,Children With Disabilities Client Costs,462,0,462,12/12/2018
Capital Home Care,Domiciliary Care,Children With Disabilities Client Costs,978,0,978,12/12/2018
Capital Home Care,Domiciliary Care,Children With Disabilities Client Costs,462,0,462,12/12/2018
Capital Home Care,Domiciliary Care,Children With Disabilities Client Costs,462,0,462,12/12/2018
Capital Home Care,Domiciliary Care,Children With Disabilities Client Costs,978,0,978,12/12/2018
Capital Home Care,Domiciliary Care,Children With Disabilities Client Costs,978,0,978,12/12/2018
Capital Home Care,Domiciliary Care,Children With Disabilities Client Costs,462,0,462,12/12/2018
Capital Home Care,Domiciliary Care,Children With Disabilities Client Costs,"1,111.80",0,"1,111.80",12/12/2018
Capital Home Care,Domiciliary Care,Children With Disabilities Client Costs,508.2,0,508.2,12/12/2018
Capital Home Care,Domiciliary Care,Children With Disabilities Client Costs,"1,194.00",0,"1,194.00",12/12/2018
Capital Home Care,Domiciliary Care,Children With Disabilities Client Costs,462,0,462,12/12/2018
Capital Home Care,Domiciliary Care,Children With Disabilities Client Costs,"1,137.60",0,"1,137.60",12/12/2018
Capital Home Care,Domiciliary Care,Children With Disabilities Client Costs,554.4,0,554.4,12/12/2018
Capital Home Care,Domiciliary Care,Children With Disabilities Client Costs,"1,173.60",0,"1,173.60",12/12/2018
Capital Home Care,Domiciliary Care,Children With Disabilities Client Costs,554.4,0,554.4,12/12/2018
Capital Home Care,Domiciliary Care,Children With Disabilities Client Costs,"1,173.60",0,"1,173.60",12/12/2018
Capital Home Care,Domiciliary Care,Children With Disabilities Client Costs,554.4,0,554.4,12/12/2018
Capital Home Care,Domiciliary Care,Children With Disabilities Client Costs,"1,173.60",0,"1,173.60",12/12/2018
Capital Home Care,Domiciliary Care,Children With Disabilities Client Costs,554.4,0,554.4,12/12/2018
Capital Home Care,Domiciliary Care,Children With Disabilities Client Costs,"1,173.60",0,"1,173.60",12/12/2018
Capital Home Care,Domiciliary Care,Children With Disabilities Client Costs,554.4,0,554.4,12/12/2018
Capital Home Care,Domiciliary Care,Children With Disabilities Client Costs,"1,173.60",0,"1,173.60",12/12/2018
Capital Home Care,Domiciliary Care,Children With Disabilities Client Costs,554.4,0,554.4,12/12/2018
Capital Home Care,Domiciliary Care,Children With Disabilities Client Costs,"1,173.60",0,"1,173.60",12/12/2018
Capital Home Care,Domiciliary Care,Children With Disabilities Client Costs,554.4,0,554.4,12/12/2018
Capital Home Care,Domiciliary Care,Children With Disabilities Client Costs,"2,053.80",0,"2,053.80",12/12/2018
Capital Home Care,Domiciliary Care,Children With Disabilities Client Costs,970.2,0,970.2,12/12/2018
Capital Home Care,Domiciliary Care,Children With Disabilities Client Costs,970.2,0,970.2,12/12/2018
Capital Home Care,Domiciliary Care,Children With Disabilities Client Costs,"2,053.80",0,"2,053.80",12/12/2018
Capital Home Care,Domiciliary Care,Children With Disabilities Client Costs,970.2,0,970.2,12/12/2018
Capital Home Care,Domiciliary Care,Children With Disabilities Client Costs,"2,053.80",0,"2,053.80",12/12/2018
Capital Home Care,Domiciliary Care,Children With Disabilities Client Costs,"2,053.80",0,"2,053.80",12/12/2018
Capital Home Care,Domiciliary Care,Children With Disabilities Client Costs,970.2,0,970.2,12/12/2018
Capital Home Care,Domiciliary Care,Children With Disabilities Client Costs,"2,053.80",0,"2,053.80",12/12/2018
Capital Home Care,Domiciliary Care,Children With Disabilities Client Costs,970.2,0,970.2,12/12/2018
Capital Home Care,Domiciliary Care,Children With Disabilities Client Costs,"2,053.80",0,"2,053.80",12/12/2018
Capital Home Care,Domiciliary Care,Children With Disabilities Client Costs,970.2,0,970.2,12/12/2018
Capital Home Care,Domiciliary Care,Children With Disabilities Client Costs,970.2,0,970.2,12/12/2018
Capital Home Care,Domiciliary Care,Children With Disabilities Client Costs,"2,053.80",0,"2,053.80",12/12/2018
Capital Home Care,Domiciliary Care,Children With Disabilities Client Costs,970.2,0,970.2,12/12/2018
Capital Home Care,Domiciliary Care,Children With Disabilities Client Costs,"2,053.80",0,"2,053.80",12/12/2018
Capital Home Care,Domiciliary Care,Children With Disabilities Client Costs,"2,053.80",0,"2,053.80",12/12/2018
Capital Home Care,Domiciliary Care,Children With Disabilities Client Costs,970.2,0,970.2,12/12/2018
Capital Home Care,Domiciliary Care,Children With Disabilities Client Costs,"2,053.80",0,"2,053.80",12/12/2018
Capital Home Care,Domiciliary Care,Children With Disabilities Client Costs,970.2,0,970.2,12/12/2018
Capital Home Care,Domiciliary Care,Children With Disabilities Client Costs,"2,071.80",0,"2,071.80",12/12/2018
Capital Home Care,Domiciliary Care,Children With Disabilities Client Costs,970.2,0,970.2,12/12/2018
Capital Home Care,Domiciliary Care,Children With Disabilities Client Costs,720,0,720,17/12/2018
Capital Home Care (UK) Ltd - ISF,Social Care Personal Budgets,Personalisation,605.14,0,605.14,17/10/2018
Capital Home Care (UK) Ltd - ISF,Social Care Personal Budgets,Personalisation,"1,815.00",0,"1,815.00",17/10/2018
Capital Home Care (UK) Ltd - ISF,Adults & Social - Net P.B.'s,Personalisation,-93,0,-93,17/10/2018
Capital Home Care (UK) Ltd - ISF,Social Care Personal Budgets,Personalisation,625.31,0,625.31,20/11/2018
Capital Home Care (UK) Ltd - ISF,Adults & Social - Net P.B.'s,Personalisation,-96.1,0,-96.1,20/11/2018
Capital Home Care (UK) Ltd - ISF,Social Care Personal Budgets,Personalisation,"1,875.50",0,"1,875.50",20/11/2018
Capital Home Care (UK) Ltd - ISF,Social Care Personal Budgets,Personalisation,605.15,0,605.15,17/12/2018
Capital Home Care (UK) Ltd - ISF,Adults & Social - Net P.B.'s,Personalisation,-93,0,-93,17/12/2018
Capital Home Care (UK) Ltd - ISF,Social Care Personal Budgets,Personalisation,"1,815.00",0,"1,815.00",17/12/2018
Capwell Grange Nursing Home,Nursing Care,Long Term Team - PD,"4,312.63",0,"4,312.63",24/10/2018
Capwell Grange Nursing Home,Adults & Social - Client Charges,Long Term Team - PD,-430.06,0,-430.06,24/10/2018
Capwell Grange Nursing Home,Recovery of Costs (External - Non Vatable),Long Term Team - PD,-700.42,0,-700.42,24/10/2018
Capwell Grange Nursing Home,Recovery of Costs (External - Non Vatable),Long Term Team - PD,-677.83,0,-677.83,26/11/2018
Capwell Grange Nursing Home,Adults & Social - Client Charges,Long Term Team - PD,-416.18,0,-416.18,26/11/2018
Capwell Grange Nursing Home,Nursing Care,Long Term Team - PD,"5,046.27",0,"5,046.27",26/11/2018
Capwell Grange Nursing Home,Recovery of Costs (External - Non Vatable),Long Term Team - PD,-700.42,0,-700.42,19/12/2018
Capwell Grange Nursing Home,Adults & Social - Client Charges,Long Term Team - PD,-430.06,0,-430.06,19/12/2018
Capwell Grange Nursing Home,Nursing Care,Long Term Team - PD,"4,489.46",0,"4,489.46",19/12/2018
Care Assist Limited,Supptd Accommodation for Social Care Clients,Long Term Team - LD,"1,328.57",0,"1,328.57",26/10/2018
Care Assist Limited,Supptd Accommodation for Social Care Clients,Long Term Team - LD,"1,285.72",0,"1,285.72",27/11/2018
Care Assist Limited,Supptd Accommodation for Social Care Clients,Long Term Team - LD,"1,328.57",0,"1,328.57",19/12/2018
CARE EXPERTISE LTD,Supptd Accommodation for Social Care Clients,Long Term Care,"8,757.36",0,"8,757.36",23/10/2018
CARE EXPERTISE LTD,Supptd Accommodation for Social Care Clients,Long Term Care,"3,127.63",0,"3,127.63",20/11/2018
CARE EXPERTISE LTD,Respite Costs,Long Term Care,"12,874.75",0,"12,874.75",11/12/2018
Care UK,Nursing Care,Long Term Care,"3,004.65",0,"3,004.65",24/10/2018
Care UK,Recovery of Costs (External - Non Vatable),Long Term Care,-700.42,0,-700.42,24/10/2018
Care UK,Adults & Social - Client Charges,Long Term Care,-565.17,0,-565.17,24/10/2018
Care UK,Adults & Social - Client Charges,Long Term Care,-924.51,0,-924.51,24/10/2018
Care UK,Recovery of Costs (External - Non Vatable),Long Term Care,-700.42,0,-700.42,24/10/2018
Care UK,Nursing Care,Long Term Care,"4,705.67",0,"4,705.67",24/10/2018
Care UK,Residential Placements,Long Term Care,"5,535.71",0,"5,535.71",24/10/2018
Care UK,Adults & Social - Client Charges,Long Term Care,-529.55,0,-529.55,27/11/2018
Care UK,Recovery of Costs (External - Non Vatable),Long Term Care,-677.83,0,-677.83,27/11/2018
Care UK,Nursing Care,Long Term Care,"2,907.73",0,"2,907.73",27/11/2018
Care UK,Nursing Care,Long Term Care,"4,553.87",0,"4,553.87",27/11/2018
Care UK,Recovery of Costs (External - Non Vatable),Long Term Care,-677.83,0,-677.83,27/11/2018
Care UK,Adults & Social - Client Charges,Long Term Care,-894.68,0,-894.68,27/11/2018
Care UK,Residential Placements,Long Term Care,"5,357.15",0,"5,357.15",27/11/2018
Care UK,Nursing Care,Long Term Care,"3,004.65",0,"3,004.65",19/12/2018
Care UK,Recovery of Costs (External - Non Vatable),Long Term Care,-700.42,0,-700.42,19/12/2018
Care UK,Adults & Social - Client Charges,Long Term Care,-547.19,0,-547.19,19/12/2018
Care UK,Nursing Care,Long Term Care,"4,705.67",0,"4,705.67",19/12/2018
Care UK,Recovery of Costs (External - Non Vatable),Long Term Care,-700.42,0,-700.42,19/12/2018
Care UK,Adults & Social - Client Charges,Long Term Care,-924.51,0,-924.51,19/12/2018
Care UK,Residential Placements,Long Term Care,"5,535.71",0,"5,535.71",19/12/2018
Care UK,Respite Costs,Long Term Care,"-4,140.00",0,"-4,140.00",24/10/2018
Care UK,Adults & Social - Client Charges,Long Term Care,-838.02,0,-838.02,24/10/2018
Care UK,Residential Placements,Long Term Care,"2,037.14",0,"2,037.14",24/10/2018
Care UK,Adults & Social - Client Charges,Long Term Care,-718.62,0,-718.62,24/10/2018
Care UK,Residential Placements,Long Term Care,"2,369.29",0,"2,369.29",24/10/2018
Care UK,Adults & Social - Client Charges,Long Term Care,-693.29,0,-693.29,24/10/2018
Care UK,Residential Placements,Long Term Care,"2,391.43",0,"2,391.43",24/10/2018
Care UK,Nursing Care,Long Term Care,"4,084.74",0,"4,084.74",24/10/2018
Care UK,Recovery of Costs (External - Non Vatable),Long Term Care,-700.42,0,-700.42,24/10/2018
Care UK,Adults & Social - Client Charges,Long Term Care,-611.59,0,-611.59,24/10/2018
Care UK,Residential Placements,Long Term Care,"3,764.29",0,"3,764.29",24/10/2018
Care UK,Adults & Social - Client Charges,Long Term Care,-359.42,0,-359.42,24/10/2018
Care UK,Nursing Care,Long Term Care,"5,770.92",0,"5,770.92",24/10/2018
Care UK,Recovery of Costs (External - Non Vatable),Long Term Care,-700.42,0,-700.42,24/10/2018
Care UK,Adults & Social - Client Charges,Long Term Care,-452.82,0,-452.82,24/10/2018
Care UK,Respite Costs,Long Term Care,"-3,351.43",0,"-3,351.43",26/11/2018
Care UK,Adults & Social - Client Charges,Long Term Care,-810.98,0,-810.98,26/11/2018
Care UK,Residential Placements,Long Term Care,"1,971.43",0,"1,971.43",26/11/2018
Care UK,Residential Placements,Long Term Care,"-4,041.43",0,"-4,041.43",26/11/2018
Care UK,Residential Placements,Long Term Care,"7,590.00",0,"7,590.00",26/11/2018
Care UK,Adults & Social - Client Charges,Long Term Care,"-2,166.50",0,"-2,166.50",26/11/2018
Care UK,Recovery of Costs (External - Non Vatable),Long Term Care,-677.83,0,-677.83,26/11/2018
Care UK,Adults & Social - Client Charges,Long Term Care,-438.22,0,-438.22,26/11/2018
Care UK,Nursing Care,Long Term Care,"5,584.75",0,"5,584.75",26/11/2018
Care UK,Residential Placements,Long Term Care,"13,200.00",0,"13,200.00",26/11/2018
Care UK,Adults & Social - Client Charges,Long Term Care,"-5,782.24",0,"-5,782.24",26/11/2018
Care UK,Adults & Social - Client Charges,Long Term Care,-492.01,0,-492.01,27/11/2018
Care UK,Residential Placements,Long Term Care,"1,578.58",0,"1,578.58",27/11/2018
Care UK,Residential Placements,Long Term Care,"2,292.85",0,"2,292.85",27/11/2018
Care UK,Adults & Social - Client Charges,Long Term Care,-695.45,0,-695.45,27/11/2018
Care UK,Residential Placements,Long Term Care,"2,314.28",0,"2,314.28",27/11/2018
Care UK,Adults & Social - Client Charges,Long Term Care,-670.93,0,-670.93,27/11/2018
Care UK,Recovery of Costs (External - Non Vatable),Long Term Care,-677.83,0,-677.83,27/11/2018
Care UK,Nursing Care,Long Term Care,"3,952.97",0,"3,952.97",27/11/2018
Care UK,Adults & Social - Client Charges,Long Term Care,-591.85,0,-591.85,27/11/2018
Care UK,Residential Placements,Long Term Care,"3,642.85",0,"3,642.85",27/11/2018
Care UK,Adults & Social - Client Charges,Long Term Care,-347.83,0,-347.83,27/11/2018
Care UK,Residential Placements,Long Term Care,"-2,723.57",0,"-2,723.57",19/12/2018
Care UK,Residential Placements,Long Term Care,"5,115.00",0,"5,115.00",19/12/2018
Care UK,Adults & Social - Client Charges,Long Term Care,"-1,229.28",0,"-1,229.28",19/12/2018
Care UK,Adults & Social - Client Charges,Long Term Care,-838.02,0,-838.02,19/12/2018
Care UK,Residential Placements,Long Term Care,"2,037.14",0,"2,037.14",19/12/2018
Care UK,Adults & Social - Client Charges,Long Term Care,-718.62,0,-718.62,19/12/2018
Care UK,Residential Placements,Long Term Care,"2,369.29",0,"2,369.29",19/12/2018
Care UK,Adults & Social - Client Charges,Long Term Care,-693.29,0,-693.29,19/12/2018
Care UK,Residential Placements,Long Term Care,"2,391.43",0,"2,391.43",19/12/2018
Care UK,Residential Placements,Long Term Care,"2,878.57",0,"2,878.57",19/12/2018
Care UK,Adults & Social - Client Charges,Long Term Care,-897.18,0,-897.18,19/12/2018
Care UK,Adults & Social - Client Charges,Long Term Care,-611.59,0,-611.59,19/12/2018
Care UK,Recovery of Costs (External - Non Vatable),Long Term Care,-700.42,0,-700.42,19/12/2018
Care UK,Nursing Care,Long Term Care,"4,084.74",0,"4,084.74",19/12/2018
Care UK,Residential Placements,Long Term Care,"3,764.29",0,"3,764.29",19/12/2018
Care UK,Adults & Social - Client Charges,Long Term Care,-359.42,0,-359.42,19/12/2018
Care UK,Adults & Social - Client Charges,Long Term Care,-452.82,0,-452.82,19/12/2018
Care UK,Recovery of Costs (External - Non Vatable),Long Term Care,-700.42,0,-700.42,19/12/2018
Care UK,Nursing Care,Long Term Care,"5,770.92",0,"5,770.92",19/12/2018
Caremark (Harrow),Domiciliary Care,Personalisation,"3,731.24",0,"3,731.24",19/10/2018
Caremark (Harrow),Domiciliary Care,Self funders Personalisation - Adult Soc,"8,783.96",0,"8,783.96",19/10/2018
Caremark (Harrow),Domiciliary Care,Self funders Personalisation - Adult Soc,"3,557.60",0,"3,557.60",19/11/2018
Caremark (Harrow),Domiciliary Care,Personalisation,"4,163.50",0,"4,163.50",19/11/2018
Caremark (Harrow),Domiciliary Care,Self funders Personalisation - Adult Soc,"2,339.05",0,"2,339.05",04/12/2018
Caremark (Harrow),Domiciliary Care,Personalisation,"2,764.00",0,"2,764.00",04/12/2018
Caremark (Harrow),Domiciliary Care,Self funders Personalisation - Adult Soc,"2,305.25",0,"2,305.25",17/12/2018
Caremark (Harrow),Domiciliary Care,Personalisation,"2,764.00",0,"2,764.00",17/12/2018
Caremark (Harrow),Domiciliary Care,Self funders Personalisation - Adult Soc,"2,164.00",0,"2,164.00",18/12/2018
Caremark (Harrow),Domiciliary Care,Personalisation,"2,834.00",0,"2,834.00",18/12/2018
Caretech Community Services Limited,Residential Placements,Long Term Care,"2,139.00",0,"2,139.00",24/10/2018
Caretech Community Services Limited,Residential Placements,Long Term Team - LD,"2,651.83",0,"2,651.83",24/10/2018
Caretech Community Services Limited,Adults & Social - Client Charges,Long Term Team - LD,-387.04,0,-387.04,24/10/2018
Caretech Community Services Limited,Residential Placements,Long Term Team - LD,"5,901.34",0,"5,901.34",24/10/2018
Caretech Community Services Limited,Residential Placements,Long Term Care,"9,710.57",0,"9,710.57",24/10/2018
Caretech Community Services Limited,Adults & Social - Client Charges,Long Term Care,-452.82,0,-452.82,24/10/2018
Caretech Community Services Limited,Residential Placements,Long Term Care,"-2,913.16",0,"-2,913.16",24/10/2018
Caretech Community Services Limited,Residential Placements,Long Term Team - LD,"7,731.18",0,"7,731.18",24/10/2018
Caretech Community Services Limited,Adults & Social - Client Charges,Long Term Team - LD,-476.88,0,-476.88,24/10/2018
Caretech Community Services Limited,Residential Placements,Long Term Team - LD,"-110,221.75",0,"-110,221.75",26/11/2018
Caretech Community Services Limited,Residential Placements,Long Term Care,"2,534.47",0,"2,534.47",26/11/2018
Caretech Community Services Limited,Residential Placements,Long Term Care,"-2,819.18",0,"-2,819.18",26/11/2018
Caretech Community Services Limited,Residential Placements,Long Term Care,"11,506.12",0,"11,506.12",26/11/2018
Caretech Community Services Limited,Adults & Social - Client Charges,Long Term Care,-438.22,0,-438.22,26/11/2018
Caretech Community Services Limited,Adults & Social - Client Charges,Long Term Team - LD,-422.78,0,-422.78,26/11/2018
Caretech Community Services Limited,Residential Placements,Long Term Team - LD,"9,160.64",0,"9,160.64",26/11/2018
Caretech Community Services Limited,Adults & Social - Client Charges,Long Term Team - LD,-350.35,0,-350.35,26/11/2018
Caretech Community Services Limited,Residential Placements,Long Term Team - LD,"18,975.31",0,"18,975.31",26/11/2018
Caretech Community Services Limited,Residential Placements,Long Term Care,"124,666.38",0,"124,666.38",26/11/2018
Caretech Community Services Limited,Residential Placements,Long Term Care,"2,233.11",0,"2,233.11",19/12/2018
Caretech Community Services Limited,Adults & Social - Client Charges,Long Term Team - LD,-362.04,0,-362.04,19/12/2018
Caretech Community Services Limited,Residential Placements,Long Term Team - LD,"3,600.74",0,"3,600.74",19/12/2018
Caretech Community Services Limited,Residential Placements,Long Term Care,"6,552.69",0,"6,552.69",19/12/2018
Caretech Community Services Limited,Adults & Social - Client Charges,Long Term Care,-452.82,0,-452.82,19/12/2018
Caretech Community Services Limited,Residential Placements,Long Term Care,"10,137.84",0,"10,137.84",19/12/2018
Caretech Community Services Limited,Residential Placements,Long Term Care,"-2,913.16",0,"-2,913.16",19/12/2018
Caretech Community Services Limited,Residential Placements,Long Term Team - LD,"8,071.34",0,"8,071.34",19/12/2018
Caretech Community Services Limited,Adults & Social - Client Charges,Long Term Team - LD,-436.88,0,-436.88,19/12/2018
CareTrade Charitable Trust,Consultants Fees,TU-ISP Provision,"8,286.01",0,"8,286.01",08/10/2018
CareTrade Charitable Trust,Consultants Fees,TU-ISP Provision,"9,298.67",0,"9,298.67",08/10/2018
Caribbean Social Work Assessments,"Counselling, Therapy",Adoption,"5,025.12",0,"5,025.12",31/10/2018
Caring Hearts Fostering,Foster Payments,Childrens Placements,"4,221.60",0,"4,221.60",08/10/2018
Caring Hearts Fostering,Foster Payments,Childrens Placements,"4,362.32",0,"4,362.32",06/11/2018
Caring Hearts Fostering,Foster Payments,Childrens Placements,"4,221.60",0,"4,221.60",06/12/2018
Caring with a Difference - ISF,Domiciliary Care,Personalisation,865.08,0,865.08,21/11/2018
Caring with a Difference - ISF,Domiciliary Care,Personalisation,"1,368.80",0,"1,368.80",21/11/2018
Carlton House Residential Care Home,Adults & Social - Client Charges,Long Term Care,-611.59,0,-611.59,24/10/2018
Carlton House Residential Care Home,Residential Placements,Long Term Care,"2,150.38",0,"2,150.38",24/10/2018
Carlton House Residential Care Home,Adults & Social - Client Charges,Long Term Care,-611.59,0,-611.59,24/10/2018
Carlton House Residential Care Home,Adults & Social - Client Charges,Long Term Care,-740.93,0,-740.93,24/10/2018
Carlton House Residential Care Home,Residential Placements,Long Term Care,"2,422.65",0,"2,422.65",24/10/2018
Carlton House Residential Care Home,Adults & Social - Client Charges,Long Term Care,-626.86,0,-626.86,24/10/2018
Carlton House Residential Care Home,Residential Placements,Long Term Care,"2,491.87",0,"2,491.87",24/10/2018
Carlton House Residential Care Home,Adults & Social - Client Charges,Long Term Care,-611.59,0,-611.59,24/10/2018
Carlton House Residential Care Home,Residential Placements,Long Term Care,"2,491.87",0,"2,491.87",24/10/2018
Carlton House Residential Care Home,Residential Placements,Long Term Care,"2,491.87",0,"2,491.87",24/10/2018
Carlton House Residential Care Home,Adults & Social - Client Charges,Long Term Care,-611.59,0,-611.59,24/10/2018
Carlton House Residential Care Home,Residential Placements,Long Term Care,"2,890.53",0,"2,890.53",24/10/2018
Carlton House Residential Care Home,Adults & Social - Client Charges,Long Term Care,-611.59,0,-611.59,24/10/2018
Carlton House Residential Care Home,Residential Placements,Long Term Care,"2,422.65",0,"2,422.65",24/10/2018
Carlton House Residential Care Home,Residential Placements,Long Term Care,"2,491.87",0,"2,491.87",24/10/2018
Carlton House Residential Care Home,Residential Placements,Long Term Care,"2,491.87",0,"2,491.87",24/10/2018
Carlton House Residential Care Home,Residential Placements,Long Term Care,"2,491.87",0,"2,491.87",24/10/2018
Carlton House Residential Care Home,Residential Placements,Long Term Care,"2,768.74",0,"2,768.74",24/10/2018
Carlton House Residential Care Home,Residential Placements,Long Term Care,"2,768.74",0,"2,768.74",24/10/2018
Carlton House Residential Care Home,Adults & Social - Client Charges,Long Term Care,-591.85,0,-591.85,26/11/2018
Carlton House Residential Care Home,Residential Placements,Long Term Care,657.93,0,657.93,26/11/2018
Carlton House Residential Care Home,Adults & Social - Client Charges,Long Term Care,-129.46,0,-129.46,26/11/2018
Carlton House Residential Care Home,Respite Costs,Long Term Care,"1,305.40",0,"1,305.40",26/11/2018
Carlton House Residential Care Home,Adults & Social - Client Charges,Long Term Care,-591.85,0,-591.85,26/11/2018
Carlton House Residential Care Home,Residential Placements,Long Term Care,"3,035.74",0,"3,035.74",26/11/2018
Carlton House Residential Care Home,Adults & Social - Client Charges,Long Term Care,-680.75,0,-680.75,26/11/2018
Carlton House Residential Care Home,Residential Placements,Long Term Care,"3,419.87",0,"3,419.87",26/11/2018
Carlton House Residential Care Home,Residential Placements,Long Term Care,"3,517.67",0,"3,517.67",26/11/2018
Carlton House Residential Care Home,Adults & Social - Client Charges,Long Term Care,-633.96,0,-633.96,26/11/2018
Carlton House Residential Care Home,Adults & Social - Client Charges,Long Term Care,-591.85,0,-591.85,26/11/2018
Carlton House Residential Care Home,Residential Placements,Long Term Care,"3,517.67",0,"3,517.67",26/11/2018
Carlton House Residential Care Home,Adults & Social - Client Charges,Long Term Care,-591.85,0,-591.85,26/11/2018
Carlton House Residential Care Home,Residential Placements,Long Term Care,"3,517.67",0,"3,517.67",26/11/2018
Carlton House Residential Care Home,Adults & Social - Client Charges,Long Term Care,-591.85,0,-591.85,26/11/2018
Carlton House Residential Care Home,Residential Placements,Long Term Care,"3,744.87",0,"3,744.87",26/11/2018
Carlton House Residential Care Home,Residential Placements,Long Term Care,"3,419.87",0,"3,419.87",26/11/2018
Carlton House Residential Care Home,Residential Placements,Long Term Care,"3,517.67",0,"3,517.67",26/11/2018
Carlton House Residential Care Home,Residential Placements,Long Term Care,"3,517.67",0,"3,517.67",26/11/2018
Carlton House Residential Care Home,Residential Placements,Long Term Care,"3,517.67",0,"3,517.67",26/11/2018
Carlton House Residential Care Home,Residential Placements,Long Term Care,"3,908.47",0,"3,908.47",26/11/2018
Carlton House Residential Care Home,Residential Placements,Long Term Care,"3,908.47",0,"3,908.47",26/11/2018
Carlton House Residential Care Home,Adults & Social - Client Charges,Long Term Care,-611.59,0,-611.59,19/12/2018
Carlton House Residential Care Home,Adults & Social - Client Charges,Long Term Care,-611.59,0,-611.59,19/12/2018
Carlton House Residential Care Home,Residential Placements,Long Term Care,"2,343.82",0,"2,343.82",19/12/2018
Carlton House Residential Care Home,Adults & Social - Client Charges,Long Term Care,-703.43,0,-703.43,19/12/2018
Carlton House Residential Care Home,Residential Placements,Long Term Care,"2,640.54",0,"2,640.54",19/12/2018
Carlton House Residential Care Home,Adults & Social - Client Charges,Long Term Care,-630.45,0,-630.45,19/12/2018
Carlton House Residential Care Home,Residential Placements,Long Term Care,"2,716.00",0,"2,716.00",19/12/2018
Carlton House Residential Care Home,Adults & Social - Client Charges,Long Term Care,-611.59,0,-611.59,19/12/2018
Carlton House Residential Care Home,Residential Placements,Long Term Care,"2,716.00",0,"2,716.00",19/12/2018
Carlton House Residential Care Home,Adults & Social - Client Charges,Long Term Care,-611.59,0,-611.59,19/12/2018
Carlton House Residential Care Home,Residential Placements,Long Term Care,"2,716.00",0,"2,716.00",19/12/2018
Carlton House Residential Care Home,Residential Placements,Long Term Care,"3,150.49",0,"3,150.49",19/12/2018
Carlton House Residential Care Home,Adults & Social - Client Charges,Long Term Care,-611.59,0,-611.59,19/12/2018
Carlton House Residential Care Home,Residential Placements,Long Term Care,"2,640.54",0,"2,640.54",19/12/2018
Carlton House Residential Care Home,Residential Placements,Long Term Care,"2,716.00",0,"2,716.00",19/12/2018
Carlton House Residential Care Home,Residential Placements,Long Term Care,"2,716.00",0,"2,716.00",19/12/2018
Carlton House Residential Care Home,Residential Placements,Long Term Care,"2,716.00",0,"2,716.00",19/12/2018
Carlton House Residential Care Home,Residential Placements,Long Term Care,"3,017.76",0,"3,017.76",19/12/2018
Carlton House Residential Care Home,Residential Placements,Long Term Care,"3,017.76",0,"3,017.76",19/12/2018
Caroline Daly,Legal Fees/Advocacy,Bucks County Council Legal Services,"8,380.00","1,676.00","10,056.00",08/10/2018
Caroline Daly,Legal Fees/Advocacy,Barnet Council Legal Services,"2,335.00",467,"2,802.00",28/11/2018
Caroline Tether,Consultants Fees,Harrow CIL,"1,600.00",0,"1,600.00",23/11/2018
Caroline Tether,Consultants Fees,Harrow CIL,"2,800.00",0,"2,800.00",28/11/2018
Caroline Tether,Consultants Fees,Harrow CIL,"2,000.00",0,"2,000.00",20/12/2018
Carpenders Care Limited,Domiciliary Care,Personalisation,954.1,0,954.1,17/10/2018
Carpenders Care Limited,Domiciliary Care,Personalisation,"1,506.38",0,"1,506.38",09/11/2018
Carpenders Care Limited,Domiciliary Care,Personalisation,"1,438.20",0,"1,438.20",29/11/2018
Carpenders Care Limited,Domiciliary Care,Personalisation,"2,999.82",0,"2,999.82",10/12/2018
Carpenders Care Limited,Domiciliary Care,Personalisation,"2,547.40",0,"2,547.40",21/12/2018
Carramea,Other Professional Fees,Community Learning Trust,637.5,0,637.5,19/12/2018
Carter Brown,Consultants Fees,Divisional Director Targeted Services,655.2,131.04,786.24,19/10/2018
Carter Brown,Consultants Fees,Divisional Director Targeted Services,557.74,111.55,669.29,31/10/2018
Carter Brown,Consultants Fees,Divisional Director Targeted Services,578.84,115.77,694.61,31/10/2018
Carter Brown,Consultants Fees,Divisional Director Targeted Services,"1,822.90",364.58,"2,187.48",29/11/2018
Carver Haggard Architects,Consultants Fees,Lyon Rd Pop up Restaurant & Square,"15,498.80","3,099.76","18,598.56",26/11/2018
Casa choice,Highways - Enforcement,Environmental Compliance,"3,480.00",0,"3,480.00",01/11/2018
CASCAIDr Trading Ltd,Staff training (General),Personalisation 3 Care Management,900,0,900,20/12/2018
Cass Associates London Ltd,Foster Payments,Asylum Client Expenditure,"1,399.99",0,"1,399.99",08/10/2018
Cass Associates London Ltd,Foster Payments,Asylum Client Expenditure,"1,100.01",0,"1,100.01",20/11/2018
Cass Associates London Ltd,Foster Payments,Asylum Client Expenditure,428.4,85.68,514.08,08/10/2018
Cass Associates London Ltd,Foster Payments,Asylum Client Expenditure,"1,500.00",0,"1,500.00",08/10/2018
Cass Associates London Ltd,Foster Payments,Asylum Client Expenditure,442.7,88.54,531.24,20/11/2018
Cass Associates London Ltd,Foster Payments,Asylum Client Expenditure,"1,693.47",0,"1,693.47",20/11/2018
Cass Associates London Ltd,Foster Payments,Asylum Client Expenditure,428.55,85.71,514.26,30/11/2018
Cass Associates London Ltd,Foster Payments,Asylum Client Expenditure,"1,688.11",0,"1,688.11",30/11/2018
Cass Associates London Ltd,Semi Independent,Childrens Placements,-0.17,-0.03,-0.2,08/10/2018
Cass Associates London Ltd,Aid Payments to Individuals,Childrens Placements,428.57,85.71,514.28,08/10/2018
Cass Associates London Ltd,Aid Payments to Individuals,Leaving Care Placements,428.4,85.68,514.08,08/10/2018
Cass Associates London Ltd,Aid Payments to Individuals,Leaving Care Placements,428.4,85.68,514.08,08/10/2018
Cass Associates London Ltd,Aid Payments to Individuals,Leaving Care Placements,428.4,85.68,514.08,08/10/2018
Cass Associates London Ltd,Semi Independent,Leaving Care Placements,299.82,59.96,359.78,08/10/2018
Cass Associates London Ltd,Aid Payments to Individuals,Leaving Care Placements,142.86,28.57,171.43,08/10/2018
Cass Associates London Ltd,Aid Payments to Individuals,Leaving Care Placements,0.04,0,0.04,08/10/2018
Cass Associates London Ltd,Semi Independent,Leaving Care Placements,"1,692.86",0,"1,692.86",08/10/2018
Cass Associates London Ltd,Aid Payments to Individuals,Leaving Care Placements,0.04,0,0.04,08/10/2018
Cass Associates London Ltd,Semi Independent,Leaving Care Placements,"1,692.86",0,"1,692.86",08/10/2018
Cass Associates London Ltd,Semi Independent,Leaving Care Placements,"1,692.90",0,"1,692.90",08/10/2018
Cass Associates London Ltd,Aid Payments to Individuals,Childrens Placements,0.17,0,0.17,08/10/2018
Cass Associates London Ltd,Semi Independent,Childrens Placements,"1,821.43",0,"1,821.43",08/10/2018
Cass Associates London Ltd,Semi Independent,Leaving Care Placements,"2,121.60",0,"2,121.60",08/10/2018
Cass Associates London Ltd,Semi Independent,Leaving Care Placements,-829,0,-829,06/11/2018
Cass Associates London Ltd,Semi Independent,Leaving Care Placements,-829,0,-829,06/11/2018
Cass Associates London Ltd,Aid Payments to Individuals,Leaving Care Placements,428.4,85.68,514.08,06/11/2018
Cass Associates London Ltd,Aid Payments to Individuals,Leaving Care Placements,442.68,88.54,531.22,06/11/2018
Cass Associates London Ltd,Aid Payments to Individuals,Leaving Care Placements,442.68,88.54,531.22,06/11/2018
Cass Associates London Ltd,Aid Payments to Individuals,Leaving Care Placements,442.68,88.54,531.22,06/11/2018
Cass Associates London Ltd,Aid Payments to Individuals,Childrens Placements,442.68,88.54,531.22,06/11/2018
Cass Associates London Ltd,Aid Payments to Individuals,Leaving Care Placements,442.68,88.54,531.22,06/11/2018
Cass Associates London Ltd,Semi Independent,Leaving Care Placements,"1,749.33",0,"1,749.33",06/11/2018
Cass Associates London Ltd,Semi Independent,Leaving Care Placements,"1,749.33",0,"1,749.33",06/11/2018
Cass Associates London Ltd,Semi Independent,Leaving Care Placements,"1,749.33",0,"1,749.33",06/11/2018
Cass Associates London Ltd,Semi Independent,Childrens Placements,"1,882.32",0,"1,882.32",06/11/2018
Cass Associates London Ltd,Semi Independent,Leaving Care Placements,"2,192.32",0,"2,192.32",06/11/2018
Cass Associates London Ltd,Aid Payments to Individuals,Leaving Care Placements,428.55,85.71,514.26,06/12/2018
Cass Associates London Ltd,Aid Payments to Individuals,Leaving Care Placements,428.55,85.71,514.26,06/12/2018
Cass Associates London Ltd,Aid Payments to Individuals,Leaving Care Placements,428.55,85.71,514.26,06/12/2018
Cass Associates London Ltd,Aid Payments to Individuals,Leaving Care Placements,428.55,85.71,514.26,06/12/2018
Cass Associates London Ltd,Aid Payments to Individuals,Leaving Care Placements,428.55,85.71,514.26,06/12/2018
Cass Associates London Ltd,Aid Payments to Individuals,Childrens Placements,428.55,85.71,514.26,06/12/2018
Cass Associates London Ltd,Semi Independent,Leaving Care Placements,607.14,0,607.14,06/12/2018
Cass Associates London Ltd,Aid Payments to Individuals,Leaving Care Placements,0.01,0,0.01,06/12/2018
Cass Associates London Ltd,Semi Independent,Leaving Care Placements,"1,692.85",0,"1,692.85",06/12/2018
Cass Associates London Ltd,Aid Payments to Individuals,Leaving Care Placements,0.02,0,0.02,06/12/2018
Cass Associates London Ltd,Semi Independent,Leaving Care Placements,"1,692.85",0,"1,692.85",06/12/2018
Cass Associates London Ltd,Aid Payments to Individuals,Leaving Care Placements,0.02,0,0.02,06/12/2018
Cass Associates London Ltd,Semi Independent,Leaving Care Placements,"1,692.87",0,"1,692.87",06/12/2018
Cass Associates London Ltd,Aid Payments to Individuals,Childrens Placements,0.02,0,0.02,06/12/2018
Cass Associates London Ltd,Semi Independent,Childrens Placements,"1,821.43",0,"1,821.43",06/12/2018
Cass Associates London Ltd,Semi Independent,Childrens Placements,"1,821.43",0,"1,821.43",06/12/2018
Cass Associates London Ltd,Aid Payments to Individuals,Childrens Placements,0.02,0,0.02,06/12/2018
Cass Associates London Ltd,Semi Independent,Leaving Care Placements,"1,821.43",0,"1,821.43",06/12/2018
Cass Associates London Ltd,Aid Payments to Individuals,Leaving Care Placements,0.02,0,0.02,06/12/2018
Cass Associates London Ltd,Aid Payments to Individuals,Leaving Care Placements,0.02,0,0.02,06/12/2018
Cass Associates London Ltd,Semi Independent,Leaving Care Placements,"2,121.43",0,"2,121.43",06/12/2018
Catherine Rowlands,Legal Fees/Advocacy,Barnet Council Legal Services,925,185,"1,110.00",19/12/2018
CC Recruitment and Training,Section 17,Children With Disabilities Client Costs,576,0,576,20/12/2018
CC Recruitment and Training,Section 17,Children With Disabilities Client Costs,660,0,660,20/12/2018
CC Recruitment and Training,Section 17,Children With Disabilities Client Costs,768,0,768,20/12/2018
Cedars Pre-School,Voluntary Organisations TPP,2 year old offer,"13,675.20",0,"13,675.20",05/11/2018
Cedars Pre-School,Voluntary Organisations TPP,Dsg Nursery Educ Grant 3yrs & 4yrs,"10,033.66",0,"10,033.66",06/11/2018
Celeste Irvine,Legal Fees/Advocacy,Hounslow Inter Authority Agreement,"1,200.00",240,"1,440.00",21/11/2018
Celeste Irvine,Legal Fees/Advocacy,Hounslow Inter Authority Agreement,"1,350.00",270,"1,620.00",21/11/2018
Central & North West London NHS Fou,Miscellaneous Supplies & Services Cost,Mental Health  - S75,"402,000.00",0,"402,000.00",03/10/2018
Central & North West London NHS Fou,Miscellaneous Supplies & Services Cost,Mental Health  - S75,"-305,018.25",0,"-305,018.25",11/10/2018
Central & North West London NHS Fou,Miscellaneous Supplies & Services Cost,Mental Health  - S75,"-305,018.25",0,"-305,018.25",11/10/2018
Central & North West London NHS Fou,Miscellaneous Supplies & Services Cost,Mental Health  - S75,"-305,018.25",0,"-305,018.25",11/10/2018
Central & North West London NHS Fou,Miscellaneous Supplies & Services Cost,Mental Health  - S75,"-305,018.25",0,"-305,018.25",11/10/2018
Central & North West London NHS Fou,Miscellaneous Supplies & Services Cost,Mental Health  - S75,"-305,018.25",0,"-305,018.25",11/10/2018
Central & North West London NHS Fou,Miscellaneous Supplies & Services Cost,Mental Health  - S75,"305,018.25",0,"305,018.25",11/10/2018
Central & North West London NHS Fou,Miscellaneous Supplies & Services Cost,Mental Health  - S75,"305,018.25",0,"305,018.25",11/10/2018
Central & North West London NHS Fou,Miscellaneous Supplies & Services Cost,Mental Health  - S75,"305,018.25",0,"305,018.25",11/10/2018
Central & North West London NHS Fou,Miscellaneous Supplies & Services Cost,Mental Health  - S75,"305,018.25",0,"305,018.25",11/10/2018
Central & North West London NHS Fou,Miscellaneous Supplies & Services Cost,Mental Health  - S75,"305,018.25",0,"305,018.25",11/10/2018
Central & North West London NHS Fou,Agency Staff,Youth Offending Team,"4,927.00",985.4,"5,912.40",17/10/2018
Central & North West London NHS Fou,Miscellaneous Supplies & Services Cost,0-19 Service - Health Visiting & School,"294,204.41",0,"294,204.41",18/10/2018
Central & North West London NHS Fou,Miscellaneous Supplies & Services Cost,0-19 Service - Health Visiting & School,"588,408.82",0,"588,408.82",18/10/2018
Central & North West London NHS Fou,Miscellaneous Supplies & Services Cost,0-19 Service - Health Visiting & School,"294,204.41",0,"294,204.41",29/10/2018
Central & North West London NHS Fou,Consultants Fees,Cin Team 1,"-17,684.00",0,"-17,684.00",28/11/2018
Central & North West London NHS Fou,Miscellaneous Supplies & Services Cost,0-19 Service - Health Visiting & School,"294,204.41",0,"294,204.41",28/11/2018
Central & North West London NHS Fou,Consultants Fees,Cin Team 1,"8,343.00",0,"8,343.00",10/12/2018
Central & North West London NHS Fou,Consultants Fees,Cin Team 1,"17,684.00",0,"17,684.00",10/12/2018
Central & North West London NHS Fou,Miscellaneous Supplies & Services Cost,0-19 Service - Health Visiting & School,"294,204.41",0,"294,204.41",20/12/2018
Central and N W London,Miscellaneous Supplies & Services Cost,Mental Health  - S75,"305,018.25",0,"305,018.25",01/10/2018
Central and N W London,Miscellaneous Supplies & Services Cost,Mental Health  - S75,"196,890.50",0,"196,890.50",19/11/2018
Central and N W London,Miscellaneous Supplies & Services Cost,Mental Health  - S75,"337,833.33",0,"337,833.33",19/11/2018
Central and N W London,Miscellaneous Supplies & Services Cost,Mental Health  - S75,"337,833.33",0,"337,833.33",28/11/2018
Central and N W London,Miscellaneous Supplies & Services Cost,Mental Health  - S75,"337,833.33",0,"337,833.33",20/12/2018
Central Cars,Secure Placement  for Children,P-DSG Transport Educ - Ops,671,0,671,29/10/2018
Central Cars,Secure Placement  for Children,Brent SNT Childrens,847.5,0,847.5,29/10/2018
Central Cars,Secure Placement  for Children,P-DSG Transport Educ - Ops,652,0,652,28/11/2018
Central Cars,Secure Placement  for Children,Brent SNT Childrens,"1,582.00",0,"1,582.00",28/11/2018
Central Cars,Secure Placement  for Children,Brent SNT Childrens,"2,034.00",0,"2,034.00",06/12/2018
Central Cars,Secure Placement  for Children,P-DSG Transport Educ - Ops,860,0,860,20/12/2018
Central London Community Healthcare,Miscellaneous Supplies & Services Cost,Harrow: Sexual Health Services,"3,868.00",0,"3,868.00",16/10/2018
Central London Community Healthcare,Miscellaneous Supplies & Services Cost,Harrow: Sexual Health Services,"3,356.00",0,"3,356.00",21/11/2018
Central London Community Healthcare,Miscellaneous Supplies & Services Cost,Harrow: Sexual Health Services,"3,090.00",0,"3,090.00",18/12/2018
Central London Community Healthcare,Miscellaneous Supplies & Services Cost,Harrow: Sexual Health Services,"3,407.00",0,"3,407.00",20/12/2018
Centre for ADHD & Autism Support,Other Professional Fees,IYSS,"7,323.75",0,"7,323.75",17/10/2018
Chailey Heritage School,Residential Placements,Long Term Care,"17,645.99",0,"17,645.99",17/10/2018
Chailey Heritage School,Residential Placements,Long Term Care,"8,967.64",0,"8,967.64",19/11/2018
Chailey Heritage School,Residential Placements,Long Term Care,"8,678.35",0,"8,678.35",19/12/2018
Chaos Ergonomics,Miscellaneous Supplies & Services Cost,Health & Safety Services,690,138,828,16/11/2018
Charanga Ltd,Other Professional Fees,Music Teaching,"1,170.00",234,"1,404.00",03/10/2018
Chargemaster Plc,Landlord Repairs Exit Costs,Harrow NOF - Greenhill Go Ultra Low,"2,375.00",475,"2,850.00",03/10/2018
Chargemaster Plc,Landlord Repairs Exit Costs,Harrow NOF - Greenhill Go Ultra Low,"4,824.52",964.9,"5,789.42",21/11/2018
Charles Hugo Vere Forrest,Legal Fees/Advocacy,Barnet Council Legal Services,"2,000.00",400,"2,400.00",10/12/2018
Charles Streeten,Legal Fees/Advocacy,Barnet Council Legal Services,"1,250.00",250,"1,500.00",24/10/2018
Charles Wilson Engineers Ltd,"Equipment Lease, Purchase, Maintenance and Repair",Cemetries & Breakspear Crematorium,900,180,"1,080.00",27/11/2018
Charles Wilson Engineers Ltd,"Equipment Lease, Purchase, Maintenance and Repair",Cemetries & Breakspear Crematorium,900,180,"1,080.00",20/12/2018
Chatter Tots Harrow Pre-School,Voluntary Organisations TPP,EY SEN Inclusion Fund,"2,800.00",0,"2,800.00",02/11/2018
Chatter Tots Harrow Pre-School,Voluntary Organisations TPP,Dsg Nursery Educ Grant 3yrs & 4yrs,"9,525.60",0,"9,525.60",06/11/2018
Chatter Tots Harrow Pre-School,Voluntary Organisations TPP,EY SEN Inclusion Fund,"9,525.00",0,"9,525.00",30/11/2018
Cheeky Chums Day Nursery,Voluntary Organisations TPP,2 year old offer,621.6,0,621.6,05/11/2018
Cheeky Chums Day Nursery,Voluntary Organisations TPP,2 year old offer,"5,594.40",0,"5,594.40",05/11/2018
Cheeky Chums Day Nursery,Voluntary Organisations TPP,Dsg Nursery Educ Grant 3yrs & 4yrs,"17,457.30",0,"17,457.30",06/11/2018
Cheeky Chums Day Nursery,Voluntary Organisations TPP,Dsg Nursery Educ Grant 3yrs & 4yrs,"20,638.80",0,"20,638.80",06/11/2018
Cheeky Chums Day Nursery,Voluntary Organisations TPP,EY 3&4 YO Additional 15 Hours,"21,168.00",0,"21,168.00",06/11/2018
Cheeky Chums Day Nursery,Voluntary Organisations TPP,EY 3&4 YO Additional 15 Hours,"23,232.30",0,"23,232.30",06/11/2018
Cheeky Chums Day Nursery,Voluntary Organisations TPP,EY 3&4 YO Additional 15 Hours,"2,217.60",0,"2,217.60",06/12/2018
Cheeky Chums Day Nursery,Voluntary Organisations TPP,Dsg Nursery Educ Grant 3yrs & 4yrs,"2,652.30",0,"2,652.30",06/12/2018
Cheetah Ltd,Secure Placement  for Children,P-DSG Transport Educ - Ops,"1,830.00",366,"2,196.00",29/10/2018
Cheetah Ltd,Secure Placement  for Children,Brent SNT Childrens,"2,185.00",437,"2,622.00",29/10/2018
Cheetah Ltd,Secure Placement  for Children,Brent SNT Childrens,"1,472.50",294.5,"1,767.00",28/11/2018
Cheetah Ltd,Secure Placement  for Children,P-DSG Transport Educ - Ops,"1,830.00",366,"2,196.00",28/11/2018
Cheetah Ltd,Secure Placement  for Children,Brent SNT Childrens,"1,920.00",384,"2,304.00",20/12/2018
Cheetah Ltd,Secure Placement  for Children,P-DSG Transport Educ - Ops,"2,215.00",443,"2,658.00",20/12/2018
Chelsea and Westminster Hospital NH,Miscellaneous Supplies & Services Cost,Harrow: Sexual Health Services,"-2,511.86",0,"-2,511.86",08/10/2018
Chelsea and Westminster Hospital NH,Miscellaneous Supplies & Services Cost,Harrow: Sexual Health Services,"14,523.17",0,"14,523.17",08/10/2018
Chelsea and Westminster Hospital NH,Miscellaneous Supplies & Services Cost,Harrow: Sexual Health Services,"14,523.17",0,"14,523.17",08/10/2018
Chelsea and Westminster Hospital NH,Miscellaneous Supplies & Services Cost,Harrow: Sexual Health Services,"14,523.17",0,"14,523.17",31/10/2018
Chelsea and Westminster Hospital NH,Miscellaneous Supplies & Services Cost,Harrow: Sexual Health Services,"14,523.17",0,"14,523.17",10/12/2018
Chelsea and Westminster Hospital NH,Miscellaneous Supplies & Services Cost,Harrow: Sexual Health Services,936.3,0,936.3,20/12/2018
Chelsea and Westminster Hospital NH,Miscellaneous Supplies & Services Cost,Harrow: Sexual Health Services,"14,523.17",0,"14,523.17",20/12/2018
Children first fostering agency,Foster Payments,Childrens Placements,"4,128.60",0,"4,128.60",08/10/2018
Children first fostering agency,Foster Payments,Childrens Placements,"4,128.60",0,"4,128.60",08/10/2018
Children first fostering agency,Foster Payments,Childrens Placements,"4,266.22",0,"4,266.22",08/10/2018
Children first fostering agency,Foster Payments,Childrens Placements,"4,266.22",0,"4,266.22",08/10/2018
Children first fostering agency,Foster Payments,Childrens Placements,"4,266.22",0,"4,266.22",06/11/2018
Children first fostering agency,Foster Payments,Childrens Placements,"4,128.60",0,"4,128.60",06/12/2018
Children Of All Nations,Foster Payments,Childrens Placements,"1,101.52",0,"1,101.52",06/12/2018
Children Of All Nations,Foster Payments,Childrens Placements,"1,101.52",0,"1,101.52",06/12/2018
Children Of All Nations,Foster Payments,Childrens Placements,"1,619.91",0,"1,619.91",06/12/2018
Children Of All Nations,Foster Payments,Childrens Placements,"3,004.16",0,"3,004.16",06/12/2018
Children Of All Nations,Foster Payments,Childrens Placements,"3,004.16",0,"3,004.16",06/12/2018
Children Of All Nations,Foster Payments,Childrens Placements,"3,104.29",0,"3,104.29",06/12/2018
Children Of All Nations,Foster Payments,Childrens Placements,"3,104.29",0,"3,104.29",06/12/2018
Children Of All Nations,Foster Payments,Childrens Placements,"4,417.93",0,"4,417.93",06/12/2018
Children Of All Nations,Foster Payments,Childrens Placements,"4,565.19",0,"4,565.19",06/12/2018
Chiltern Invadex Ltd,Landlord Repairs Exit Costs,Better Care Fund- DFG,"6,887.00",0,"6,887.00",16/11/2018
Chiltern Invadex Ltd,Landlord Repairs Exit Costs,Aids and Adaptations,"5,851.00","1,170.20","7,021.20",11/10/2018
Chiltern Invadex Ltd,Landlord Repairs Exit Costs,Aids and Adaptations,"3,917.55",783.51,"4,701.06",12/10/2018
Chiltern Invadex Ltd,Landlord Repairs Exit Costs,Aids and Adaptations,675,135,810,15/10/2018
Chiltern Support & Housing Ltd,Supptd Accommodation for Social Care Clients,Long Term Care,"-12,685.71",0,"-12,685.71",26/10/2018
Chiltern Support & Housing Ltd,Supptd Accommodation for Social Care Clients,Long Term Care,"6,092.16",0,"6,092.16",26/10/2018
Chiltern Support & Housing Ltd,Supptd Accommodation for Social Care Clients,Long Term Care,"22,358.56",0,"22,358.56",26/10/2018
Chiltern Support & Housing Ltd,Supptd Accommodation for Social Care Clients,Long Term Care,"4,757.15",0,"4,757.15",27/11/2018
Chiltern Support & Housing Ltd,Supptd Accommodation for Social Care Clients,Long Term Care,"5,895.65",0,"5,895.65",27/11/2018
Chiltern Support & Housing Ltd,Supptd Accommodation for Social Care Clients,Long Term Care,"4,915.71",0,"4,915.71",19/12/2018
Chiltern Support & Housing Ltd,Supptd Accommodation for Social Care Clients,Long Term Care,"6,092.16",0,"6,092.16",19/12/2018
Chloe Wilkins,Legal Fees/Advocacy,Bucks County Council Legal Services,600,120,720,06/11/2018
Chloe Wilkins,Legal Fees/Advocacy,Bucks County Council Legal Services,550,110,660,07/11/2018
Chloe Wilkins,Legal Fees/Advocacy,Bucks County Council Legal Services,550,110,660,04/12/2018
Choice Ltd,Residential Placements,Long Term Team - LD,"2,037.14",0,"2,037.14",24/10/2018
Choice Ltd,Residential Placements,Long Term Team - LD,"5,491.43",0,"5,491.43",24/10/2018
Choice Ltd,Residential Placements,Long Term Team - LD,"2,037.14",0,"2,037.14",24/10/2018
Choice Ltd,Adults & Social - Client Charges,Long Term Team - LD,-385.95,0,-385.95,24/10/2018
Choice Ltd,Residential Placements,Long Term Team - LD,"6,528.60",0,"6,528.60",24/10/2018
Choice Ltd,Residential Placements,Long Term Team - LD,"2,037.14",0,"2,037.14",24/10/2018
Choice Ltd,Adults & Social - Client Charges,Long Term Team - LD,-452.82,0,-452.82,24/10/2018
Choice Ltd,Residential Placements,Long Term Team - LD,"7,010.43",0,"7,010.43",24/10/2018
Choice Ltd,Residential Placements,Long Term Team - LD,"2,037.14",0,"2,037.14",24/10/2018
Choice Ltd,Adults & Social - Client Charges,Long Term Team - LD,-395.25,0,-395.25,24/10/2018
Choice Ltd,Residential Placements,Long Term Team - LD,"7,453.56",0,"7,453.56",24/10/2018
Choice Ltd,Adults & Social - Client Charges,Long Term Care,-492.82,0,-492.82,24/10/2018
Choice Ltd,Residential Placements,Long Term Care,"10,011.54",0,"10,011.54",24/10/2018
Choice Ltd,Supptd Accommodation for Social Care Clients,Long Term Team - LD,"7,957.70",0,"7,957.70",26/10/2018
Choice Ltd,Residential Placements,Long Term Team - LD,"6,784.28",0,"6,784.28",26/11/2018
Choice Ltd,Adults & Social - Client Charges,Long Term Team - LD,-438.22,0,-438.22,26/11/2018
Choice Ltd,Residential Placements,Long Term Team - LD,"1,971.43",0,"1,971.43",26/11/2018
Choice Ltd,Residential Placements,Long Term Team - LD,"7,213.10",0,"7,213.10",26/11/2018
Choice Ltd,Adults & Social - Client Charges,Long Term Team - LD,-382.5,0,-382.5,26/11/2018
Choice Ltd,Residential Placements,Long Term Team - LD,"1,971.43",0,"1,971.43",26/11/2018
Choice Ltd,Residential Placements,Long Term Care,"9,688.58",0,"9,688.58",26/11/2018
Choice Ltd,Adults & Social - Client Charges,Long Term Care,-438.22,0,-438.22,26/11/2018
Choice Ltd,Residential Placements,Long Term Team - LD,"5,314.28",0,"5,314.28",27/11/2018
Choice Ltd,Residential Placements,Long Term Team - LD,"1,971.43",0,"1,971.43",27/11/2018
Choice Ltd,Supptd Accommodation for Social Care Clients,Long Term Team - LD,"7,701.00",0,"7,701.00",27/11/2018
Choice Ltd,Residential Placements,Long Term Team - LD,"1,971.43",0,"1,971.43",27/11/2018
Choice Ltd,Adults & Social - Client Charges,Long Term Team - LD,-373.5,0,-373.5,27/11/2018
Choice Ltd,Residential Placements,Long Term Team - LD,"6,318.00",0,"6,318.00",27/11/2018
Choice Ltd,Adults & Social - Client Charges,Interim Funding,"-3,827.07",0,"-3,827.07",19/12/2018
Choice Ltd,Residential Placements,Long Term Team - LD,"2,037.14",0,"2,037.14",19/12/2018
Choice Ltd,Residential Placements,Long Term Team - LD,"5,491.43",0,"5,491.43",19/12/2018
Choice Ltd,Supptd Accommodation for Social Care Clients,Long Term Team - LD,"7,957.70",0,"7,957.70",19/12/2018
Choice Ltd,Adults & Social - Client Charges,Long Term Team - LD,-452.82,0,-452.82,19/12/2018
Choice Ltd,Residential Placements,Long Term Team - LD,"2,037.14",0,"2,037.14",19/12/2018
Choice Ltd,Residential Placements,Long Term Team - LD,"7,010.43",0,"7,010.43",19/12/2018
Choice Ltd,Residential Placements,Long Term Team - LD,"2,037.14",0,"2,037.14",19/12/2018
Choice Ltd,Adults & Social - Client Charges,Long Term Team - LD,-395.25,0,-395.25,19/12/2018
Choice Ltd,Residential Placements,Long Term Team - LD,"7,453.56",0,"7,453.56",19/12/2018
Choice Ltd,Adults & Social - Client Charges,Long Term Care,-452.82,0,-452.82,19/12/2018
Choice Ltd,Residential Placements,Long Term Care,"10,011.54",0,"10,011.54",19/12/2018
Choice Ltd,Residential Placements,Long Term Team - LD,"6,528.60",0,"6,528.60",19/12/2018
Choice Ltd,Adults & Social - Client Charges,Long Term Team - LD,"2,875.95",0,"2,875.95",19/12/2018
Choice Ltd,Residential Placements,Long Term Team - LD,"2,037.14",0,"2,037.14",19/12/2018
Choice Ltd,Residential Placements,Long Term Care,"-5,384.39",0,"-5,384.39",24/10/2018
Choice Ltd,Residential Placements,Long Term Care,"9,789.80",0,"9,789.80",24/10/2018
Choice Ltd,Adults & Social - Client Charges,Long Term Care,-401.89,0,-401.89,24/10/2018
Choice Ltd,Adults & Social - Client Charges,Long Term Care,-618.23,0,-618.23,24/10/2018
Choice Ltd,Residential Placements,Long Term Care,"9,477.14",0,"9,477.14",24/10/2018
Choice Ltd,Adults & Social - Client Charges,Long Term Care,-598.28,0,-598.28,26/11/2018
Choice Ltd,Residential Placements,Long Term Care,"9,171.43",0,"9,171.43",26/11/2018
Choice Ltd,Residential Placements,Long Term Care,"-5,210.70",0,"-5,210.70",27/11/2018
Choice Ltd,Adults & Social - Client Charges,Long Term Care,-426.02,0,-426.02,27/11/2018
Choice Ltd,Residential Placements,Long Term Care,"9,474.00",0,"9,474.00",27/11/2018
Choice Ltd,Residential Placements,Long Term Care,"-5,384.39",0,"-5,384.39",19/12/2018
Choice Ltd,Adults & Social - Client Charges,Long Term Care,-406.76,0,-406.76,19/12/2018
Choice Ltd,Residential Placements,Long Term Care,"9,789.80",0,"9,789.80",19/12/2018
Choice Ltd,Adults & Social - Client Charges,Long Term Care,"-1,091.97",0,"-1,091.97",19/12/2018
Choice Ltd,Residential Placements,Long Term Care,"9,477.14",0,"9,477.14",19/12/2018
Chris Bull Ltd,Staff training (General),Section 47 Team,"1,200.00",240,"1,440.00",10/12/2018
Chris Stevenson,Legal Fees/Advocacy,Bucks County Council Legal Services,500,100,600,17/10/2018
Chris Stevenson,Legal Fees/Advocacy,Bucks County Council Legal Services,500,100,600,20/12/2018
Christchurch Kindergarten,Voluntary Organisations TPP,EY SEN Inclusion Fund,700,0,700,02/11/2018
